Service Delivery Area(T),Service Delivery Team(T),ExpenditureGroup(T),Account(T),Supplier Name(T),Trans Date,Amount
Adult Social Care,ASC Prevention & Enablement,Supplies & Services,Equipment - Hire,1st Call Mobility,27/06/2023,595.00
Adult Social Care,ASC Prevention & Enablement,Supplies & Services,Equipment - Hire,1st Call Mobility,27/06/2023,600.00
Adult Social Care,ASC Prevention & Enablement,Supplies & Services,Equipment - Hire,1st Call Mobility,27/06/2023,350.00
Adult Social Care,ASC Prevention & Enablement,Supplies & Services,Equipment - Hire,1st Call Mobility,27/06/2023,300.00
Adult Social Care,ASC Prevention & Enablement,Supplies & Services,Equipment - Hire,1st Call Mobility,27/06/2023,970.00
Adult Social Care,ASC Prevention & Enablement,Supplies & Services,Equipment - Hire,1st Call Mobility,27/06/2023,540.00
Adult Social Care,ASC Prevention & Enablement,Supplies & Services,Equipment - Hire,1st Call Mobility,27/06/2023,550.00
Adult Social Care,ASC Prevention & Enablement,Supplies & Services,Equipment - Hire,1st Call Mobility,27/06/2023,440.00
Adult Social Care,ASC Prevention & Enablement,Supplies & Services,Equipment - Hire,1st Call Mobility,27/06/2023,"1,950.00"
Adult Social Care,ASC Prevention & Enablement,Supplies & Services,Equipment - Hire,1st Call Mobility,27/06/2023,"1,350.00"
Adult Social Care,ASC Prevention & Enablement,Supplies & Services,Equipment - Hire,1st Call Mobility,29/06/2023,442.00
Adult Social Care,ASC Prevention & Enablement,Supplies & Services,Equipment - Hire,1st Call Mobility,27/06/2023,387.50
Adult Social Care,ASC Prevention & Enablement,Supplies & Services,Equipment - Hire,ARJO UK LTD,27/06/2023,620.00
Adult Social Care,ASC Prevention & Enablement,Supplies & Services,Equipment - Hire,ARJO UK LTD,27/06/2023,600.00
Adult Social Care,ASC Prevention & Enablement,Supplies & Services,Equipment - Hire,ARJO UK LTD,27/06/2023,620.00
Adult Social Care,ASC Prevention & Enablement,Supplies & Services,Equipment - Hire,ARJO UK LTD,27/06/2023,484.00
Adult Social Care,ASC Prevention & Enablement,Supplies & Services,Equipment - Hire,ARJO UK LTD,27/06/2023,229.50
Adult Social Care,ASC Prevention & Enablement,Supplies & Services,Equipment - Hire,ARJO UK LTD,27/06/2023,810.00
Adult Social Care,ASC Prevention & Enablement,Supplies & Services,Equipment - Hire,ARJO UK LTD,27/06/2023,405.00
Adult Social Care,ASC Prevention & Enablement,Supplies & Services,Equipment - Hire,ARJO UK LTD,27/06/2023,265.00
Adult Social Care,ASC Prevention & Enablement,Supplies & Services,Equipment - Hire,ARJO UK LTD,27/06/2023,300.00
Adult Social Care,ASC Prevention & Enablement,Supplies & Services,Equipment - Hire,ARJO UK LTD,27/06/2023,620.00
Adult Social Care,ASC Prevention & Enablement,Supplies & Services,Equipment - Hire,ARJO UK LTD,27/06/2023,380.00
Adult Social Care,ASC Prevention & Enablement,Supplies & Services,Equipment - Hire,ARJO UK LTD,27/06/2023,620.00
Adult Social Care,ASC Prevention & Enablement,Supplies & Services,Equipment - Hire,ARJO UK LTD,27/06/2023,620.00
Adult Social Care,ASC Prevention & Enablement,Supplies & Services,Equipment - Hire,ARJO UK LTD,27/06/2023,520.00
Adult Social Care,ASC Prevention & Enablement,Supplies & Services,Equipment - Hire,ARJO UK LTD,27/06/2023,620.00
Adult Social Care,ASC Prevention & Enablement,Supplies & Services,Equipment - Hire,ARJO UK LTD,27/06/2023,780.00
Adult Social Care,ASC Prevention & Enablement,Supplies & Services,Equipment - Hire,ARJO UK LTD,27/06/2023,940.00
Adult Social Care,ASC Prevention & Enablement,Supplies & Services,Equipment - Hire,ARJO UK LTD,27/06/2023,620.00
Adult Social Care,ASC Prevention & Enablement,Supplies & Services,Equipment - Hire,ARJO UK LTD,27/06/2023,250.00
Adult Social Care,ASC Prevention & Enablement,Supplies & Services,Equipment - Hire,ARJO UK LTD,27/06/2023,"1,950.00"
Adult Social Care,ASC Prevention & Enablement,Supplies & Services,Equipment - Hire,ARJO UK LTD,27/06/2023,120.00
Adult Social Care,ASC Prevention & Enablement,Supplies & Services,Equipment - Hire,ARJO UK LTD,27/06/2023,600.00
Adult Social Care,ASC Prevention & Enablement,Supplies & Services,Equipment - Hire,ARJO UK LTD,27/06/2023,560.00
Adult Social Care,ASC Prevention & Enablement,Supplies & Services,Equipment - Hire,ARJO UK LTD,27/06/2023,810.00
Adult Social Care,ASC Prevention & Enablement,Supplies & Services,Equipment - Hire,ARJO UK LTD,27/06/2023,620.00
Adult Social Care,ASC Prevention & Enablement,Supplies & Services,Equipment - Hire,ARJO UK LTD,27/06/2023,220.00
Adult Social Care,ASC Prevention & Enablement,Third Party Payments,Nursing Expenditure,NHS Shropshire Telford & Wrekin ICB,19/06/2023,"7,440.00"
Adult Social Care,ASC Prevention & Enablement,Third Party Payments,Nursing Expenditure,NHS Shropshire Telford & Wrekin ICB,19/06/2023,"7,200.00"
Adult Social Care,ASC Prevention & Enablement,Transport-Related Expenditure,Taxi Costs,Cartello Ambulance,23/06/2023,214.00
Adult Social Care,ASC Prevention & Enablement,Transport-Related Expenditure,Taxi Costs,Cartello Ambulance,09/06/2023,214.00
Adult Social Care,ASC Prevention & Enablement,Transport-Related Expenditure,Taxi Costs,Cartello Ambulance,22/06/2023,346.00
Adult Social Care,ASC Prevention & Enablement,Transport-Related Expenditure,Taxi Costs,Cartello Ambulance,19/06/2023,187.25
Adult Social Care,ASC Prevention & Enablement,Transport-Related Expenditure,Taxi Costs,Cartello Ambulance,22/06/2023,160.50
Adult Social Care,ASC Prevention & Enablement,Employees,Other Employee Costs,Medgen LTD,22/06/2023,"1,484.55"
Adult Social Care,ASC Prevention & Enablement,Employees,Other Employee Costs,Medgen LTD,19/06/2023,"1,008.90"
Adult Social Care,ASC Prevention & Enablement,Employees,Other Employee Costs,Medgen LTD,19/06/2023,"1,450.80"
Adult Social Care,ASC Prevention & Enablement,Employees,Other Employee Costs,Medgen LTD,19/06/2023,"2,464.25"
Adult Social Care,ASC Prevention & Enablement,Employees,Other Employee Costs,Medgen LTD,19/06/2023,"2,307.25"
Adult Social Care,ASC Prevention & Enablement,Employees,Agency Supply Costs,Medgen LTD,19/06/2023,198.82
Adult Social Care,ASC Prevention & Enablement,Employees,Other Employee Costs,Medgen LTD,19/06/2023,"2,046.84"
Adult Social Care,ASC Prevention & Enablement,Employees,Other Employee Costs,Medgen LTD,19/06/2023,"1,403.60"
Adult Social Care,ASC Prevention & Enablement,Employees,Other Employee Costs,Medgen LTD,19/06/2023,"1,418.80"
Adult Social Care,ASC Prevention & Enablement,Employees,Other Employee Costs,Medgen LTD,19/06/2023,988.90
Adult Social Care,ASC Prevention & Enablement,Employees,Other Employee Costs,Medgen LTD,19/06/2023,"1,502.90"
Adult Social Care,ASC Prevention & Enablement,Employees,Other Employee Costs,Medgen LTD,19/06/2023,"1,379.60"
Adult Social Care,ASC Prevention & Enablement,Employees,Other Employee Costs,Medgen LTD,19/06/2023,"1,721.70"
Adult Social Care,ASC Prevention & Enablement,Employees,Other Employee Costs,Medgen LTD,19/06/2023,"1,424.40"
Adult Social Care,ASC Prevention & Enablement,Employees,Other Employee Costs,Medgen LTD,19/06/2023,"2,501.49"
Adult Social Care,ASC Prevention & Enablement,Employees,Other Employee Costs,Medgen LTD,19/06/2023,"1,523.35"
Adult Social Care,ASC Prevention & Enablement,Employees,Other Employee Costs,Medgen LTD,19/06/2023,"1,814.30"
Adult Social Care,ASC Prevention & Enablement,Employees,Other Employee Costs,Medgen LTD,19/06/2023,"2,484.25"
Adult Social Care,ASC Prevention & Enablement,Employees,Other Employee Costs,Medgen LTD,19/06/2023,"2,471.85"
Adult Social Care,ASC Prevention & Enablement,Employees,Other Employee Costs,Medgen LTD,19/06/2023,"2,449.45"
Adult Social Care,ASC Prevention & Enablement,Employees,Other Employee Costs,Medgen LTD,19/06/2023,"1,386.00"
Adult Social Care,ASC Prevention & Enablement,Employees,Other Employee Costs,Medgen LTD,19/06/2023,987.90
Adult Social Care,ASC Prevention & Enablement,Employees,Other Employee Costs,Medgen LTD,19/06/2023,"1,783.90"
Adult Social Care,ASC Prevention & Enablement,Employees,Other Employee Costs,Medgen LTD,19/06/2023,704.60
Adult Social Care,ASC Prevention & Enablement,Employees,Other Employee Costs,Medgen LTD,19/06/2023,"4,016.00"
Adult Social Care,ASC Prevention & Enablement,Employees,Other Employee Costs,Medgen LTD,19/06/2023,"1,033.94"
Adult Social Care,ASC Prevention & Enablement,Employees,Other Employee Costs,Medgen LTD,19/06/2023,"1,428.40"
Adult Social Care,ASC Prevention & Enablement,Employees,Other Employee Costs,Medgen LTD,19/06/2023,804.68
Adult Social Care,ASC Prevention & Enablement,Employees,Other Employee Costs,Medgen LTD,19/06/2023,"1,355.60"
Adult Social Care,ASC Prevention & Enablement,Employees,Other Employee Costs,Medgen LTD,19/06/2023,975.86
Adult Social Care,ASC Prevention & Enablement,Employees,Other Employee Costs,Medgen LTD,19/06/2023,"2,013.80"
Adult Social Care,ASC Prevention & Enablement,Employees,Other Employee Costs,Medgen LTD,19/06/2023,"1,019.30"
Adult Social Care,ASC Prevention & Enablement,Supplies & Services,Mobile Phones,EE LTD EQUIPMENT,05/06/2023,142.00
Adult Social Care,"Assurance, Transformation & Financial Management",Supplies & Services,Computer Software (Maint),LIQUIDLOGIC LIMITED,22/06/2023,512.57
Adult Social Care,"Assurance, Transformation & Financial Management",Employees,Staff Training,Ability Smart Ltd,06/06/2023,642.00
Adult Social Care,"Assurance, Transformation & Financial Management",Supplies & Services,Systems Procurement,Prepaid Financial Services Limited,12/06/2023,544.70
Adult Social Care,"Assurance, Transformation & Financial Management",Supplies & Services,Systems Procurement,Prepaid Financial Services Limited,12/06/2023,675.01
Adult Social Care,"Assurance, Transformation & Financial Management",Supplies & Services,Subscriptions,ASSOCIATION OF FINANCIAL ASSESMENT OFFICERS,01/06/2023,200.00
Adult Social Care,"Commissioning, Procurement & Brokerage",Third Party Payments,Interpreters Fees,EXPRESS INTERPRETING & TRANSLATION,28/06/2023,"5,472.15"
Adult Social Care,"Commissioning, Procurement & Brokerage",Supplies & Services,Other Grants (Expenses),AGE UK SHROPSHIRE TELFORD & WREKIN,28/06/2023,"20,471.50"
Adult Social Care,"Commissioning, Procurement & Brokerage",Supplies & Services,Other Grants (Expenses),AGE UK SHROPSHIRE TELFORD & WREKIN,28/06/2023,"15,463.00"
Adult Social Care,"Commissioning, Procurement & Brokerage",Supplies & Services,Other Grants (Expenses),AGE UK SHROPSHIRE TELFORD & WREKIN,29/06/2023,"56,693.00"
Adult Social Care,"Commissioning, Procurement & Brokerage",Supplies & Services,Other Grants (Expenses),SHROPSHIRE PARTNERS IN CARE LTD,28/06/2023,"2,500.00"
Adult Social Care,"Commissioning, Procurement & Brokerage",Supplies & Services,Other Grants (Expenses),TACT,28/06/2023,"10,450.00"
Adult Social Care,"Commissioning, Procurement & Brokerage",Supplies & Services,Other Grants (Expenses),TELFORD & WREKIN CVS,28/06/2023,"25,000.00"
Adult Social Care,Community Social Work & Adult Safeguarding,Supplies & Services,Other Services,AMHP Hub,14/06/2023,400.00
Adult Social Care,Community Social Work & Adult Safeguarding,Supplies & Services,Medical Consultants Fees,REDACTED PERSONAL INFORMATION,07/06/2023,716.66
Adult Social Care,Community Social Work (Principal Social Worker),Third Party Payments,Other Care Purchasing,Severn Trent Water Ltd,30/06/2023,185.33
Adult Social Care,Community Social Work (Principal Social Worker),Supplies & Services,Mobile Phones,EE LTD EQUIPMENT ,01/06/2023,142.00
Adult Social Care,My Options,Premises-Related Expenditure,Clean Mats & Toilet Requisites,CARESHOP,20/06/2023,289.10
Adult Social Care,My Options,Premises-Related Expenditure,Clean Mats & Toilet Requisites,PHS GROUP,15/06/2023,125.22
Adult Social Care,My Options,Supplies & Services,Laundry & Towel Hire,PHS GROUP,07/06/2023,244.08
Adult Social Care,My Options,Premises-Related Expenditure,Hire Of Rooms,All Saints Wellington,20/06/2023,120.00
Adult Social Care,My Options,Premises-Related Expenditure,Hire Of Rooms,All Saints Wellington,20/06/2023,180.00
Adult Social Care,My Options,Premises-Related Expenditure,Hire Of Rooms,Dawley Baptist Church,07/06/2023,210.00
Adult Social Care,My Options,Employees,Agency Supply Costs,Nurse Plus and Carer Plus Limited,15/06/2023,652.50
Adult Social Care,My Options,Employees,Agency Supply Costs,Nurse Plus and Carer Plus Limited,29/06/2023,"2,140.99"
Adult Social Care,My Options,Employees,Agency Supply Costs,Nurse Plus and Carer Plus Limited,09/06/2023,"2,295.12"
Adult Social Care,My Options,Employees,Agency Supply Costs,Nurse Plus and Carer Plus Limited,01/06/2023,"2,091.80"
Adult Social Care,My Options,Employees,Agency Supply Costs,Nurse Plus and Carer Plus Limited,01/06/2023,"1,692.56"
Adult Social Care,My Options,Employees,Agency Supply Costs,Safehands Recruitment,09/06/2023,"4,384.35"
Adult Social Care,My Options,Employees,Agency Supply Costs,Safehands Recruitment,07/06/2023,"3,783.18"
Adult Social Care,My Options,Employees,Agency Supply Costs,Safehands Recruitment,01/06/2023,"4,304.30"
Adult Social Care,My Options,Employees,Agency Supply Costs,Safehands Recruitment,15/06/2023,"5,301.45"
Adult Social Care,My Options,Premises-Related Expenditure,Clean Mats & Toilet Requisites,BERWICK CARE EQUIPMENT LTD,30/06/2023,373.14
Adult Social Care,My Options,Premises-Related Expenditure,Clean Mats & Toilet Requisites,BERWICK CARE EQUIPMENT LTD,01/06/2023,367.40
Adult Social Care,My Options,Premises-Related Expenditure,Clean Mats & Toilet Requisites,BERWICK CARE EQUIPMENT LTD,15/06/2023,322.88
Adult Social Care,My Options,Premises-Related Expenditure,Clean Mats & Toilet Requisites,BERWICK CARE EQUIPMENT LTD,29/06/2023,184.69
Adult Social Care,My Options,Premises-Related Expenditure,Clean Mats & Toilet Requisites,BERWICK CARE EQUIPMENT LTD,29/06/2023,116.80
Adult Social Care,My Options,Supplies & Services,Equipment - Purchase,BERWICK CARE EQUIPMENT LTD,01/06/2023,101.90
Adult Social Care,My Options,Supplies & Services,Equipment - Hire,CARTWRIGHTS WASTE DISPOSAL SERV LTD,08/06/2023,205.00
Adult Social Care,My Options,Supplies & Services,Equipment - Hire,CARTWRIGHTS WASTE DISPOSAL SERV LTD,26/06/2023,205.00
Adult Social Care,My Options,Employees,Agency Supply Costs,A Banks Limited,01/06/2023,231.60
Adult Social Care,My Options,Employees,Agency Supply Costs,A Banks Limited,01/06/2023,227.53
Adult Social Care,My Options,Employees,Agency Supply Costs,A Banks Limited,01/06/2023,311.35
Adult Social Care,My Options,Employees,Agency Supply Costs,A Banks Limited,01/06/2023,311.35
Adult Social Care,My Options,Employees,Agency Supply Costs,A Banks Limited,01/06/2023,263.45
Adult Social Care,My Options,Employees,Agency Supply Costs,A Banks Limited,01/06/2023,311.35
Adult Social Care,My Options,Employees,Agency Supply Costs,A Banks Limited,01/06/2023,159.75
Adult Social Care,My Options,Employees,Agency Supply Costs,A Banks Limited,01/06/2023,311.35
Adult Social Care,My Options,Employees,Agency Supply Costs,A Banks Limited,01/06/2023,311.35
Adult Social Care,My Options,Employees,Agency Supply Costs,A Banks Limited,01/06/2023,311.35
Adult Social Care,My Options,Employees,Agency Supply Costs,A Banks Limited,01/06/2023,311.35
Adult Social Care,My Options,Employees,Agency Supply Costs,A Banks Limited,07/06/2023,231.60
Adult Social Care,My Options,Employees,Agency Supply Costs,A Banks Limited,07/06/2023,311.35
Adult Social Care,My Options,Employees,Agency Supply Costs,A Banks Limited,07/06/2023,231.60
Adult Social Care,My Options,Employees,Agency Supply Costs,A Banks Limited,07/06/2023,311.35
Adult Social Care,My Options,Employees,Agency Supply Costs,A Banks Limited,15/06/2023,263.45
Adult Social Care,My Options,Employees,Agency Supply Costs,A Banks Limited,15/06/2023,231.60
Adult Social Care,My Options,Employees,Agency Supply Costs,A Banks Limited,15/06/2023,167.65
Adult Social Care,My Options,Employees,Agency Supply Costs,A Banks Limited,15/06/2023,179.63
Adult Social Care,My Options,Employees,Agency Supply Costs,A Banks Limited,01/06/2023,227.53
Adult Social Care,My Options,Employees,Agency Supply Costs,A Banks Limited,01/06/2023,159.75
Adult Social Care,My Options,Employees,Agency Supply Costs,A Banks Limited,01/06/2023,311.35
Adult Social Care,My Options,Employees,Agency Supply Costs,A Banks Limited,07/06/2023,279.50
Adult Social Care,My Options,Employees,Agency Supply Costs,A Banks Limited,07/06/2023,311.35
Adult Social Care,My Options,Employees,Agency Supply Costs,A Banks Limited,07/06/2023,159.75
Adult Social Care,My Options,Employees,Agency Supply Costs,A Banks Limited,07/06/2023,311.35
Adult Social Care,My Options,Employees,Agency Supply Costs,A Banks Limited,07/06/2023,622.70
Adult Social Care,My Options,Employees,Agency Supply Costs,A Banks Limited,07/06/2023,251.48
Adult Social Care,My Options,Employees,Agency Supply Costs,A Banks Limited,07/06/2023,311.35
Adult Social Care,My Options,Employees,Agency Supply Costs,A Banks Limited,07/06/2023,311.35
Adult Social Care,My Options,Employees,Agency Supply Costs,A Banks Limited,07/06/2023,311.35
Adult Social Care,My Options,Employees,Agency Supply Costs,A Banks Limited,15/06/2023,227.53
Adult Social Care,My Options,Employees,Agency Supply Costs,A Banks Limited,15/06/2023,155.68
Adult Social Care,My Options,Employees,Agency Supply Costs,A Banks Limited,15/06/2023,311.35
Adult Social Care,My Options,Employees,Agency Supply Costs,A Banks Limited,15/06/2023,311.35
Adult Social Care,My Options,Employees,Agency Supply Costs,A Banks Limited,15/06/2023,171.72
Adult Social Care,My Options,Employees,Agency Supply Costs,A Banks Limited,15/06/2023,311.35
Adult Social Care,My Options,Employees,Agency Supply Costs,A Banks Limited,15/06/2023,179.63
Adult Social Care,My Options,Employees,Agency Supply Costs,A Banks Limited,15/06/2023,231.60
Adult Social Care,My Options,Employees,Agency Supply Costs,A Banks Limited,29/06/2023,319.25
Adult Social Care,My Options,Employees,Agency Supply Costs,A Banks Limited,29/06/2023,323.33
Adult Social Care,My Options,Employees,Agency Supply Costs,A Banks Limited,29/06/2023,171.72
Adult Social Care,My Options,Employees,Agency Supply Costs,A Banks Limited,29/06/2023,331.23
Adult Social Care,My Options,Employees,Agency Supply Costs,A Banks Limited,29/06/2023,167.65
Adult Social Care,My Options,Employees,Agency Supply Costs,A Banks Limited,29/06/2023,171.72
Adult Social Care,My Options,Employees,Agency Supply Costs,A Banks Limited,29/06/2023,167.65
Adult Social Care,My Options,Employees,Agency Supply Costs,A Banks Limited,29/06/2023,239.50
Adult Social Care,My Options,Employees,Agency Supply Costs,A Banks Limited,29/06/2023,167.65
Adult Social Care,My Options,Employees,Agency Supply Costs,A Banks Limited,29/06/2023,331.23
Adult Social Care,My Options,Employees,Agency Supply Costs,A Banks Limited,29/06/2023,167.65
Adult Social Care,My Options,Employees,Agency Supply Costs,A Banks Limited,29/06/2023,137.71
Adult Social Care,My Options,Employees,Agency Supply Costs,A Banks Limited,29/06/2023,227.53
Adult Social Care,My Options,Employees,Agency Supply Costs,A Banks Limited,29/06/2023,311.35
Adult Social Care,My Options,Employees,Agency Supply Costs,A Banks Limited,29/06/2023,179.63
Adult Social Care,My Options,Employees,Agency Supply Costs,A Banks Limited,29/06/2023,231.60
Adult Social Care,My Options,Employees,Agency Supply Costs,A Banks Limited,29/06/2023,231.60
Adult Social Care,My Options,Employees,Agency Supply Costs,A Banks Limited,29/06/2023,311.35
Adult Social Care,My Options,Employees,Agency Supply Costs,A Banks Limited,29/06/2023,167.65
Adult Social Care,My Options,Employees,Agency Supply Costs,A Banks Limited,29/06/2023,263.45
Adult Social Care,My Options,Employees,Agency Supply Costs,A Banks Limited,29/06/2023,167.65
Adult Social Care,My Options,Employees,Agency Supply Costs,A Banks Limited,29/06/2023,283.33
Adult Social Care,My Options,Employees,Agency Supply Costs,A Banks Limited,29/06/2023,179.63
Adult Social Care,My Options,Employees,Agency Supply Costs,A Banks Limited,29/06/2023,239.50
Adult Social Care,My Options,Employees,Agency Supply Costs,A Banks Limited,29/06/2023,243.57
Adult Social Care,My Options,Employees,Agency Supply Costs,A Banks Limited,29/06/2023,319.25
Adult Social Care,My Options,Employees,Agency Supply Costs,A Banks Limited,29/06/2023,167.65
Adult Social Care,My Options,Employees,Agency Supply Costs,A Banks Limited,29/06/2023,311.35
Adult Social Care,My Options,Employees,Agency Supply Costs,A Banks Limited,29/06/2023,331.23
Adult Social Care,My Options,Employees,Agency Supply Costs,A Banks Limited,29/06/2023,167.65
Adult Social Care,My Options,Employees,Agency Supply Costs,A Banks Limited,29/06/2023,311.35
Adult Social Care,My Options,Employees,Agency Supply Costs,Nurse Plus and Carer Plus Limited,01/06/2023,594.95
Adult Social Care,My Options,Employees,Agency Supply Costs,Nurse Plus and Carer Plus Limited,01/06/2023,"6,869.25"
Adult Social Care,My Options,Employees,Agency Supply Costs,Nurse Plus and Carer Plus Limited,01/06/2023,"1,140.45"
Adult Social Care,My Options,Employees,Agency Supply Costs,Nurse Plus and Carer Plus Limited,01/06/2023,209.50
Adult Social Care,My Options,Employees,Agency Supply Costs,Nurse Plus and Carer Plus Limited,01/06/2023,"4,552.96"
Adult Social Care,My Options,Employees,Agency Supply Costs,Nurse Plus and Carer Plus Limited,01/06/2023,480.03
Adult Social Care,My Options,Employees,Agency Supply Costs,Nurse Plus and Carer Plus Limited,01/06/2023,"1,469.58"
Adult Social Care,My Options,Employees,Agency Supply Costs,Nurse Plus and Carer Plus Limited,01/06/2023,139.65
Adult Social Care,My Options,Employees,Agency Supply Costs,Nurse Plus and Carer Plus Limited,09/06/2023,488.80
Adult Social Care,My Options,Employees,Agency Supply Costs,Nurse Plus and Carer Plus Limited,09/06/2023,"1,647.51"
Adult Social Care,My Options,Employees,Agency Supply Costs,Nurse Plus and Carer Plus Limited,09/06/2023,447.89
Adult Social Care,My Options,Employees,Agency Supply Costs,Nurse Plus and Carer Plus Limited,09/06/2023,"4,357.80"
Adult Social Care,My Options,Employees,Agency Supply Costs,Nurse Plus and Carer Plus Limited,15/06/2023,349.15
Adult Social Care,My Options,Employees,Agency Supply Costs,Nurse Plus and Carer Plus Limited,15/06/2023,"5,122.09"
Adult Social Care,My Options,Employees,Agency Supply Costs,Nurse Plus and Carer Plus Limited,15/06/2023,615.28
Adult Social Care,My Options,Employees,Agency Supply Costs,Nurse Plus and Carer Plus Limited,15/06/2023,810.10
Adult Social Care,My Options,Employees,Agency Supply Costs,Nurse Plus and Carer Plus Limited,15/06/2023,698.25
Adult Social Care,My Options,Employees,Agency Supply Costs,Nurse Plus and Carer Plus Limited,29/06/2023,"5,251.71"
Adult Social Care,My Options,Employees,Agency Supply Costs,Nurse Plus and Carer Plus Limited,29/06/2023,488.80
Adult Social Care,My Options,Employees,Agency Supply Costs,Nurse Plus and Carer Plus Limited,29/06/2023,315.65
Adult Social Care,My Options,Employees,Agency Supply Costs,Nurse Plus and Carer Plus Limited,29/06/2023,958.80
Adult Social Care,My Options,Employees,Agency Supply Costs,Nurse Plus and Carer Plus Limited,29/06/2023,579.30
Adult Social Care,My Options,Employees,Agency Supply Costs,Safehands Recruitment,01/06/2023,261.80
Adult Social Care,My Options,Employees,Agency Supply Costs,Safehands Recruitment,01/06/2023,"1,704.74"
Adult Social Care,My Options,Employees,Agency Supply Costs,Safehands Recruitment,01/06/2023,585.95
Adult Social Care,My Options,Employees,Agency Supply Costs,Safehands Recruitment,09/06/2023,"1,104.02"
Adult Social Care,My Options,Employees,Agency Supply Costs,Safehands Recruitment,09/06/2023,539.00
Adult Social Care,My Options,Employees,Agency Supply Costs,Safehands Recruitment,07/06/2023,423.50
Adult Social Care,My Options,Employees,Agency Supply Costs,Safehands Recruitment,07/06/2023,927.30
Adult Social Care,My Options,Employees,Agency Supply Costs,Safehands Recruitment,07/06/2023,"1,333.25"
Adult Social Care,My Options,Employees,Agency Supply Costs,Safehands Recruitment,15/06/2023,"1,099.10"
Adult Social Care,My Options,Employees,Agency Supply Costs,Safehands Recruitment,15/06/2023,"1,239.70"
Adult Social Care,My Options,Employees,Agency Supply Costs,Safehands Recruitment,15/06/2023,831.25
Adult Social Care,My Options,Employees,Agency Supply Costs,Safehands Recruitment,15/06/2023,"2,602.22"
Adult Social Care,My Options,Employees,Agency Supply Costs,Safehands Recruitment,15/06/2023,423.50
Adult Social Care,My Options,Employees,Agency Supply Costs,Safehands Recruitment,15/06/2023,282.15
Adult Social Care,My Options,Employees,Agency Supply Costs,Safehands Recruitment,01/06/2023,"1,278.30"
Adult Social Care,My Options,Employees,Agency Supply Costs,Safehands Recruitment,01/06/2023,261.80
Adult Social Care,My Options,Employees,Agency Supply Costs,Safehands Recruitment,01/06/2023,601.00
Adult Social Care,My Options,Employees,Agency Supply Costs,Safehands Recruitment,09/06/2023,480.15
Adult Social Care,My Options,Employees,Agency Supply Costs,Safehands Recruitment,09/06/2023,"1,020.80"
Adult Social Care,My Options,Employees,Agency Supply Costs,Safehands Recruitment,09/06/2023,"1,527.28"
Adult Social Care,My Options,Employees,Agency Supply Costs,Safehands Recruitment,09/06/2023,"1,200.65"
Adult Social Care,My Options,Employees,Agency Supply Costs,Safehands Recruitment,07/06/2023,"1,490.13"
Adult Social Care,My Options,Employees,Agency Supply Costs,Safehands Recruitment,07/06/2023,"2,591.94"
Adult Social Care,My Options,Employees,Agency Supply Costs,Safehands Recruitment,07/06/2023,413.05
Adult Social Care,My Options,Employees,Agency Supply Costs,Safehands Recruitment,29/06/2023,"1,479.20"
Adult Social Care,My Options,Employees,Agency Supply Costs,Safehands Recruitment,29/06/2023,"2,419.14"
Adult Social Care,My Options,Employees,Agency Supply Costs,Safehands Recruitment,29/06/2023,632.50
Adult Social Care,My Options,Employees,Agency Supply Costs,Safehands Recruitment,29/06/2023,815.85
Adult Social Care,My Options,Employees,Agency Supply Costs,Safehands Recruitment,29/06/2023,"1,123.50"
Adult Social Care,My Options,Employees,Agency Supply Costs,Safehands Recruitment,29/06/2023,"1,139.25"
Adult Social Care,My Options,Employees,Agency Supply Costs,Safehands Recruitment,29/06/2023,763.40
Adult Social Care,My Options,Premises-Related Expenditure,Clean Mats & Toilet Requisites,BERWICK CARE EQUIPMENT LTD,15/06/2023,290.80
Adult Social Care,My Options,Premises-Related Expenditure,R&M -Buildings DLO Charge,JCE & SONS LTD,29/06/2023,109.94
Adult Social Care,My Options,Supplies & Services,Computer Software (Maint),Access UK Ltd,07/06/2023,644.40
Adult Social Care,My Options,Supplies & Services,Mobile Phones,EE LTD EQUIPMENT,30/06/2023,852.00
Adult Social Care,My Options,Supplies & Services,Respite Care,REDACTED PERSONAL INFORMATION,28/06/2023,"1,030.40"
Adult Social Care,My Options,Supplies & Services,Respite Care,REDACTED PERSONAL INFORMATION,28/06/2023,"1,636.60"
Adult Social Care,My Options,Supplies & Services,Respite Care,REDACTED PERSONAL INFORMATION,28/06/2023,856.80
Adult Social Care,My Options,Employees,Agency Supply Costs,Nurse Plus and Carer Plus Limited,01/06/2023,"2,825.55"
Adult Social Care,My Options,Employees,Agency Supply Costs,Nurse Plus and Carer Plus Limited,01/06/2023,"2,493.83"
Adult Social Care,My Options,Employees,Agency Supply Costs,Nurse Plus and Carer Plus Limited,09/06/2023,"1,050.25"
Adult Social Care,My Options,Employees,Agency Supply Costs,Nurse Plus and Carer Plus Limited,15/06/2023,"2,479.88"
Adult Social Care,My Options,Employees,Agency Supply Costs,Nurse Plus and Carer Plus Limited,29/06/2023,"2,559.76"
Adult Social Care,My Options,Employees,Agency Supply Costs,Safehands Recruitment,09/06/2023,"11,041.49"
Adult Social Care,My Options,Employees,Agency Supply Costs,Safehands Recruitment,07/06/2023,"9,997.27"
Adult Social Care,My Options,Employees,Agency Supply Costs,Safehands Recruitment,07/06/2023,"9,980.04"
Adult Social Care,My Options,Employees,Agency Supply Costs,Safehands Recruitment,07/06/2023,"9,235.26"
Adult Social Care,My Options,Employees,Agency Supply Costs,Safehands Recruitment,15/06/2023,"10,199.79"
Adult Social Care,My Options,Employees,Agency Supply Costs,Safehands Recruitment,29/06/2023,"9,797.65"
Adult Social Care,My Options,Employees,Agency Supply Costs,Safehands Recruitment,29/06/2023,"10,136.72"
Adult Social Care,My Options,Capital Expenditure,Payments to Contractor,PAVE AWAYS LTD,09/06/2023,"122,401.79"
Adult Social Care,Prevention & Independence - Older Adults & Disability,Transport-Related Expenditure,Taxi Costs,Cartello Ambulance,09/06/2023,160.50
Adult Social Care,Prevention & Independence - Older Adults & Disability,Transport-Related Expenditure,Taxi Costs,Cartello Ambulance,27/06/2023,160.50
Adult Social Care,Prevention & Independence - Older Adults & Disability,Transport-Related Expenditure,Taxi Costs,Cartello Ambulance,27/06/2023,187.25
Adult Social Care,Prevention & Independence - Older Adults & Disability,Transport-Related Expenditure,Taxi Costs,Telford and Wrekin Community Enterprise LTD,09/06/2023,180.00
Adult Social Care,Prevention & Independence - Older Adults & Disability,Employees,Professional Subs,Canary Care Global Limited,02/06/2023,"1,449.00"
Adult Social Care,Prevention & Independence - Older Adults & Disability,Supplies & Services,Aids & Appliances,Easylink,26/06/2023,327.69
Adult Social Care,Prevention & Independence - Older Adults & Disability,Supplies & Services,Aids & Appliances,Medequip,21/06/2023,103.20
Adult Social Care,Prevention & Independence - Older Adults & Disability,Supplies & Services,Aids & Appliances,Possum Ltd,02/06/2023,895.00
Adult Social Care,Prevention & Independence - Older Adults & Disability,Supplies & Services,Aids & Appliances,Ravencourt Ltd,09/06/2023,"2,838.50"
Adult Social Care,Prevention & Independence - Older Adults & Disability,Supplies & Services,Other Services,VISS Sign Language Interpreting Service,14/06/2023,115.00
Adult Social Care,Prevention & Independence - Older Adults & Disability,Supplies & Services,Legal Expenses,St Ives Chambers,16/06/2023,740.00
Adult Social Care,Prevention & Independence - Older Adults & Disability,Supplies & Services,Equipment - Repair,ARJO UK LTD,28/06/2023,255.82
Adult Social Care,Prevention & Independence - Older Adults & Disability,Supplies & Services,Aids & Appliances,Care & Independence,09/06/2023,412.30
Adult Social Care,Prevention & Independence - Older Adults & Disability,Supplies & Services,Equipment - Repair,Closomat Limited,28/06/2023,515.00
Adult Social Care,Prevention & Independence - Older Adults & Disability,Supplies & Services,Equipment - Repair,Closomat Limited,23/06/2023,190.00
Adult Social Care,Prevention & Independence - Older Adults & Disability,Supplies & Services,Aids & Appliances,Direct Healthcare Group Limited,09/06/2023,512.30
Adult Social Care,Prevention & Independence - Older Adults & Disability,Supplies & Services,Aids & Appliances,Etac Limited,19/06/2023,130.00
Adult Social Care,Prevention & Independence - Older Adults & Disability,Supplies & Services,Aids & Appliances,Jiraffe,06/06/2023,"2,302.00"
Adult Social Care,Prevention & Independence - Older Adults & Disability,Supplies & Services,Aids & Appliances,OSPREY HEALTHCARE LTD,29/06/2023,296.70
Adult Social Care,Prevention & Independence - Older Adults & Disability,Supplies & Services,Aids & Appliances,OSPREY HEALTHCARE LTD,02/06/2023,112.87
Adult Social Care,Prevention & Independence - Older Adults & Disability,Supplies & Services,Aids & Appliances,OSPREY HEALTHCARE LTD,02/06/2023,312.18
Adult Social Care,Prevention & Independence - Older Adults & Disability,Supplies & Services,Aids & Appliances,OSPREY HEALTHCARE LTD,16/06/2023,"1,127.00"
Adult Social Care,Prevention & Independence - Older Adults & Disability,Supplies & Services,Equipment - Repair,PROKILL UK LIMITED,09/06/2023,"5,299.50"
Adult Social Care,Prevention & Independence - Older Adults & Disability,Supplies & Services,Equipment - Repair,STANNAH LIFT SERVICES LTD,14/06/2023,189.25
Adult Social Care,Prevention & Independence - Older Adults & Disability,Supplies & Services,Equipment - Repair,STANNAH LIFT SERVICES LTD,15/06/2023,684.94
Adult Social Care,Prevention & Independence - Older Adults & Disability,Supplies & Services,Equipment - Repair,STANNAH LIFT SERVICES LTD,09/06/2023,"6,897.66"
Adult Social Care,Prevention & Independence - Older Adults & Disability,Supplies & Services,Equipment - Repair,STANNAH LIFT SERVICES LTD,20/06/2023,"5,299.50"
Adult Social Care,Prevention & Independence - Older Adults & Disability,Supplies & Services,Equipment - Repair,STANNAH LIFT SERVICES LTD,29/06/2023,677.25
Adult Social Care,Prevention & Independence - Older Adults & Disability,Supplies & Services,Equipment - Repair,STANNAH LIFT SERVICES LTD,23/06/2023,146.00
Adult Social Care,Prevention & Independence - Older Adults & Disability,Supplies & Services,Equipment - Repair,STANNAH LIFT SERVICES LTD,23/06/2023,146.00
Adult Social Care,Prevention & Independence - Older Adults & Disability,Supplies & Services,Equipment - Repair,STANNAH LIFT SERVICES LTD,23/06/2023,146.00
Adult Social Care,Prevention & Independence - Older Adults & Disability,Employees,Staff Training,A1 Risk Solutions Ltd,28/06/2023,350.00
Adult Social Care,Prevention & Independence - Older Adults & Disability,Supplies & Services,Mobile Phones,EE LTD EQUIPMENT,30/06/2023,142.00
Children�s Safeguarding & Family Support,Child Protection & Family Support,Supplies & Services,Grants To Voluntary Organis,YMCA,16/06/2023,"19,876.40"
Children�s Safeguarding & Family Support,Child Protection & Family Support,Supplies & Services,Furniture - Purchase,ONLINE ERGONOMICS LTD,01/06/2023,"1,278.35"
Children�s Safeguarding & Family Support,Child Protection & Family Support,Supplies & Services,Furniture - Purchase,ONLINE ERGONOMICS LTD,01/06/2023,"1,278.35"
Children�s Safeguarding & Family Support,Child Protection & Family Support,Employees,Agency Supply Costs,Matrix SCM,29/06/2023,"242,675.99"
Children�s Safeguarding & Family Support,Child Protection & Family Support,Employees,Agency Supply Costs,Xyla Health & Social Services,08/06/2023,"9,990.00"
Children�s Safeguarding & Family Support,Child Protection & Family Support,Premises-Related Expenditure,Hire Of Rooms,MEETING POINT TRUST LTD,08/06/2023,219.05
Children�s Safeguarding & Family Support,Child Protection & Family Support,Employees,Agency Supply Costs,Matrix SCM,29/06/2023,"198,467.99"
Children�s Safeguarding & Family Support,Child Protection & Family Support,Employees,Staff Training,British Isles DBT Training,20/06/2023,400.00
Children�s Safeguarding & Family Support,Child Protection & Family Support,Premises-Related Expenditure,Hire Of Rooms,MEETING POINT TRUST LTD,08/06/2023,165.00
Children�s Safeguarding & Family Support,Child Protection & Family Support,Supplies & Services,Books,Critical Publishing Ltd,16/06/2023,237.51
Children�s Safeguarding & Family Support,Child Protection & Family Support,Employees,Training Expenses,PAVILION PUBLISHING LTD,16/06/2023,"8,820.00"
Children�s Safeguarding & Family Support,Child Protection & Family Support,Employees,Professional Subs,H D Consultancy Limited,27/06/2023,250.00
Children�s Safeguarding & Family Support,Child Protection & Family Support,Employees,Professional Subs,H D Consultancy Limited,27/06/2023,125.00
Children�s Safeguarding & Family Support,Child Protection & Family Support,Employees,Professional Subs,H D Consultancy Limited,27/06/2023,125.00
Children�s Safeguarding & Family Support,Child Protection & Family Support,Supplies & Services,Conference Expenses,ADCS,28/06/2023,"1,864.00"
Children�s Safeguarding & Family Support,Child Protection & Family Support,Supplies & Services,Other Services,NEC Software Solutions UK Ltd,08/06/2023,"2,500.00"
Children�s Safeguarding & Family Support,Child Protection & Family Support,Supplies & Services,Other Grants (Expenses),Midlands Partnership NHS Foundation Trust,29/06/2023,"182,201.90"
Children�s Safeguarding & Family Support,Family Connect & Childrens Centres,Premises-Related Expenditure,Hire Of Rooms,Coalbrookdale and Ironbridge Community Centre,23/06/2023,126.00
Children�s Safeguarding & Family Support,Family Connect & Childrens Centres,Premises-Related Expenditure,R&M -Building Other,E Solutions Ltd,11/06/2023,220.00
Children�s Safeguarding & Family Support,Family Connect & Childrens Centres,Premises-Related Expenditure,Hire Of Rooms,MEETING POINT TRUST LTD,23/06/2023,125.00
Children�s Safeguarding & Family Support,Family Connect & Childrens Centres,Premises-Related Expenditure,R&M -Building Other,Security Wise Ltd,23/06/2023,"5,612.00"
Children�s Safeguarding & Family Support,Family Connect & Childrens Centres,Supplies & Services,Other Grants (Expenses),CHILDCARE SOS,11/06/2023,103.50
Children�s Safeguarding & Family Support,Family Connect & Childrens Centres,Premises-Related Expenditure,Hire Of Rooms,HOLLINSWOOD & RANDLAY PARISH COUNCIL,07/06/2023,115.00
Children�s Safeguarding & Family Support,Family Connect & Childrens Centres,Supplies & Services,Other Grants (Expenses),CHILDCARE SOS,11/06/2023,103.50
Children�s Safeguarding & Family Support,Family Connect & Childrens Centres,Supplies & Services,Mobile Phones,EE LTD EQUIPMENT,30/06/2023,142.00
Children�s Safeguarding & Family Support,Family Connect & Childrens Centres,Supplies & Services,Other Grants (Expenses),CHILDCARE SOS,11/06/2023,103.50
Children�s Safeguarding & Family Support,Family Connect & Childrens Centres,Supplies & Services,Bulk Refuse Contracts Hire,GREEN SKIPS LTD,07/06/2023,200.00
Children�s Safeguarding & Family Support,Family Connect & Childrens Centres,Premises-Related Expenditure,Hire Of Rooms,Anstice Community Trust,20/06/2023,165.00
Children�s Safeguarding & Family Support,Family Connect & Childrens Centres,Premises-Related Expenditure,Hire Of Rooms,Mercure Telford Centre Hotel,23/06/2023,120.83
Children�s Safeguarding & Family Support,Family Connect & Childrens Centres,Premises-Related Expenditure,Hire Of Rooms,Mercure Telford Centre Hotel,23/06/2023,116.00
Children�s Safeguarding & Family Support,Family Connect & Childrens Centres,Supplies & Services,Comp Hardware (Purch / Hire),CCS MEDIA LIMITED,05/06/2023,"6,154.57"
Children�s Safeguarding & Family Support,Family Connect & Childrens Centres,Supplies & Services,Comp Hardware (Purch / Hire),CCS MEDIA LIMITED,05/06/2023,"20,728.75"
Children�s Safeguarding & Family Support,Family Connect & Childrens Centres,Supplies & Services,Conference Expenses,Mercure Telford Centre Hotel,23/06/2023,182.23
Children�s Safeguarding & Family Support,Family Connect & Childrens Centres,Supplies & Services,Conference Expenses,Mercure Telford Centre Hotel,23/06/2023,187.07
Children�s Safeguarding & Family Support,"Family Placements, Children in Care, Leaving Care & Emergency Duty Team",Supplies & Services,Form F Assessments,ES-PBS Services,14/06/2023,"2,500.00"
Children�s Safeguarding & Family Support,"Family Placements, Children in Care, Leaving Care & Emergency Duty Team",Supplies & Services,Form F Assessments,ES-PBS Services,14/06/2023,500.00
Children�s Safeguarding & Family Support,"Family Placements, Children in Care, Leaving Care & Emergency Duty Team",Supplies & Services,Furniture - Purchase,POSTURITE LTD,15/06/2023,999.70
Children�s Safeguarding & Family Support,"Family Placements, Children in Care, Leaving Care & Emergency Duty Team",Supplies & Services,Equipment - Repair,ARJO UK LTD,08/06/2023,176.00
Children�s Safeguarding & Family Support,"Family Placements, Children in Care, Leaving Care & Emergency Duty Team",Supplies & Services,Aids & Appliances,Geberit Sales Ltd,08/06/2023,390.20
Children�s Safeguarding & Family Support,"Family Placements, Children in Care, Leaving Care & Emergency Duty Team",Supplies & Services,Adaptations,GRANVILLE CONSTRUCTION & MAINTENANCE LTD,08/06/2023,580.00
Children�s Safeguarding & Family Support,"Family Placements, Children in Care, Leaving Care & Emergency Duty Team",Supplies & Services,Aids & Appliances,Jiraffe,02/06/2023,"2,596.00"
Children�s Safeguarding & Family Support,"Family Placements, Children in Care, Leaving Care & Emergency Duty Team",Supplies & Services,Aids & Appliances,Jiraffe,02/06/2023,"2,534.00"
Children�s Safeguarding & Family Support,"Family Placements, Children in Care, Leaving Care & Emergency Duty Team",Supplies & Services,Aids & Appliances,Jiraffe,30/06/2023,"2,612.00"
Children�s Safeguarding & Family Support,"Family Placements, Children in Care, Leaving Care & Emergency Duty Team",Supplies & Services,Aids & Appliances,MIDSHIRES MOBILITY GROUP,09/06/2023,987.50
Children�s Safeguarding & Family Support,"Family Placements, Children in Care, Leaving Care & Emergency Duty Team",Supplies & Services,Equipment - Repair,STANNAH LIFT SERVICES LTD,09/06/2023,241.00
Children�s Safeguarding & Family Support,"Family Placements, Children in Care, Leaving Care & Emergency Duty Team",Supplies & Services,Equipment - Repair,STANNAH LIFT SERVICES LTD,14/06/2023,478.00
Children�s Safeguarding & Family Support,"Family Placements, Children in Care, Leaving Care & Emergency Duty Team",Supplies & Services,Aids & Appliances,Tough Furniture Ltd,08/06/2023,336.00
Children�s Safeguarding & Family Support,"Family Placements, Children in Care, Leaving Care & Emergency Duty Team",Supplies & Services,Adaptations,WB Building Services Limited,29/06/2023,"1,136.96"
Children�s Safeguarding & Family Support,"Family Placements, Children in Care, Leaving Care & Emergency Duty Team",Supplies & Services,Mobile Phones,EE LTD EQUIPMENT,14/06/2023,142.00
Children�s Safeguarding & Family Support,"Family Placements, Children in Care, Leaving Care & Emergency Duty Team",Supplies & Services,Mobile Phones,EE LTD EQUIPMENT,30/06/2023,142.00
Children�s Safeguarding & Family Support,"Family Placements, Children in Care, Leaving Care & Emergency Duty Team",Supplies & Services,Mobile Phones,EE LTD EQUIPMENT,30/06/2023,142.00
Children�s Safeguarding & Family Support,"Family Placements, Children in Care, Leaving Care & Emergency Duty Team",Supplies & Services,Section 17 Childrens Act,City Of Wolverhampton Council ,20/06/2023,993.80
Children�s Safeguarding & Family Support,"Family Placements, Children in Care, Leaving Care & Emergency Duty Team",Supplies & Services,Section 17 Childrens Act,Holy Trinity Academy Non Public Fund,06/06/2023,500.00
Children�s Safeguarding & Family Support,"Family Placements, Children in Care, Leaving Care & Emergency Duty Team",Supplies & Services,Section 17 Childrens Act,Shropshire Council & Benefit l Revenu,13/06/2023,302.50
Children�s Safeguarding & Family Support,"Family Placements, Children in Care, Leaving Care & Emergency Duty Team",Transport-Related Expenditure,Season Tickets,ARRIVA MIDLANDS LTD ,23/06/2023,630.00
Children�s Safeguarding & Family Support,"Family Placements, Children in Care, Leaving Care & Emergency Duty Team",Transport-Related Expenditure,Season Tickets,ARRIVA MIDLANDS LTD ,23/06/2023,"1,500.00"
Children�s Safeguarding & Family Support,"Family Placements, Children in Care, Leaving Care & Emergency Duty Team",Supplies & Services,Mobile Phones,EE LTD EQUIPMENT,14/06/2023,142.00
Children�s Safeguarding & Family Support,"Family Placements, Children in Care, Leaving Care & Emergency Duty Team",Supplies & Services,Mobile Phones,EE LTD EQUIPMENT,15/06/2023,142.00
Children�s Safeguarding & Family Support,"Family Placements, Children in Care, Leaving Care & Emergency Duty Team",Third Party Payments,Social Care External Contact,Neighbourly Helpers Ltd,14/06/2023,552.50
Children�s Safeguarding & Family Support,"Family Placements, Children in Care, Leaving Care & Emergency Duty Team",Third Party Payments,Social Care External Contact,Neighbourly Helpers Ltd,08/06/2023,234.22
Children�s Safeguarding & Family Support,"Family Placements, Children in Care, Leaving Care & Emergency Duty Team",Third Party Payments,External Foster Care Payments,Hillcrest Childrens Services Ltd,29/06/2023,"2,200.00"
Children�s Safeguarding & Family Support,"Family Placements, Children in Care, Leaving Care & Emergency Duty Team",Employees,Staff Training,Coram Academy Limited,16/06/2023,230.00
Children�s Safeguarding & Family Support,"Family Placements, Children in Care, Leaving Care & Emergency Duty Team",Supplies & Services,Doctors Fees,IRONBRIDGE MEDICAL PRACTICE,16/06/2023,176.00
Children�s Safeguarding & Family Support,"Family Placements, Children in Care, Leaving Care & Emergency Duty Team",Supplies & Services,Doctors Fees,IRONBRIDGE MEDICAL PRACTICE,16/06/2023,176.00
Children�s Safeguarding & Family Support,"Family Placements, Children in Care, Leaving Care & Emergency Duty Team",Employees,Staff Training,Adoptionplus Ltd,22/06/2023,"3,400.00"
Children�s Safeguarding & Family Support,"Family Placements, Children in Care, Leaving Care & Emergency Duty Team",Employees,Staff Training,SHROPSHIRE COUNCIL ,01/06/2023,400.00
Children�s Safeguarding & Family Support,"Family Placements, Children in Care, Leaving Care & Emergency Duty Team",Premises-Related Expenditure,Hire Of Rooms,Dawley Baptist Church,06/06/2023,250.00
Children�s Safeguarding & Family Support,"Family Placements, Children in Care, Leaving Care & Emergency Duty Team",Premises-Related Expenditure,Hire Of Rooms,Dawley Baptist Church,06/06/2023,350.00
Children�s Safeguarding & Family Support,"Family Placements, Children in Care, Leaving Care & Emergency Duty Team",Premises-Related Expenditure,Hire Of Rooms,MEETING POINT TRUST LTD,08/06/2023,356.60
Children�s Safeguarding & Family Support,"Family Placements, Children in Care, Leaving Care & Emergency Duty Team",Supplies & Services,Advertising,Bauer Radio Ltd,16/06/2023,935.90
Children�s Safeguarding & Family Support,"Family Placements, Children in Care, Leaving Care & Emergency Duty Team",Supplies & Services,Marketing & Publicity,Chapelcroft Ltd,22/06/2023,728.00
Children�s Safeguarding & Family Support,"Family Placements, Children in Care, Leaving Care & Emergency Duty Team",Supplies & Services,Registration / Licence Fees,Coram Academy Limited,06/06/2023,"2,516.85"
Children�s Safeguarding & Family Support,"Family Placements, Children in Care, Leaving Care & Emergency Duty Team",Supplies & Services,Advertising,Financial Data Management plc,22/06/2023,820.00
Children�s Safeguarding & Family Support,"Family Placements, Children in Care, Leaving Care & Emergency Duty Team",Supplies & Services,Subscriptions,FOSTERING NETWORK,02/06/2023,"2,166.00"
Children�s Safeguarding & Family Support,"Family Placements, Children in Care, Leaving Care & Emergency Duty Team",Supplies & Services,Other Services,Elements Support Ltd,06/06/2023,"4,489.20"
Children�s Safeguarding & Family Support,Safeguarding Advisory,Third Party Payments,Private Contractors,Change Grow Live Services Ltd ,02/06/2023,"4,797.25"
Children�s Safeguarding & Family Support,Safeguarding Advisory,Supplies & Services,Public Transport Subsidy,Mercure Telford Centre Hotel,26/06/2023,539.58
Children�s Safeguarding & Family Support,Safeguarding Advisory,Supplies & Services,Public Transport Subsidy,Mercure Telford Centre Hotel,26/06/2023,613.33
Children�s Safeguarding & Family Support,Safeguarding Advisory,Supplies & Services,Legal Expenses,St Ives Chambers,14/06/2023,"1,500.00"
"Communities, Customer & Commercial Services",Community Services,Supplies & Services,Subscriptions,BRITISH YOUTH COUNCIL,20/06/2023,630.00
"Communities, Customer & Commercial Services",Community Services,Premises-Related Expenditure,Hire Of Rooms,LITTLE WENLOCK VILLAGE HALL,16/06/2023,108.00
"Communities, Customer & Commercial Services",Community Services,Supplies & Services,Grants To Voluntary Organis,Great Dawley Town Council,07/06/2023,500.00
"Communities, Customer & Commercial Services",Community Services,Supplies & Services,Grants To Voluntary Organis,HOLLINSWOOD & RANDLAY PARISH COUNCIL,05/06/2023,800.00
"Communities, Customer & Commercial Services",Community Services,Supplies & Services,Grants To Voluntary Organis,Sutton Hill Community Trust,08/06/2023,"5,000.00"
"Communities, Customer & Commercial Services",Community Services,Supplies & Services,Other Grants (Expenses),Special Needs Activity Centre,22/06/2023,391.00
"Communities, Customer & Commercial Services",Community Services,Premises-Related Expenditure,Electricity,West Mercia Energy (WME),27/06/2023,"1,006.05"
"Communities, Customer & Commercial Services",Community Services,Premises-Related Expenditure,Electricity,West Mercia Energy (WME),01/06/2023,976.49
"Communities, Customer & Commercial Services",Community Services,Capital Expenditure,Payments to Contractor,R & Day Peugeot Manchester,27/06/2023,"19,670.18"
"Communities, Customer & Commercial Services",Community Services,Capital Expenditure,Payments to Contractor,Stellantis & You UK LTD Birmingham North,27/06/2023,"19,670.18"
"Communities, Customer & Commercial Services",Community Services,Capital Expenditure,Payments to Contractor,Stellantis & You UK LTD Birmingham North,27/06/2023,"19,670.17"
"Communities, Customer & Commercial Services",Community Services,Capital Expenditure,Payments to Contractor,Stellantis & You UK LTD Birmingham North,28/06/2023,"19,670.17"
"Communities, Customer & Commercial Services",Community Services,Capital Expenditure,Payments to Contractor,Stellantis & You UK LTD Birmingham North,28/06/2023,"19,670.18"
"Communities, Customer & Commercial Services",Community Services,Capital Expenditure,Payments to Contractor,Stellantis & You UK LTD Birmingham North,28/06/2023,"19,670.18"
"Communities, Customer & Commercial Services",Community Services,Capital Expenditure,Payments to Contractor,Stellantis & You UK LTD Birmingham North,28/06/2023,"19,670.18"
"Communities, Customer & Commercial Services",Community Services,Capital Expenditure,Payments to Contractor,Stellantis & You UK LTD Birmingham North,28/06/2023,"19,670.18"
"Communities, Customer & Commercial Services",Community Services,Capital Expenditure,Payments to Contractor,Stellantis & You UK LTD Birmingham North,28/06/2023,"19,670.18"
"Communities, Customer & Commercial Services",Community Services,Capital Expenditure,Payments to Contractor,Stripe Master Ltd,27/06/2023,"1,400.00"
"Communities, Customer & Commercial Services",Culture & Events,Supplies & Services,Marketing & Publicity,Geerings Print Ltd,07/06/2023,725.00
"Communities, Customer & Commercial Services",Culture & Events,Supplies & Services,Advertising,Secret Severn Art Trail,28/06/2023,400.00
"Communities, Customer & Commercial Services",Culture & Events,Supplies & Services,Advertising,Colston Media Ltd,14/06/2023,140.00
"Communities, Customer & Commercial Services",Culture & Events,Supplies & Services,Advertising,Colston Media Ltd,01/06/2023,140.00
"Communities, Customer & Commercial Services",Culture & Events,Supplies & Services,Promotion Expenses,crowdEngage Limited,22/06/2023,308.83
"Communities, Customer & Commercial Services",Culture & Events,Supplies & Services,Service Contracts,FREELANCE BUSINESS ASSOCIATES,12/06/2023,690.00
"Communities, Customer & Commercial Services",Culture & Events,Supplies & Services,Artistes Fees,J W Music,23/06/2023,911.36
"Communities, Customer & Commercial Services",Culture & Events,Supplies & Services,Performing Rights Fees,PPL PRS Ltd,16/06/2023,"6,135.80"
"Communities, Customer & Commercial Services",Culture & Events,Supplies & Services,Promotion Expenses,Shrewsbury Food Festival Ltd,23/06/2023,310.00
"Communities, Customer & Commercial Services",Culture & Events,Supplies & Services,Promotion Expenses,Spektrix Limited,15/06/2023,"1,702.18"
"Communities, Customer & Commercial Services",Culture & Events,Supplies & Services,Advertising,WHATS ON MAGAZINES LTD,06/06/2023,275.00
"Communities, Customer & Commercial Services",Culture & Events,Supplies & Services,Artistes Fees,ARTISTES INTERNATIONAL MANAGEMENT,01/06/2023,"5,093.92"
"Communities, Customer & Commercial Services",Culture & Events,Supplies & Services,Artistes Fees,Whittingham Dance,14/06/2023,"7,596.00"
"Communities, Customer & Commercial Services",Culture & Events,Supplies & Services,Artistes Fees,Forbidden Events Ltd,16/06/2023,"3,929.92"
"Communities, Customer & Commercial Services",Culture & Events,Supplies & Services,Artistes Fees,Freckle Ltd,19/06/2023,"6,212.36"
"Communities, Customer & Commercial Services",Culture & Events,Supplies & Services,Artistes Fees,Freckle Ltd,19/06/2023,"2,725.90"
"Communities, Customer & Commercial Services",Culture & Events,Supplies & Services,Artistes Fees,Giant Expression Management,29/06/2023,"3,250.64"
"Communities, Customer & Commercial Services",Culture & Events,Supplies & Services,Artistes Fees,Lost The Plot Theatrical Ltd,01/06/2023,"1,021.15"
"Communities, Customer & Commercial Services",Culture & Events,Supplies & Services,Artistes Fees,Maple Tree Entertainment Ltd,22/06/2023,"2,809.75"
"Communities, Customer & Commercial Services",Culture & Events,Supplies & Services,Artistes Fees,MRC Enterprises Ltd,19/06/2023,"6,134.88"
"Communities, Customer & Commercial Services",Culture & Events,Supplies & Services,Artistes Fees,OFF THE KERB PRODUCTIONS,19/06/2023,"9,048.63"
"Communities, Customer & Commercial Services",Culture & Events,Supplies & Services,Artistes Fees,Rock�n�Roll Productions Ltd,22/06/2023,"1,931.29"
"Communities, Customer & Commercial Services",Culture & Events,Supplies & Services,Artistes Fees,Telford Tigers Limited,14/06/2023,"16,500.48"
"Communities, Customer & Commercial Services",Culture & Events,Supplies & Services,Artistes Fees,Ticketplan Limited,07/06/2023,444.12
"Communities, Customer & Commercial Services",Culture & Events,Supplies & Services,Equipment - Purchase,DMC STOCKTAKING,27/06/2023,160.00
"Communities, Customer & Commercial Services",Culture & Events,Supplies & Services,Audit Services,DMC STOCKTAKING,27/06/2023,160.00
"Communities, Customer & Commercial Services",Culture & Events,Supplies & Services,Audit Services,DMC STOCKTAKING,27/06/2023,160.00
"Communities, Customer & Commercial Services",Culture & Events,Supplies & Services,Audit Services,DMC STOCKTAKING,27/06/2023,160.00
"Communities, Customer & Commercial Services",Culture & Events,Supplies & Services,Equipment - Purchase,DMC STOCKTAKING,27/06/2023,160.00
"Communities, Customer & Commercial Services",Culture & Events,Supplies & Services,Audit Services,DMC STOCKTAKING,27/06/2023,160.00
"Communities, Customer & Commercial Services",Culture & Events,Supplies & Services,Wet Resale Provision,MOLSON COORS BREWING COMPANY UK LTD,15/06/2023,437.19
"Communities, Customer & Commercial Services",Culture & Events,Supplies & Services,Wet Resale Provision,MOLSON COORS BREWING COMPANY UK LTD,15/06/2023,148.08
"Communities, Customer & Commercial Services",Culture & Events,Supplies & Services,Wet Resale Provision,MOLSON COORS BREWING COMPANY UK LTD,15/06/2023,148.08
"Communities, Customer & Commercial Services",Culture & Events,Supplies & Services,Wet Resale Provision,MOLSON COORS BREWING COMPANY UK LTD,15/06/2023,232.74
"Communities, Customer & Commercial Services",Culture & Events,Supplies & Services,Wet Resale Provision,MOLSON COORS BREWING COMPANY UK LTD,15/06/2023,291.46
"Communities, Customer & Commercial Services",Culture & Events,Supplies & Services,Wet Resale Provision,MOLSON COORS BREWING COMPANY UK LTD,15/06/2023,145.89
"Communities, Customer & Commercial Services",Culture & Events,Supplies & Services,Wet Resale Provision,MOLSON COORS BREWING COMPANY UK LTD,15/06/2023,130.58
"Communities, Customer & Commercial Services",Culture & Events,Supplies & Services,Wet Resale Provision,MOLSON COORS BREWING COMPANY UK LTD,15/06/2023,115.98
"Communities, Customer & Commercial Services",Culture & Events,Supplies & Services,Wet Resale Provision,MOLSON COORS BREWING COMPANY UK LTD,15/06/2023,145.88
"Communities, Customer & Commercial Services",Culture & Events,Supplies & Services,Wet Resale Provision,MOLSON COORS BREWING COMPANY UK LTD,15/06/2023,232.74
"Communities, Customer & Commercial Services",Culture & Events,Supplies & Services,Wet Resale Provision,MOLSON COORS BREWING COMPANY UK LTD,05/06/2023,145.89
"Communities, Customer & Commercial Services",Culture & Events,Supplies & Services,Wet Resale Provision,MOLSON COORS BREWING COMPANY UK LTD,05/06/2023,183.68
"Communities, Customer & Commercial Services",Culture & Events,Supplies & Services,Wet Resale Provision,MOLSON COORS BREWING COMPANY UK LTD,05/06/2023,145.73
"Communities, Customer & Commercial Services",Culture & Events,Supplies & Services,Wet Resale Provision,MOLSON COORS BREWING COMPANY UK LTD,05/06/2023,465.48
"Communities, Customer & Commercial Services",Culture & Events,Supplies & Services,Wet Resale Provision,MOLSON COORS BREWING COMPANY UK LTD,05/06/2023,145.73
"Communities, Customer & Commercial Services",Culture & Events,Supplies & Services,Mobile Phones,EE LTD EQUIPMENT,14/06/2023,142.00
"Communities, Customer & Commercial Services",Culture & Events,Supplies & Services,Crockery/Hardware/Light Equip,BIKOLD,15/06/2023,109.76
"Communities, Customer & Commercial Services",Culture & Events,Supplies & Services,Crockery/Hardware/Light Equip,BIKOLD,15/06/2023,109.40
"Communities, Customer & Commercial Services",Culture & Events,Supplies & Services,Audit Services,DMC STOCKTAKING,28/06/2023,160.00
"Communities, Customer & Commercial Services",Culture & Events,Supplies & Services,Audit Services,DMC STOCKTAKING,28/06/2023,160.00
"Communities, Customer & Commercial Services",Culture & Events,Supplies & Services,Audit Services,DMC STOCKTAKING,28/06/2023,160.00
"Communities, Customer & Commercial Services",Culture & Events,Supplies & Services,Audit Services,DMC STOCKTAKING,28/06/2023,160.00
"Communities, Customer & Commercial Services",Culture & Events,Supplies & Services,Audit Services,DMC STOCKTAKING,28/06/2023,160.00
"Communities, Customer & Commercial Services",Culture & Events,Supplies & Services,Audit Services,DMC STOCKTAKING,28/06/2023,160.00
"Communities, Customer & Commercial Services",Culture & Events,Supplies & Services,Confectionery & Snacks,Eden Farm Hulleys,05/06/2023,257.40
"Communities, Customer & Commercial Services",Culture & Events,Supplies & Services,Confectionery & Snacks,Eden Farm Hulleys,05/06/2023,224.08
"Communities, Customer & Commercial Services",Culture & Events,Supplies & Services,Wet Resale Provision,MOLSON COORS BREWING COMPANY UK LTD,05/06/2023,118.31
"Communities, Customer & Commercial Services",Culture & Events,Supplies & Services,Wet Resale Provision,MOLSON COORS BREWING COMPANY UK LTD,05/06/2023,291.78
"Communities, Customer & Commercial Services",Culture & Events,Supplies & Services,Wet Resale Provision,MOLSON COORS BREWING COMPANY UK LTD,05/06/2023,123.32
"Communities, Customer & Commercial Services",Culture & Events,Supplies & Services,Wet Resale Provision,MOLSON COORS BREWING COMPANY UK LTD,05/06/2023,122.77
"Communities, Customer & Commercial Services",Culture & Events,Supplies & Services,Wet Resale Provision,MOLSON COORS BREWING COMPANY UK LTD,05/06/2023,190.44
"Communities, Customer & Commercial Services",Culture & Events,Supplies & Services,Wet Resale Provision,MOLSON COORS BREWING COMPANY UK LTD,05/06/2023,100.86
"Communities, Customer & Commercial Services",Culture & Events,Supplies & Services,Wet Resale Provision,MOLSON COORS BREWING COMPANY UK LTD,05/06/2023,111.96
"Communities, Customer & Commercial Services",Culture & Events,Supplies & Services,Wet Resale Provision,MOLSON COORS BREWING COMPANY UK LTD,05/06/2023,161.20
"Communities, Customer & Commercial Services",Culture & Events,Supplies & Services,Wet Resale Provision,MOLSON COORS BREWING COMPANY UK LTD,15/06/2023,223.92
"Communities, Customer & Commercial Services",Culture & Events,Supplies & Services,Wet Resale Provision,MOLSON COORS BREWING COMPANY UK LTD,15/06/2023,322.40
"Communities, Customer & Commercial Services",Culture & Events,Supplies & Services,Wet Resale Provision,MOLSON COORS BREWING COMPANY UK LTD,15/06/2023,163.96
"Communities, Customer & Commercial Services",Culture & Events,Supplies & Services,Wet Resale Provision,MOLSON COORS BREWING COMPANY UK LTD,15/06/2023,171.12
"Communities, Customer & Commercial Services",Culture & Events,Supplies & Services,Confectionery & Snacks,MOLSON COORS BREWING COMPANY UK LTD,15/06/2023,196.00
"Communities, Customer & Commercial Services",Culture & Events,Supplies & Services,Wet Resale Provision,MOLSON COORS BREWING COMPANY UK LTD,15/06/2023,118.31
"Communities, Customer & Commercial Services",Culture & Events,Supplies & Services,Wet Resale Provision,MOLSON COORS BREWING COMPANY UK LTD,15/06/2023,257.92
"Communities, Customer & Commercial Services",Culture & Events,Supplies & Services,Wet Resale Provision,MOLSON COORS BREWING COMPANY UK LTD,15/06/2023,231.96
"Communities, Customer & Commercial Services",Culture & Events,Supplies & Services,Wet Resale Provision,MOLSON COORS BREWING COMPANY UK LTD,15/06/2023,107.82
"Communities, Customer & Commercial Services",Culture & Events,Supplies & Services,Wet Resale Provision,MOLSON COORS BREWING COMPANY UK LTD,15/06/2023,465.48
"Communities, Customer & Commercial Services",Culture & Events,Supplies & Services,Wet Resale Provision,MOLSON COORS BREWING COMPANY UK LTD,15/06/2023,118.31
"Communities, Customer & Commercial Services",Culture & Events,Supplies & Services,Wet Resale Provision,MOLSON COORS BREWING COMPANY UK LTD,15/06/2023,291.78
"Communities, Customer & Commercial Services",Culture & Events,Supplies & Services,Wet Resale Provision,MOLSON COORS BREWING COMPANY UK LTD,15/06/2023,214.70
"Communities, Customer & Commercial Services",Culture & Events,Supplies & Services,Wet Resale Provision,MOLSON COORS BREWING COMPANY UK LTD,15/06/2023,156.74
"Communities, Customer & Commercial Services",Culture & Events,Supplies & Services,Wet Resale Provision,MOLSON COORS BREWING COMPANY UK LTD,15/06/2023,124.74
"Communities, Customer & Commercial Services",Culture & Events,Supplies & Services,Wet Resale Provision,MOLSON COORS BREWING COMPANY UK LTD,15/06/2023,154.64
"Communities, Customer & Commercial Services",Culture & Events,Supplies & Services,Wet Resale Provision,MOLSON COORS BREWING COMPANY UK LTD,15/06/2023,128.96
"Communities, Customer & Commercial Services",Culture & Events,Supplies & Services,Artistes Fees,Fools Paradise Ltd,28/06/2023,450.00
"Communities, Customer & Commercial Services",Culture & Events,Supplies & Services,Artistes Fees,IRONBRIDGE GORGE MUSEUM TRUST LTD,06/06/2023,150.00
"Communities, Customer & Commercial Services",Culture & Events,Supplies & Services,Artistes Fees,IRONBRIDGE GORGE MUSEUM TRUST LTD,06/06/2023,150.00
"Communities, Customer & Commercial Services",Culture & Events,Supplies & Services,Artistes Fees,J.E.F Scaffolding Ltd,13/06/2023,"2,565.00"
"Communities, Customer & Commercial Services",Culture & Events,Supplies & Services,First Aid,MW MEDICS LTD,29/06/2023,230.00
"Communities, Customer & Commercial Services",Culture & Events,Supplies & Services,Artistes Fees,R F PHOTOGRAPHY,13/06/2023,400.00
"Communities, Customer & Commercial Services",Culture & Events,Supplies & Services,Artistes Fees,SEVERN GORGE COUNTRYSIDE TRUST,06/06/2023,150.00
"Communities, Customer & Commercial Services",Culture & Events,Supplies & Services,Artistes Fees,ShowStoppers,29/06/2023,745.00
"Communities, Customer & Commercial Services",Culture & Events,Supplies & Services,Equipment - Hire,Stiltz Limited,30/06/2023,276.00
"Communities, Customer & Commercial Services",Culture & Events,Supplies & Services,Advertising,WHATS ON MAGAZINES LTD,29/06/2023,950.00
"Communities, Customer & Commercial Services",Culture & Events,Supplies & Services,Equipment - Hire,WM Plant Hire Ltd,19/06/2023,"2,640.00"
"Communities, Customer & Commercial Services",Culture & Events,Supplies & Services,Artistes Fees,Wrekin Forest School CIC,29/06/2023,430.00
"Communities, Customer & Commercial Services",Customer Relationships & Welfare Services,Supplies & Services,Adult Flexi / Day Care,Discretionary Household Support,23/06/2023,283.22
"Communities, Customer & Commercial Services",Customer Relationships & Welfare Services,Supplies & Services,Other Grants (Expenses),Discretionary Household Support,20/06/2023,200.00
"Communities, Customer & Commercial Services",Customer Relationships & Welfare Services,Supplies & Services,Other Grants (Expenses),Discretionary Household Support,20/06/2023,120.00
"Communities, Customer & Commercial Services",Customer Relationships & Welfare Services,Supplies & Services,Other Grants (Expenses),Discretionary Household Support,20/06/2023,300.00
"Communities, Customer & Commercial Services",Customer Relationships & Welfare Services,Supplies & Services,Other Grants (Expenses),Hawk Incentives Ltd,19/06/2023,"19,744.00"
"Communities, Customer & Commercial Services",Customer Relationships & Welfare Services,Transfer Payments,Crisis Assistance Awards,PayPoint Network Limited,02/06/2023,338.00
"Communities, Customer & Commercial Services",Customer Relationships & Welfare Services,Transfer Payments,Crisis Assistance Awards,PayPoint Network Limited,27/06/2023,240.00
"Communities, Customer & Commercial Services",Customer Relationships & Welfare Services,Transfer Payments,Crisis Assistance Awards,PayPoint Network Limited,05/06/2023,280.00
"Communities, Customer & Commercial Services",Customer Relationships & Welfare Services,Transfer Payments,Crisis Assistance Awards,PayPoint Network Limited,16/06/2023,455.00
"Communities, Customer & Commercial Services",Customer Relationships & Welfare Services,Transfer Payments,Crisis Assistance Awards,PayPoint Network Limited,20/06/2023,275.00
"Communities, Customer & Commercial Services",Customer Relationships & Welfare Services,Supplies & Services,Postages,Financial Data Management plc,06/06/2023,192.13
"Communities, Customer & Commercial Services",Customer Relationships & Welfare Services,Supplies & Services,Postages,Financial Data Management plc,06/06/2023,137.75
"Communities, Customer & Commercial Services",Customer Relationships & Welfare Services,Supplies & Services,Postages,Financial Data Management plc,06/06/2023,184.26
"Communities, Customer & Commercial Services",Customer Relationships & Welfare Services,Supplies & Services,Printing - Other,Financial Data Management plc,06/06/2023,"1,100.00"
"Communities, Customer & Commercial Services",Customer Relationships & Welfare Services,Supplies & Services,Printing - Other,Financial Data Management plc,06/06/2023,900.00
"Communities, Customer & Commercial Services",Customer Relationships & Welfare Services,Supplies & Services,Postages,Financial Data Management plc,13/06/2023,"3,472.14"
"Communities, Customer & Commercial Services",Customer Relationships & Welfare Services,Supplies & Services,Postages,Financial Data Management plc,28/06/2023,163.94
"Communities, Customer & Commercial Services",Customer Relationships & Welfare Services,Supplies & Services,Postages,Financial Data Management plc,28/06/2023,173.21
"Communities, Customer & Commercial Services",Customer Relationships & Welfare Services,Supplies & Services,IT Services,NEC Software Solutions UK Ltd,01/06/2023,"2,925.00"
"Communities, Customer & Commercial Services",Customer Relationships & Welfare Services,Supplies & Services,Permit Production - Blue Badge,APS Group,19/06/2023,931.43
"Communities, Customer & Commercial Services",Customer Relationships & Welfare Services,Supplies & Services,Blue Badge Assessments,Ascenti,19/06/2023,480.00
"Communities, Customer & Commercial Services",Customer Relationships & Welfare Services,Supplies & Services,Bus Pass Production,Euclid Limited,19/06/2023,873.73
"Communities, Customer & Commercial Services",Customer Relationships & Welfare Services,Supplies & Services,Fees,PayPoint Network Ltd ,29/06/2023,"5,566.67"
"Communities, Customer & Commercial Services",Customer Relationships & Welfare Services,Supplies & Services,Permit Production - Blue Badge,Valtech Limited,19/06/2023,459.54
"Communities, Customer & Commercial Services",Customer Relationships & Welfare Services,Transfer Payments,Crisis Assistance Awards,Kings of the Road,29/06/2023,325.00
"Communities, Customer & Commercial Services",Customer Relationships & Welfare Services,Employees,Staff Training,DUDLEY METROPOLITAN BOROUGH COUNCIL,14/06/2023,190.00
"Communities, Customer & Commercial Services",Customer Relationships & Welfare Services,Employees,Professional Subs,DUDLEY METROPOLITAN BOROUGH COUNCIL,07/06/2023,150.00
"Communities, Customer & Commercial Services",Customer Relationships & Welfare Services,Employees,Professional Subs,LOCAL REGISTRATION SERVICES ASSOCIATION,06/06/2023,400.00
"Communities, Customer & Commercial Services",Customer Relationships & Welfare Services,Premises-Related Expenditure,Grounds Maintenance - Other,OASIS PLANTS LIMITED,14/06/2023,605.47
"Communities, Customer & Commercial Services",Customer Relationships & Welfare Services,Employees,Staff Training,ICCM,15/06/2023,255.00
"Communities, Customer & Commercial Services",ICT,Premises-Related Expenditure,Hire Of Rooms,OAKENGATES TOWN COUNCIL,15/06/2023,216.00
"Communities, Customer & Commercial Services",ICT,Supplies & Services,Comp Hardware (Purch / Hire),CCS MEDIA LIMITED,06/06/2023,"-9,180.00"
"Communities, Customer & Commercial Services",ICT,Supplies & Services,Comp Hardware (Purch / Hire),CCS MEDIA LIMITED,27/06/2023,"7,650.00"
"Communities, Customer & Commercial Services",ICT,Supplies & Services,Telecomms,Airband Community Internet,26/06/2023,300.00
"Communities, Customer & Commercial Services",ICT,Supplies & Services,Telecomms,CAPITA BUSINESS SERVICES LTD ,26/06/2023,"13,538.19"
"Communities, Customer & Commercial Services",ICT,Supplies & Services,Comp Software (Purch / Hire),PHOENIX SOFTWARE LTD,12/06/2023,360.00
"Communities, Customer & Commercial Services",ICT,Supplies & Services,Comp Software (Purch / Hire),PHOENIX SOFTWARE LTD,12/06/2023,"1,790.00"
"Communities, Customer & Commercial Services",ICT,Supplies & Services,Telephones,BRITISH TELECOMMUNICATIONS PLC ,22/06/2023,"9,009.73"
"Communities, Customer & Commercial Services",ICT,Supplies & Services,Mobile Phones,EE LTD AIRTIME ,12/06/2023,"12,458.44"
"Communities, Customer & Commercial Services",ICT,Supplies & Services,Text Messages,PROCESS FLOWS UK LTD,06/06/2023,413.70
"Communities, Customer & Commercial Services",ICT,Supplies & Services,Telephones,Trustmarque Solutions Limited,29/06/2023,"2,883.66"
"Communities, Customer & Commercial Services",ICT,Premises-Related Expenditure,R&M -Buildings DLO Charge,Aqua Cooling Ltd,05/06/2023,966.60
"Communities, Customer & Commercial Services",ICT,Premises-Related Expenditure,R&M -Building Other,Charlton Academy,29/06/2023,"4,346.85"
"Communities, Customer & Commercial Services",ICT,Premises-Related Expenditure,R&M -Building Other,Charlton Academy,26/06/2023,"6,043.82"
"Communities, Customer & Commercial Services",ICT,Premises-Related Expenditure,R&M -Buildings DLO Charge,Churches Fire Security Ltd,12/06/2023,399.90
"Communities, Customer & Commercial Services",ICT,Premises-Related Expenditure,R&M -Building Other,Churches Fire Security Ltd,12/06/2023,399.90
"Communities, Customer & Commercial Services",ICT,Premises-Related Expenditure,R&M -Buildings DLO Charge,PP ELECTRICAL SERVICES Ltd,15/06/2023,220.00
"Communities, Customer & Commercial Services",ICT,Premises-Related Expenditure,R&M -Buildings DLO Charge,R Maintenance Services Ltd,12/06/2023,435.00
"Communities, Customer & Commercial Services",ICT,Supplies & Services,Comp Software (Purch / Hire),PHOENIX SOFTWARE LTD,02/06/2023,"49,752.72"
"Communities, Customer & Commercial Services",ICT,Supplies & Services,Comp Software (Purch / Hire),PHOENIX SOFTWARE LTD,02/06/2023,"47,661.60"
"Communities, Customer & Commercial Services",ICT,Supplies & Services,Comp Software (Purch / Hire),PHOENIX SOFTWARE LTD,02/06/2023,"1,004.64"
"Communities, Customer & Commercial Services",ICT,Supplies & Services,Comp Software (Purch / Hire),PHOENIX SOFTWARE LTD,02/06/2023,"51,509.76"
"Communities, Customer & Commercial Services",ICT,Supplies & Services,Comp Software (Purch / Hire),PHOENIX SOFTWARE LTD,02/06/2023,"13,082.76"
"Communities, Customer & Commercial Services",ICT,Supplies & Services,Stationery,PREMIER PAPER GROUP LTD,13/06/2023,233.00
"Communities, Customer & Commercial Services",ICT,Supplies & Services,Equipment - Hire,RICOH UK LIMITED,06/06/2023,"3,317.73"
"Communities, Customer & Commercial Services",ICT,Supplies & Services,Photocopying,RICOH UK LIMITED,06/06/2023,"2,149.09"
"Communities, Customer & Commercial Services",ICT,Supplies & Services,Photocopying,RICOH UK LIMITED,06/06/2023,283.34
"Communities, Customer & Commercial Services",ICT,Supplies & Services,Comp Hardware (Purch / Hire),ICTn Limited,01/06/2023,378.00
"Communities, Customer & Commercial Services",ICT,Supplies & Services,Telecomms,CAPITA BUSINESS SERVICES LTD ,26/06/2023,"24,907.69"
"Communities, Customer & Commercial Services",ICT,Supplies & Services,Comp Software (Purch / Hire),CCS MEDIA LIMITED,29/06/2023,"12,073.20"
"Communities, Customer & Commercial Services",ICT,Supplies & Services,Comp Hardware (Purch / Hire),CCS MEDIA LIMITED,29/06/2023,"47,801.40"
"Communities, Customer & Commercial Services",ICT,Supplies & Services,Mobile Phones,EE LTD EQUIPMENT,16/06/2023,930.00
"Communities, Customer & Commercial Services",ICT,Supplies & Services,Mobile Phones,EE LTD EQUIPMENT,12/06/2023,790.83
"Communities, Customer & Commercial Services",ICT,Supplies & Services,Mobile Phones,EE LTD EQUIPMENT,30/06/2023,375.00
"Communities, Customer & Commercial Services",ICT,Supplies & Services,Telephones,Ghekko LTD,15/06/2023,966.00
"Communities, Customer & Commercial Services",ICT,Supplies & Services,Telephones,Ghekko LTD,15/06/2023,540.00
"Communities, Customer & Commercial Services",ICT,Supplies & Services,Telephones,Ghekko LTD,15/06/2023,330.00
"Communities, Customer & Commercial Services",ICT,Supplies & Services,Provisions,SIEMENS FINANCIAL SERVICES LTD,22/06/2023,"1,036.73"
"Communities, Customer & Commercial Services",ICT,Supplies & Services,Comp Software (Purch / Hire),ScholarPack,09/06/2023,536.00
"Communities, Customer & Commercial Services",ICT,Supplies & Services,Comp Software (Purch / Hire),ScholarPack,09/06/2023,294.00
"Communities, Customer & Commercial Services",ICT,Supplies & Services,Comp Software (Purch / Hire),ScholarPack,09/06/2023,567.00
"Communities, Customer & Commercial Services",ICT,Supplies & Services,Comp Software (Purch / Hire),ScholarPack,09/06/2023,"3,031.00"
"Communities, Customer & Commercial Services",ICT,Supplies & Services,Comp Software (Purch / Hire),ScholarPack,09/06/2023,"3,142.00"
"Communities, Customer & Commercial Services",ICT,Supplies & Services,Comp Software (Purch / Hire),ScholarPack,09/06/2023,"3,584.00"
"Communities, Customer & Commercial Services",ICT,Supplies & Services,Comp Software (Purch / Hire),ScholarPack,02/06/2023,"2,574.00"
"Communities, Customer & Commercial Services",ICT,Supplies & Services,Comp Software (Purch / Hire),ScholarPack,02/06/2023,567.00
"Communities, Customer & Commercial Services",ICT,Capital Expenditure,Computer Hardware,Access UK Ltd,12/06/2023,"5,700.00"
"Communities, Customer & Commercial Services",ICT,Capital Expenditure,Payments to Contractor,Bramble Hub Limited,01/06/2023,298.98
"Communities, Customer & Commercial Services",ICT,Capital Expenditure,Payments to Contractor,Bramble Hub Limited,01/06/2023,"16,750.00"
"Communities, Customer & Commercial Services",ICT,Capital Expenditure,Computer Software,Bramble Hub Limited,02/06/2023,"1,332.93"
"Communities, Customer & Commercial Services",ICT,Capital Expenditure,Payments to Contractor,Bramble Hub Limited,29/06/2023,"1,330.72"
"Communities, Customer & Commercial Services",ICT,Capital Expenditure,Payments to Contractor,CAPITA BUSINESS SERVICES LTD ,12/06/2023,348.12
"Communities, Customer & Commercial Services",ICT,Capital Expenditure,Payments to Contractor,CAPITA BUSINESS SERVICES LTD ,12/06/2023,"12,835.88"
"Communities, Customer & Commercial Services",ICT,Capital Expenditure,Computer Hardware,CAPITA BUSINESS SERVICES LTD ,12/06/2023,"21,315.81"
"Communities, Customer & Commercial Services",ICT,Capital Expenditure,Computer Hardware,CAPITA BUSINESS SERVICES LTD ,12/06/2023,"7,957.95"
"Communities, Customer & Commercial Services",ICT,Capital Expenditure,Computer Hardware,CCS MEDIA LIMITED,23/06/2023,290.00
"Communities, Customer & Commercial Services",ICT,Capital Expenditure,Computer Hardware,CCS MEDIA LIMITED,02/06/2023,"6,534.00"
"Communities, Customer & Commercial Services",ICT,Capital Expenditure,Payments to Contractor,ICTn Limited,01/06/2023,240.00
"Communities, Customer & Commercial Services",ICT,Capital Expenditure,Payments to Contractor,ICTn Limited,01/06/2023,212.00
"Communities, Customer & Commercial Services",ICT,Capital Expenditure,Payments to Contractor,ICTn Limited,01/06/2023,210.00
"Communities, Customer & Commercial Services",ICT,Capital Expenditure,Payments to Contractor,ICTn Limited,12/06/2023,135.00
"Communities, Customer & Commercial Services",ICT,Capital Expenditure,Payments to Contractor,Zellis UK Ltd,01/06/2023,"1,551.00"
"Communities, Customer & Commercial Services",Sport & Leisure,Premises-Related Expenditure,Electricity,EON next,13/06/2023,230.57
"Communities, Customer & Commercial Services",Sport & Leisure,Premises-Related Expenditure,Trade Refuse,FCC Recycling Ltd,20/06/2023,288.73
"Communities, Customer & Commercial Services",Sport & Leisure,Supplies & Services,Crockery/Hardware/Light Equip,CALTEL CATERING & LAUNDRY EQUIPMENT LLP,08/06/2023,531.47
"Communities, Customer & Commercial Services",Sport & Leisure,Supplies & Services,Crockery/Hardware/Light Equip,CALTEL CATERING & LAUNDRY EQUIPMENT LLP,27/06/2023,830.00
"Communities, Customer & Commercial Services",Sport & Leisure,Supplies & Services,Computer Hardware (Maint),CIVICA UK LIMITED ,15/06/2023,425.00
"Communities, Customer & Commercial Services",Sport & Leisure,Supplies & Services,Crockery/Hardware/Light Equip,E N CATERING EQUIPMENT AND SERVICES  LTD,27/06/2023,334.82
"Communities, Customer & Commercial Services",Sport & Leisure,Supplies & Services,Crockery/Hardware/Light Equip,Harfield Components Ltd,23/06/2023,183.45
"Communities, Customer & Commercial Services",Sport & Leisure,Supplies & Services,Protective Clothing,IMAGE@WORK LTD,20/06/2023,712.65
"Communities, Customer & Commercial Services",Sport & Leisure,Supplies & Services,Protective Clothing,IMAGE@WORK LTD,29/06/2023,131.59
"Communities, Customer & Commercial Services",Sport & Leisure,Supplies & Services,EEC Whole Milk,J DAIRIES,14/06/2023,"1,784.36"
"Communities, Customer & Commercial Services",Sport & Leisure,Supplies & Services,EEC Whole Milk,J DAIRIES,14/06/2023,849.03
"Communities, Customer & Commercial Services",Sport & Leisure,Supplies & Services,EEC Whole Milk,J DAIRIES,14/06/2023,"1,784.36"
"Communities, Customer & Commercial Services",Sport & Leisure,Supplies & Services,EEC Whole Milk,J DAIRIES,14/06/2023,855.53
"Communities, Customer & Commercial Services",Sport & Leisure,Supplies & Services,EEC Whole Milk,J DAIRIES,23/06/2023,"1,792.36"
"Communities, Customer & Commercial Services",Sport & Leisure,Supplies & Services,EEC Whole Milk,J DAIRIES,23/06/2023,860.33
"Communities, Customer & Commercial Services",Sport & Leisure,Supplies & Services,EEC Whole Milk,J DAIRIES,29/06/2023,855.53
"Communities, Customer & Commercial Services",Sport & Leisure,Supplies & Services,EEC Whole Milk,J DAIRIES,29/06/2023,"1,758.76"
"Communities, Customer & Commercial Services",Sport & Leisure,Supplies & Services,Provisions,BIKOLD,16/06/2023,197.32
"Communities, Customer & Commercial Services",Sport & Leisure,Supplies & Services,Provisions,BIKOLD,16/06/2023,112.93
"Communities, Customer & Commercial Services",Sport & Leisure,Supplies & Services,Provisions,BIKOLD,09/06/2023,138.64
"Communities, Customer & Commercial Services",Sport & Leisure,Employees,Agency Supply Costs,TOTAL CATERING SOLUTONS RECRUITMENT LTD,23/06/2023,342.40
"Communities, Customer & Commercial Services",Sport & Leisure,Employees,Agency Supply Costs,TOTAL CATERING SOLUTONS RECRUITMENT LTD,23/06/2023,273.92
"Communities, Customer & Commercial Services",Sport & Leisure,Employees,Agency Supply Costs,TOTAL CATERING SOLUTONS RECRUITMENT LTD,23/06/2023,273.92
"Communities, Customer & Commercial Services",Sport & Leisure,Employees,Agency Supply Costs,TOTAL CATERING SOLUTONS RECRUITMENT LTD,23/06/2023,273.93
"Communities, Customer & Commercial Services",Sport & Leisure,Employees,Agency Supply Costs,TOTAL CATERING SOLUTONS RECRUITMENT LTD,29/06/2023,342.40
"Communities, Customer & Commercial Services",Sport & Leisure,Employees,Agency Supply Costs,TOTAL CATERING SOLUTONS RECRUITMENT LTD,29/06/2023,273.92
"Communities, Customer & Commercial Services",Sport & Leisure,Premises-Related Expenditure,Clean Mats & Toilet Requisites,Border Janitorial Supplies Limited,14/06/2023,121.80
"Communities, Customer & Commercial Services",Sport & Leisure,Premises-Related Expenditure,Clean Mats & Toilet Requisites,Border Janitorial Supplies Limited,13/06/2023,271.16
"Communities, Customer & Commercial Services",Sport & Leisure,Premises-Related Expenditure,Clean Mats & Toilet Requisites,Border Janitorial Supplies Limited,13/06/2023,212.83
"Communities, Customer & Commercial Services",Sport & Leisure,Premises-Related Expenditure,Clean Mats & Toilet Requisites,Border Janitorial Supplies Limited,15/06/2023,144.60
"Communities, Customer & Commercial Services",Sport & Leisure,Premises-Related Expenditure,Clean Mats & Toilet Requisites,Border Janitorial Supplies Limited,29/06/2023,354.80
"Communities, Customer & Commercial Services",Sport & Leisure,Premises-Related Expenditure,Clean Mats & Toilet Requisites,Border Janitorial Supplies Limited,05/06/2023,102.05
"Communities, Customer & Commercial Services",Sport & Leisure,Premises-Related Expenditure,Clean Mats & Toilet Requisites,Border Janitorial Supplies Limited,20/06/2023,119.89
"Communities, Customer & Commercial Services",Sport & Leisure,Premises-Related Expenditure,Clean Mats & Toilet Requisites,Border Janitorial Supplies Limited,20/06/2023,127.56
"Communities, Customer & Commercial Services",Sport & Leisure,Premises-Related Expenditure,Clean Mats & Toilet Requisites,Border Janitorial Supplies Limited,20/06/2023,342.01
"Communities, Customer & Commercial Services",Sport & Leisure,Premises-Related Expenditure,Clean Mats & Toilet Requisites,Border Janitorial Supplies Limited,27/06/2023,181.52
"Communities, Customer & Commercial Services",Sport & Leisure,Premises-Related Expenditure,Clean Mats & Toilet Requisites,Border Janitorial Supplies Limited,27/06/2023,171.13
"Communities, Customer & Commercial Services",Sport & Leisure,Premises-Related Expenditure,Clean Mats & Toilet Requisites,Border Janitorial Supplies Limited,27/06/2023,315.52
"Communities, Customer & Commercial Services",Sport & Leisure,Premises-Related Expenditure,Clean Mats & Toilet Requisites,Border Janitorial Supplies Limited,23/06/2023,135.21
"Communities, Customer & Commercial Services",Sport & Leisure,Premises-Related Expenditure,Clean Mats & Toilet Requisites,On A Roll,05/06/2023,258.20
"Communities, Customer & Commercial Services",Sport & Leisure,Premises-Related Expenditure,Clean Mats & Toilet Requisites,On A Roll,05/06/2023,159.31
"Communities, Customer & Commercial Services",Sport & Leisure,Supplies & Services,Crockery/Hardware/Light Equip,Border Janitorial Supplies Limited,05/06/2023,142.56
"Communities, Customer & Commercial Services",Sport & Leisure,Supplies & Services,Crockery/Hardware/Light Equip,Border Janitorial Supplies Limited,05/06/2023,151.05
"Communities, Customer & Commercial Services",Sport & Leisure,Supplies & Services,Crockery/Hardware/Light Equip,CALTEL CATERING & LAUNDRY EQUIPMENT LLP,08/06/2023,424.00
"Communities, Customer & Commercial Services",Sport & Leisure,Supplies & Services,Provisions,BIKOLD,09/06/2023,534.79
"Communities, Customer & Commercial Services",Sport & Leisure,Supplies & Services,Provisions,BIKOLD,09/06/2023,171.86
"Communities, Customer & Commercial Services",Sport & Leisure,Supplies & Services,Provisions,BIKOLD,09/06/2023,150.14
"Communities, Customer & Commercial Services",Sport & Leisure,Supplies & Services,Provisions,BIKOLD,09/06/2023,280.24
"Communities, Customer & Commercial Services",Sport & Leisure,Supplies & Services,Provisions,BIKOLD,09/06/2023,292.72
"Communities, Customer & Commercial Services",Sport & Leisure,Supplies & Services,Provisions,BIKOLD,09/06/2023,617.11
"Communities, Customer & Commercial Services",Sport & Leisure,Supplies & Services,Provisions,BIKOLD,09/06/2023,338.79
"Communities, Customer & Commercial Services",Sport & Leisure,Supplies & Services,Provisions,BIKOLD,09/06/2023,446.52
"Communities, Customer & Commercial Services",Sport & Leisure,Supplies & Services,Provisions,BIKOLD,09/06/2023,408.28
"Communities, Customer & Commercial Services",Sport & Leisure,Supplies & Services,Provisions,BIKOLD,09/06/2023,237.63
"Communities, Customer & Commercial Services",Sport & Leisure,Supplies & Services,Provisions,BIKOLD,09/06/2023,219.19
"Communities, Customer & Commercial Services",Sport & Leisure,Supplies & Services,Provisions,BIKOLD,09/06/2023,107.82
"Communities, Customer & Commercial Services",Sport & Leisure,Supplies & Services,Provisions,BIKOLD,09/06/2023,169.92
"Communities, Customer & Commercial Services",Sport & Leisure,Supplies & Services,Provisions,BIKOLD,09/06/2023,114.53
"Communities, Customer & Commercial Services",Sport & Leisure,Supplies & Services,Provisions,BIKOLD,09/06/2023,213.94
"Communities, Customer & Commercial Services",Sport & Leisure,Supplies & Services,Provisions,BIKOLD,09/06/2023,352.11
"Communities, Customer & Commercial Services",Sport & Leisure,Supplies & Services,Provisions,BIKOLD,09/06/2023,490.50
"Communities, Customer & Commercial Services",Sport & Leisure,Supplies & Services,Provisions,BIKOLD,09/06/2023,277.96
"Communities, Customer & Commercial Services",Sport & Leisure,Supplies & Services,Provisions,BIKOLD,09/06/2023,411.75
"Communities, Customer & Commercial Services",Sport & Leisure,Supplies & Services,Provisions,BIKOLD,09/06/2023,611.60
"Communities, Customer & Commercial Services",Sport & Leisure,Supplies & Services,Provisions,BIKOLD,09/06/2023,169.92
"Communities, Customer & Commercial Services",Sport & Leisure,Supplies & Services,Provisions,BIKOLD,09/06/2023,151.39
"Communities, Customer & Commercial Services",Sport & Leisure,Supplies & Services,Provisions,BIKOLD,02/06/2023,102.61
"Communities, Customer & Commercial Services",Sport & Leisure,Supplies & Services,Provisions,BIKOLD,09/06/2023,114.60
"Communities, Customer & Commercial Services",Sport & Leisure,Supplies & Services,Provisions,BIKOLD,09/06/2023,385.14
"Communities, Customer & Commercial Services",Sport & Leisure,Supplies & Services,Provisions,BIKOLD,09/06/2023,244.45
"Communities, Customer & Commercial Services",Sport & Leisure,Supplies & Services,Provisions,BIKOLD,09/06/2023,133.09
"Communities, Customer & Commercial Services",Sport & Leisure,Supplies & Services,Provisions,BIKOLD,09/06/2023,134.00
"Communities, Customer & Commercial Services",Sport & Leisure,Supplies & Services,Provisions,BIKOLD,09/06/2023,124.49
"Communities, Customer & Commercial Services",Sport & Leisure,Supplies & Services,Provisions,BIKOLD,09/06/2023,210.28
"Communities, Customer & Commercial Services",Sport & Leisure,Supplies & Services,Provisions,BIKOLD,09/06/2023,117.20
"Communities, Customer & Commercial Services",Sport & Leisure,Supplies & Services,Provisions,BIKOLD,16/06/2023,118.18
"Communities, Customer & Commercial Services",Sport & Leisure,Supplies & Services,Provisions,BIKOLD,16/06/2023,130.17
"Communities, Customer & Commercial Services",Sport & Leisure,Supplies & Services,Provisions,BIKOLD,16/06/2023,205.25
"Communities, Customer & Commercial Services",Sport & Leisure,Supplies & Services,Provisions,BIKOLD,16/06/2023,113.46
"Communities, Customer & Commercial Services",Sport & Leisure,Supplies & Services,Provisions,BIKOLD,16/06/2023,441.33
"Communities, Customer & Commercial Services",Sport & Leisure,Supplies & Services,Provisions,BIKOLD,16/06/2023,104.50
"Communities, Customer & Commercial Services",Sport & Leisure,Supplies & Services,Provisions,BIKOLD,16/06/2023,307.97
"Communities, Customer & Commercial Services",Sport & Leisure,Supplies & Services,Provisions,BIKOLD,16/06/2023,181.40
"Communities, Customer & Commercial Services",Sport & Leisure,Supplies & Services,Provisions,BIKOLD,09/06/2023,145.14
"Communities, Customer & Commercial Services",Sport & Leisure,Supplies & Services,Provisions,BIKOLD,09/06/2023,164.83
"Communities, Customer & Commercial Services",Sport & Leisure,Supplies & Services,Provisions,BIKOLD,09/06/2023,197.78
"Communities, Customer & Commercial Services",Sport & Leisure,Supplies & Services,Provisions,BIKOLD,09/06/2023,199.02
"Communities, Customer & Commercial Services",Sport & Leisure,Supplies & Services,Provisions,BIKOLD,09/06/2023,110.50
"Communities, Customer & Commercial Services",Sport & Leisure,Supplies & Services,Provisions,BIKOLD,09/06/2023,588.72
"Communities, Customer & Commercial Services",Sport & Leisure,Supplies & Services,Provisions,BIKOLD,09/06/2023,146.89
"Communities, Customer & Commercial Services",Sport & Leisure,Supplies & Services,Provisions,BIKOLD,09/06/2023,311.39
"Communities, Customer & Commercial Services",Sport & Leisure,Supplies & Services,Provisions,BIKOLD,09/06/2023,249.82
"Communities, Customer & Commercial Services",Sport & Leisure,Supplies & Services,Provisions,BIKOLD,09/06/2023,192.80
"Communities, Customer & Commercial Services",Sport & Leisure,Supplies & Services,Provisions,BIKOLD,09/06/2023,182.34
"Communities, Customer & Commercial Services",Sport & Leisure,Supplies & Services,Provisions,BIKOLD,09/06/2023,139.48
"Communities, Customer & Commercial Services",Sport & Leisure,Supplies & Services,Provisions,BIKOLD,09/06/2023,157.91
"Communities, Customer & Commercial Services",Sport & Leisure,Supplies & Services,Provisions,BIKOLD,09/06/2023,270.99
"Communities, Customer & Commercial Services",Sport & Leisure,Supplies & Services,Provisions,BIKOLD,09/06/2023,291.59
"Communities, Customer & Commercial Services",Sport & Leisure,Supplies & Services,Provisions,BIKOLD,09/06/2023,158.60
"Communities, Customer & Commercial Services",Sport & Leisure,Supplies & Services,Provisions,BIKOLD,09/06/2023,195.35
"Communities, Customer & Commercial Services",Sport & Leisure,Supplies & Services,Provisions,BIKOLD,16/06/2023,260.96
"Communities, Customer & Commercial Services",Sport & Leisure,Supplies & Services,Provisions,BIKOLD,09/06/2023,141.60
"Communities, Customer & Commercial Services",Sport & Leisure,Supplies & Services,Provisions,BIKOLD,09/06/2023,376.56
"Communities, Customer & Commercial Services",Sport & Leisure,Supplies & Services,Provisions,BIKOLD,09/06/2023,165.71
"Communities, Customer & Commercial Services",Sport & Leisure,Supplies & Services,Provisions,BIKOLD,09/06/2023,137.00
"Communities, Customer & Commercial Services",Sport & Leisure,Supplies & Services,Provisions,BIKOLD,09/06/2023,110.11
"Communities, Customer & Commercial Services",Sport & Leisure,Supplies & Services,Provisions,BIKOLD,09/06/2023,129.98
"Communities, Customer & Commercial Services",Sport & Leisure,Supplies & Services,Provisions,BIKOLD,09/06/2023,190.81
"Communities, Customer & Commercial Services",Sport & Leisure,Supplies & Services,Provisions,BIKOLD,09/06/2023,138.43
"Communities, Customer & Commercial Services",Sport & Leisure,Supplies & Services,Provisions,BIKOLD,02/06/2023,311.69
"Communities, Customer & Commercial Services",Sport & Leisure,Supplies & Services,Provisions,BIKOLD,16/06/2023,392.87
"Communities, Customer & Commercial Services",Sport & Leisure,Supplies & Services,Provisions,BIKOLD,16/06/2023,496.56
"Communities, Customer & Commercial Services",Sport & Leisure,Supplies & Services,Provisions,BIKOLD,16/06/2023,238.90
"Communities, Customer & Commercial Services",Sport & Leisure,Supplies & Services,Provisions,BIKOLD,16/06/2023,262.66
"Communities, Customer & Commercial Services",Sport & Leisure,Supplies & Services,Provisions,BIKOLD,16/06/2023,407.62
"Communities, Customer & Commercial Services",Sport & Leisure,Supplies & Services,Provisions,BIKOLD,16/06/2023,216.63
"Communities, Customer & Commercial Services",Sport & Leisure,Supplies & Services,Provisions,BIKOLD,16/06/2023,387.75
"Communities, Customer & Commercial Services",Sport & Leisure,Supplies & Services,Provisions,BIKOLD,16/06/2023,341.70
"Communities, Customer & Commercial Services",Sport & Leisure,Supplies & Services,Provisions,BIKOLD,16/06/2023,568.81
"Communities, Customer & Commercial Services",Sport & Leisure,Supplies & Services,Provisions,BIKOLD,16/06/2023,131.78
"Communities, Customer & Commercial Services",Sport & Leisure,Supplies & Services,Provisions,BIKOLD,16/06/2023,195.33
"Communities, Customer & Commercial Services",Sport & Leisure,Supplies & Services,Provisions,BIKOLD,16/06/2023,200.59
"Communities, Customer & Commercial Services",Sport & Leisure,Supplies & Services,Provisions,BIKOLD,16/06/2023,394.40
"Communities, Customer & Commercial Services",Sport & Leisure,Supplies & Services,Provisions,BIKOLD,16/06/2023,289.77
"Communities, Customer & Commercial Services",Sport & Leisure,Supplies & Services,Provisions,BIKOLD,16/06/2023,182.24
"Communities, Customer & Commercial Services",Sport & Leisure,Supplies & Services,Provisions,BIKOLD,16/06/2023,499.42
"Communities, Customer & Commercial Services",Sport & Leisure,Supplies & Services,Provisions,BIKOLD,16/06/2023,302.81
"Communities, Customer & Commercial Services",Sport & Leisure,Supplies & Services,Provisions,BIKOLD,16/06/2023,122.44
"Communities, Customer & Commercial Services",Sport & Leisure,Supplies & Services,Provisions,BIKOLD,16/06/2023,232.47
"Communities, Customer & Commercial Services",Sport & Leisure,Supplies & Services,Provisions,BIKOLD,16/06/2023,118.38
"Communities, Customer & Commercial Services",Sport & Leisure,Supplies & Services,Provisions,BIKOLD,16/06/2023,191.71
"Communities, Customer & Commercial Services",Sport & Leisure,Supplies & Services,Provisions,BIKOLD,16/06/2023,174.68
"Communities, Customer & Commercial Services",Sport & Leisure,Supplies & Services,Provisions,BIKOLD,16/06/2023,366.14
"Communities, Customer & Commercial Services",Sport & Leisure,Supplies & Services,Provisions,BIKOLD,16/06/2023,113.39
"Communities, Customer & Commercial Services",Sport & Leisure,Supplies & Services,Provisions,BIKOLD,16/06/2023,445.63
"Communities, Customer & Commercial Services",Sport & Leisure,Supplies & Services,Provisions,BIKOLD,16/06/2023,186.75
"Communities, Customer & Commercial Services",Sport & Leisure,Supplies & Services,Provisions,BIKOLD,16/06/2023,133.60
"Communities, Customer & Commercial Services",Sport & Leisure,Supplies & Services,Provisions,BIKOLD,16/06/2023,183.79
"Communities, Customer & Commercial Services",Sport & Leisure,Supplies & Services,Provisions,BIKOLD,16/06/2023,106.34
"Communities, Customer & Commercial Services",Sport & Leisure,Supplies & Services,Provisions,BIKOLD,16/06/2023,214.50
"Communities, Customer & Commercial Services",Sport & Leisure,Supplies & Services,Provisions,BIKOLD,09/06/2023,320.93
"Communities, Customer & Commercial Services",Sport & Leisure,Supplies & Services,Provisions,BIKOLD,09/06/2023,231.40
"Communities, Customer & Commercial Services",Sport & Leisure,Supplies & Services,Provisions,BIKOLD,09/06/2023,118.93
"Communities, Customer & Commercial Services",Sport & Leisure,Supplies & Services,Provisions,BIKOLD,09/06/2023,163.44
"Communities, Customer & Commercial Services",Sport & Leisure,Supplies & Services,Provisions,BIKOLD,09/06/2023,161.94
"Communities, Customer & Commercial Services",Sport & Leisure,Supplies & Services,Provisions,BIKOLD,09/06/2023,202.01
"Communities, Customer & Commercial Services",Sport & Leisure,Supplies & Services,Provisions,BIKOLD,09/06/2023,119.86
"Communities, Customer & Commercial Services",Sport & Leisure,Supplies & Services,Provisions,BIKOLD,09/06/2023,146.99
"Communities, Customer & Commercial Services",Sport & Leisure,Supplies & Services,Provisions,BIKOLD,09/06/2023,215.55
"Communities, Customer & Commercial Services",Sport & Leisure,Supplies & Services,Provisions,BIKOLD,16/06/2023,305.10
"Communities, Customer & Commercial Services",Sport & Leisure,Supplies & Services,Provisions,BIKOLD,16/06/2023,154.17
"Communities, Customer & Commercial Services",Sport & Leisure,Supplies & Services,Provisions,BIKOLD,16/06/2023,252.98
"Communities, Customer & Commercial Services",Sport & Leisure,Supplies & Services,Provisions,BIKOLD,09/06/2023,332.38
"Communities, Customer & Commercial Services",Sport & Leisure,Supplies & Services,Provisions,BIKOLD,09/06/2023,204.11
"Communities, Customer & Commercial Services",Sport & Leisure,Supplies & Services,Provisions,BIKOLD,09/06/2023,243.90
"Communities, Customer & Commercial Services",Sport & Leisure,Supplies & Services,Provisions,BIKOLD,09/06/2023,171.32
"Communities, Customer & Commercial Services",Sport & Leisure,Supplies & Services,Provisions,BIKOLD,16/06/2023,312.91
"Communities, Customer & Commercial Services",Sport & Leisure,Supplies & Services,Provisions,BIKOLD,16/06/2023,160.71
"Communities, Customer & Commercial Services",Sport & Leisure,Supplies & Services,Provisions,BIKOLD,16/06/2023,260.29
"Communities, Customer & Commercial Services",Sport & Leisure,Supplies & Services,Provisions,BIKOLD,16/06/2023,173.33
"Communities, Customer & Commercial Services",Sport & Leisure,Supplies & Services,Provisions,BIKOLD,09/06/2023,319.00
"Communities, Customer & Commercial Services",Sport & Leisure,Supplies & Services,Provisions,BIKOLD,09/06/2023,264.10
"Communities, Customer & Commercial Services",Sport & Leisure,Supplies & Services,Provisions,BIKOLD,09/06/2023,292.29
"Communities, Customer & Commercial Services",Sport & Leisure,Supplies & Services,Provisions,BIKOLD,09/06/2023,354.44
"Communities, Customer & Commercial Services",Sport & Leisure,Supplies & Services,Provisions,BIKOLD,09/06/2023,310.25
"Communities, Customer & Commercial Services",Sport & Leisure,Supplies & Services,Provisions,BIKOLD,09/06/2023,127.59
"Communities, Customer & Commercial Services",Sport & Leisure,Supplies & Services,Provisions,BIKOLD,16/06/2023,141.74
"Communities, Customer & Commercial Services",Sport & Leisure,Supplies & Services,Provisions,BIKOLD,16/06/2023,704.30
"Communities, Customer & Commercial Services",Sport & Leisure,Supplies & Services,Provisions,BIKOLD,16/06/2023,227.94
"Communities, Customer & Commercial Services",Sport & Leisure,Supplies & Services,Provisions,BIKOLD,16/06/2023,394.32
"Communities, Customer & Commercial Services",Sport & Leisure,Supplies & Services,Provisions,BIKOLD,16/06/2023,372.06
"Communities, Customer & Commercial Services",Sport & Leisure,Supplies & Services,Provisions,BIKOLD,16/06/2023,240.61
"Communities, Customer & Commercial Services",Sport & Leisure,Supplies & Services,Provisions,BIKOLD,16/06/2023,103.24
"Communities, Customer & Commercial Services",Sport & Leisure,Supplies & Services,Provisions,BIKOLD,16/06/2023,119.39
"Communities, Customer & Commercial Services",Sport & Leisure,Supplies & Services,Provisions,BIKOLD,16/06/2023,109.24
"Communities, Customer & Commercial Services",Sport & Leisure,Supplies & Services,Provisions,BIKOLD,16/06/2023,116.32
"Communities, Customer & Commercial Services",Sport & Leisure,Supplies & Services,Provisions,BIKOLD,16/06/2023,123.87
"Communities, Customer & Commercial Services",Sport & Leisure,Supplies & Services,Provisions,BIKOLD,09/06/2023,117.14
"Communities, Customer & Commercial Services",Sport & Leisure,Supplies & Services,Provisions,BIKOLD,09/06/2023,110.20
"Communities, Customer & Commercial Services",Sport & Leisure,Supplies & Services,Provisions,BIKOLD,09/06/2023,100.60
"Communities, Customer & Commercial Services",Sport & Leisure,Supplies & Services,Provisions,BIKOLD,09/06/2023,336.86
"Communities, Customer & Commercial Services",Sport & Leisure,Supplies & Services,Provisions,BIKOLD,09/06/2023,340.82
"Communities, Customer & Commercial Services",Sport & Leisure,Supplies & Services,Provisions,BIKOLD,09/06/2023,451.11
"Communities, Customer & Commercial Services",Sport & Leisure,Supplies & Services,Provisions,BIKOLD,16/06/2023,102.15
"Communities, Customer & Commercial Services",Sport & Leisure,Supplies & Services,Provisions,BIKOLD,16/06/2023,209.12
"Communities, Customer & Commercial Services",Sport & Leisure,Supplies & Services,Provisions,BIKOLD,16/06/2023,520.51
"Communities, Customer & Commercial Services",Sport & Leisure,Supplies & Services,Provisions,BIKOLD,16/06/2023,285.41
"Communities, Customer & Commercial Services",Sport & Leisure,Supplies & Services,Provisions,BIKOLD,16/06/2023,433.67
"Communities, Customer & Commercial Services",Sport & Leisure,Supplies & Services,Provisions,BIKOLD,16/06/2023,283.49
"Communities, Customer & Commercial Services",Sport & Leisure,Supplies & Services,Provisions,BIKOLD,16/06/2023,544.24
"Communities, Customer & Commercial Services",Sport & Leisure,Supplies & Services,Provisions,BIKOLD,16/06/2023,261.56
"Communities, Customer & Commercial Services",Sport & Leisure,Supplies & Services,Provisions,BIKOLD,09/06/2023,286.34
"Communities, Customer & Commercial Services",Sport & Leisure,Supplies & Services,Provisions,BIKOLD,09/06/2023,118.04
"Communities, Customer & Commercial Services",Sport & Leisure,Supplies & Services,Provisions,BIKOLD,09/06/2023,167.74
"Communities, Customer & Commercial Services",Sport & Leisure,Supplies & Services,Provisions,BIKOLD,09/06/2023,151.23
"Communities, Customer & Commercial Services",Sport & Leisure,Supplies & Services,Provisions,BIKOLD,09/06/2023,239.65
"Communities, Customer & Commercial Services",Sport & Leisure,Supplies & Services,Provisions,BIKOLD,29/06/2023,407.90
"Communities, Customer & Commercial Services",Sport & Leisure,Supplies & Services,Provisions,BIKOLD,29/06/2023,399.56
"Communities, Customer & Commercial Services",Sport & Leisure,Supplies & Services,Provisions,BIKOLD,29/06/2023,231.31
"Communities, Customer & Commercial Services",Sport & Leisure,Supplies & Services,Provisions,BIKOLD,29/06/2023,322.53
"Communities, Customer & Commercial Services",Sport & Leisure,Supplies & Services,Provisions,BIKOLD,29/06/2023,192.40
"Communities, Customer & Commercial Services",Sport & Leisure,Supplies & Services,Provisions,BIKOLD,29/06/2023,236.91
"Communities, Customer & Commercial Services",Sport & Leisure,Supplies & Services,Provisions,BIKOLD,29/06/2023,275.03
"Communities, Customer & Commercial Services",Sport & Leisure,Supplies & Services,Provisions,BIKOLD,29/06/2023,403.04
"Communities, Customer & Commercial Services",Sport & Leisure,Supplies & Services,Provisions,BIKOLD,29/06/2023,124.50
"Communities, Customer & Commercial Services",Sport & Leisure,Supplies & Services,Provisions,BIKOLD,09/06/2023,318.42
"Communities, Customer & Commercial Services",Sport & Leisure,Supplies & Services,Provisions,BIKOLD,09/06/2023,134.69
"Communities, Customer & Commercial Services",Sport & Leisure,Supplies & Services,Provisions,BIKOLD,09/06/2023,588.08
"Communities, Customer & Commercial Services",Sport & Leisure,Supplies & Services,Provisions,BIKOLD,09/06/2023,190.68
"Communities, Customer & Commercial Services",Sport & Leisure,Supplies & Services,Provisions,BIKOLD,09/06/2023,182.82
"Communities, Customer & Commercial Services",Sport & Leisure,Supplies & Services,Provisions,BIKOLD,09/06/2023,141.42
"Communities, Customer & Commercial Services",Sport & Leisure,Supplies & Services,Provisions,BIKOLD,09/06/2023,118.12
"Communities, Customer & Commercial Services",Sport & Leisure,Supplies & Services,Provisions,BIKOLD,29/06/2023,108.92
"Communities, Customer & Commercial Services",Sport & Leisure,Supplies & Services,Provisions,BIKOLD,09/06/2023,834.33
"Communities, Customer & Commercial Services",Sport & Leisure,Supplies & Services,Provisions,BIKOLD,09/06/2023,448.15
"Communities, Customer & Commercial Services",Sport & Leisure,Supplies & Services,Provisions,BIKOLD,09/06/2023,104.87
"Communities, Customer & Commercial Services",Sport & Leisure,Supplies & Services,Provisions,BIKOLD,09/06/2023,263.64
"Communities, Customer & Commercial Services",Sport & Leisure,Supplies & Services,Provisions,BIKOLD,09/06/2023,298.41
"Communities, Customer & Commercial Services",Sport & Leisure,Supplies & Services,Provisions,BIKOLD,09/06/2023,100.10
"Communities, Customer & Commercial Services",Sport & Leisure,Supplies & Services,Provisions,BIKOLD,09/06/2023,517.60
"Communities, Customer & Commercial Services",Sport & Leisure,Supplies & Services,Provisions,BIKOLD,29/06/2023,134.60
"Communities, Customer & Commercial Services",Sport & Leisure,Supplies & Services,Provisions,BIKOLD,29/06/2023,280.21
"Communities, Customer & Commercial Services",Sport & Leisure,Supplies & Services,Provisions,BIKOLD,09/06/2023,128.20
"Communities, Customer & Commercial Services",Sport & Leisure,Supplies & Services,Provisions,BIKOLD,09/06/2023,140.59
"Communities, Customer & Commercial Services",Sport & Leisure,Supplies & Services,Provisions,BIKOLD,09/06/2023,293.72
"Communities, Customer & Commercial Services",Sport & Leisure,Supplies & Services,Provisions,BIKOLD,09/06/2023,134.96
"Communities, Customer & Commercial Services",Sport & Leisure,Supplies & Services,Provisions,BIKOLD,09/06/2023,202.98
"Communities, Customer & Commercial Services",Sport & Leisure,Supplies & Services,Provisions,BIKOLD,09/06/2023,434.91
"Communities, Customer & Commercial Services",Sport & Leisure,Supplies & Services,Provisions,BIKOLD,09/06/2023,465.48
"Communities, Customer & Commercial Services",Sport & Leisure,Supplies & Services,Provisions,BIKOLD,09/06/2023,214.83
"Communities, Customer & Commercial Services",Sport & Leisure,Supplies & Services,Provisions,BIKOLD,09/06/2023,111.32
"Communities, Customer & Commercial Services",Sport & Leisure,Supplies & Services,Provisions,BIKOLD,09/06/2023,172.86
"Communities, Customer & Commercial Services",Sport & Leisure,Supplies & Services,Provisions,BIKOLD,09/06/2023,237.68
"Communities, Customer & Commercial Services",Sport & Leisure,Supplies & Services,Provisions,BIKOLD,09/06/2023,115.47
"Communities, Customer & Commercial Services",Sport & Leisure,Supplies & Services,Provisions,BIKOLD,09/06/2023,112.17
"Communities, Customer & Commercial Services",Sport & Leisure,Supplies & Services,Provisions,BIKOLD,29/06/2023,182.18
"Communities, Customer & Commercial Services",Sport & Leisure,Supplies & Services,Provisions,BIKOLD,29/06/2023,391.26
"Communities, Customer & Commercial Services",Sport & Leisure,Supplies & Services,Provisions,BIKOLD,29/06/2023,409.88
"Communities, Customer & Commercial Services",Sport & Leisure,Supplies & Services,Provisions,BIKOLD,09/06/2023,283.37
"Communities, Customer & Commercial Services",Sport & Leisure,Supplies & Services,Provisions,BIKOLD,09/06/2023,174.58
"Communities, Customer & Commercial Services",Sport & Leisure,Supplies & Services,Provisions,BIKOLD,29/06/2023,293.00
"Communities, Customer & Commercial Services",Sport & Leisure,Supplies & Services,Provisions,BIKOLD,29/06/2023,223.13
"Communities, Customer & Commercial Services",Sport & Leisure,Supplies & Services,Provisions,BIKOLD,29/06/2023,270.64
"Communities, Customer & Commercial Services",Sport & Leisure,Supplies & Services,Provisions,BIKOLD,29/06/2023,195.24
"Communities, Customer & Commercial Services",Sport & Leisure,Supplies & Services,Provisions,BIKOLD,29/06/2023,436.86
"Communities, Customer & Commercial Services",Sport & Leisure,Supplies & Services,Provisions,BIKOLD,29/06/2023,360.87
"Communities, Customer & Commercial Services",Sport & Leisure,Supplies & Services,Provisions,BIKOLD,09/06/2023,102.42
"Communities, Customer & Commercial Services",Sport & Leisure,Supplies & Services,Provisions,BIKOLD,09/06/2023,120.45
"Communities, Customer & Commercial Services",Sport & Leisure,Supplies & Services,Provisions,BIKOLD,09/06/2023,113.31
"Communities, Customer & Commercial Services",Sport & Leisure,Supplies & Services,Provisions,BIKOLD,29/06/2023,105.01
"Communities, Customer & Commercial Services",Sport & Leisure,Supplies & Services,Provisions,BIKOLD,29/06/2023,402.18
"Communities, Customer & Commercial Services",Sport & Leisure,Supplies & Services,Provisions,BIKOLD,09/06/2023,117.72
"Communities, Customer & Commercial Services",Sport & Leisure,Supplies & Services,Provisions,BIKOLD,16/06/2023,357.53
"Communities, Customer & Commercial Services",Sport & Leisure,Supplies & Services,Provisions,BIKOLD,16/06/2023,221.09
"Communities, Customer & Commercial Services",Sport & Leisure,Supplies & Services,Provisions,BIKOLD,16/06/2023,316.91
"Communities, Customer & Commercial Services",Sport & Leisure,Supplies & Services,Provisions,BIKOLD,16/06/2023,230.96
"Communities, Customer & Commercial Services",Sport & Leisure,Supplies & Services,Provisions,BIKOLD,16/06/2023,367.92
"Communities, Customer & Commercial Services",Sport & Leisure,Supplies & Services,Provisions,BIKOLD,16/06/2023,149.39
"Communities, Customer & Commercial Services",Sport & Leisure,Supplies & Services,Provisions,BIKOLD,29/06/2023,262.51
"Communities, Customer & Commercial Services",Sport & Leisure,Supplies & Services,Provisions,BIKOLD,29/06/2023,210.97
"Communities, Customer & Commercial Services",Sport & Leisure,Supplies & Services,Provisions,BIKOLD,29/06/2023,236.71
"Communities, Customer & Commercial Services",Sport & Leisure,Supplies & Services,Provisions,BIKOLD,16/06/2023,250.79
"Communities, Customer & Commercial Services",Sport & Leisure,Supplies & Services,Provisions,BIKOLD,16/06/2023,244.46
"Communities, Customer & Commercial Services",Sport & Leisure,Supplies & Services,Provisions,BIKOLD,16/06/2023,410.09
"Communities, Customer & Commercial Services",Sport & Leisure,Supplies & Services,Provisions,BIKOLD,29/06/2023,102.88
"Communities, Customer & Commercial Services",Sport & Leisure,Supplies & Services,Provisions,BIKOLD,29/06/2023,321.71
"Communities, Customer & Commercial Services",Sport & Leisure,Supplies & Services,Provisions,BIKOLD,29/06/2023,104.68
"Communities, Customer & Commercial Services",Sport & Leisure,Supplies & Services,Provisions,BIKOLD,29/06/2023,125.94
"Communities, Customer & Commercial Services",Sport & Leisure,Supplies & Services,Provisions,BIKOLD,16/06/2023,169.30
"Communities, Customer & Commercial Services",Sport & Leisure,Supplies & Services,Provisions,BIKOLD,16/06/2023,226.41
"Communities, Customer & Commercial Services",Sport & Leisure,Supplies & Services,Provisions,BIKOLD,16/06/2023,214.86
"Communities, Customer & Commercial Services",Sport & Leisure,Supplies & Services,Provisions,BIKOLD,16/06/2023,145.85
"Communities, Customer & Commercial Services",Sport & Leisure,Supplies & Services,Provisions,BIKOLD,16/06/2023,151.02
"Communities, Customer & Commercial Services",Sport & Leisure,Supplies & Services,Provisions,BIKOLD,16/06/2023,245.49
"Communities, Customer & Commercial Services",Sport & Leisure,Supplies & Services,Provisions,BIKOLD,16/06/2023,124.62
"Communities, Customer & Commercial Services",Sport & Leisure,Supplies & Services,Provisions,BIKOLD,16/06/2023,169.66
"Communities, Customer & Commercial Services",Sport & Leisure,Supplies & Services,Provisions,BIKOLD,16/06/2023,275.77
"Communities, Customer & Commercial Services",Sport & Leisure,Supplies & Services,Provisions,BIKOLD,16/06/2023,171.48
"Communities, Customer & Commercial Services",Sport & Leisure,Supplies & Services,Provisions,BIKOLD,16/06/2023,428.96
"Communities, Customer & Commercial Services",Sport & Leisure,Supplies & Services,Provisions,BIKOLD,16/06/2023,319.86
"Communities, Customer & Commercial Services",Sport & Leisure,Supplies & Services,Provisions,BIKOLD,16/06/2023,175.47
"Communities, Customer & Commercial Services",Sport & Leisure,Supplies & Services,Provisions,BIKOLD,16/06/2023,139.96
"Communities, Customer & Commercial Services",Sport & Leisure,Supplies & Services,Provisions,BIKOLD,16/06/2023,275.19
"Communities, Customer & Commercial Services",Sport & Leisure,Supplies & Services,Provisions,BIKOLD,29/06/2023,477.06
"Communities, Customer & Commercial Services",Sport & Leisure,Supplies & Services,Provisions,BIKOLD,16/06/2023,122.47
"Communities, Customer & Commercial Services",Sport & Leisure,Supplies & Services,Provisions,BIKOLD,16/06/2023,231.71
"Communities, Customer & Commercial Services",Sport & Leisure,Supplies & Services,Provisions,BIKOLD,16/06/2023,124.78
"Communities, Customer & Commercial Services",Sport & Leisure,Supplies & Services,Provisions,BIKOLD,16/06/2023,123.66
"Communities, Customer & Commercial Services",Sport & Leisure,Supplies & Services,Provisions,BIKOLD,16/06/2023,110.04
"Communities, Customer & Commercial Services",Sport & Leisure,Supplies & Services,Provisions,BIKOLD,16/06/2023,102.32
"Communities, Customer & Commercial Services",Sport & Leisure,Supplies & Services,Provisions,BIKOLD,16/06/2023,159.41
"Communities, Customer & Commercial Services",Sport & Leisure,Supplies & Services,Provisions,BIKOLD,16/06/2023,123.45
"Communities, Customer & Commercial Services",Sport & Leisure,Supplies & Services,Provisions,BIKOLD,16/06/2023,140.04
"Communities, Customer & Commercial Services",Sport & Leisure,Supplies & Services,Provisions,BIKOLD,16/06/2023,192.52
"Communities, Customer & Commercial Services",Sport & Leisure,Supplies & Services,Provisions,BIKOLD,16/06/2023,440.19
"Communities, Customer & Commercial Services",Sport & Leisure,Supplies & Services,Provisions,BIKOLD,16/06/2023,160.60
"Communities, Customer & Commercial Services",Sport & Leisure,Supplies & Services,Provisions,BIKOLD,16/06/2023,125.43
"Communities, Customer & Commercial Services",Sport & Leisure,Supplies & Services,Provisions,BIKOLD,16/06/2023,183.84
"Communities, Customer & Commercial Services",Sport & Leisure,Supplies & Services,Provisions,BIKOLD,16/06/2023,122.46
"Communities, Customer & Commercial Services",Sport & Leisure,Supplies & Services,Provisions,BIKOLD,29/06/2023,256.04
"Communities, Customer & Commercial Services",Sport & Leisure,Supplies & Services,Provisions,BIKOLD,29/06/2023,215.53
"Communities, Customer & Commercial Services",Sport & Leisure,Supplies & Services,Provisions,BIKOLD,29/06/2023,125.21
"Communities, Customer & Commercial Services",Sport & Leisure,Supplies & Services,Provisions,BIKOLD,29/06/2023,191.19
"Communities, Customer & Commercial Services",Sport & Leisure,Supplies & Services,Provisions,BIKOLD,29/06/2023,273.09
"Communities, Customer & Commercial Services",Sport & Leisure,Supplies & Services,Provisions,BIKOLD,29/06/2023,135.18
"Communities, Customer & Commercial Services",Sport & Leisure,Supplies & Services,Provisions,BIKOLD,29/06/2023,123.75
"Communities, Customer & Commercial Services",Sport & Leisure,Supplies & Services,Provisions,BIKOLD,29/06/2023,415.95
"Communities, Customer & Commercial Services",Sport & Leisure,Supplies & Services,Provisions,BIKOLD,29/06/2023,190.25
"Communities, Customer & Commercial Services",Sport & Leisure,Supplies & Services,Provisions,BIKOLD,29/06/2023,187.94
"Communities, Customer & Commercial Services",Sport & Leisure,Supplies & Services,Provisions,BIKOLD,29/06/2023,147.17
"Communities, Customer & Commercial Services",Sport & Leisure,Supplies & Services,Provisions,BIKOLD,29/06/2023,128.40
"Communities, Customer & Commercial Services",Sport & Leisure,Supplies & Services,Provisions,BIKOLD,29/06/2023,119.16
"Communities, Customer & Commercial Services",Sport & Leisure,Supplies & Services,Provisions,BIKOLD,29/06/2023,134.60
"Communities, Customer & Commercial Services",Sport & Leisure,Supplies & Services,Provisions,BIKOLD,29/06/2023,210.32
"Communities, Customer & Commercial Services",Sport & Leisure,Supplies & Services,Provisions,BIKOLD,29/06/2023,206.30
"Communities, Customer & Commercial Services",Sport & Leisure,Supplies & Services,Provisions,BIKOLD,29/06/2023,260.71
"Communities, Customer & Commercial Services",Sport & Leisure,Supplies & Services,Provisions,BIKOLD,29/06/2023,287.79
"Communities, Customer & Commercial Services",Sport & Leisure,Supplies & Services,Provisions,BIKOLD,16/06/2023,114.84
"Communities, Customer & Commercial Services",Sport & Leisure,Supplies & Services,Provisions,BIKOLD,16/06/2023,270.99
"Communities, Customer & Commercial Services",Sport & Leisure,Supplies & Services,Provisions,BIKOLD,29/06/2023,292.55
"Communities, Customer & Commercial Services",Sport & Leisure,Supplies & Services,Provisions,BIKOLD,29/06/2023,118.75
"Communities, Customer & Commercial Services",Sport & Leisure,Supplies & Services,Provisions,BIKOLD,29/06/2023,139.01
"Communities, Customer & Commercial Services",Sport & Leisure,Supplies & Services,Provisions,BIKOLD,29/06/2023,469.56
"Communities, Customer & Commercial Services",Sport & Leisure,Supplies & Services,Provisions,BIKOLD,16/06/2023,467.36
"Communities, Customer & Commercial Services",Sport & Leisure,Supplies & Services,Provisions,BIKOLD,16/06/2023,102.52
"Communities, Customer & Commercial Services",Sport & Leisure,Supplies & Services,Provisions,BIKOLD,29/06/2023,221.98
"Communities, Customer & Commercial Services",Sport & Leisure,Supplies & Services,Provisions,BIKOLD,29/06/2023,178.29
"Communities, Customer & Commercial Services",Sport & Leisure,Supplies & Services,Provisions,BIKOLD,29/06/2023,207.85
"Communities, Customer & Commercial Services",Sport & Leisure,Supplies & Services,Provisions,BIKOLD,29/06/2023,249.26
"Communities, Customer & Commercial Services",Sport & Leisure,Supplies & Services,Provisions,BIKOLD,29/06/2023,230.14
"Communities, Customer & Commercial Services",Sport & Leisure,Supplies & Services,Provisions,BIKOLD,29/06/2023,245.48
"Communities, Customer & Commercial Services",Sport & Leisure,Supplies & Services,Provisions,BIKOLD,29/06/2023,172.64
"Communities, Customer & Commercial Services",Sport & Leisure,Supplies & Services,Provisions,BIKOLD,29/06/2023,315.94
"Communities, Customer & Commercial Services",Sport & Leisure,Supplies & Services,Provisions,BIKOLD,29/06/2023,221.66
"Communities, Customer & Commercial Services",Sport & Leisure,Supplies & Services,Provisions,BIKOLD,29/06/2023,110.07
"Communities, Customer & Commercial Services",Sport & Leisure,Supplies & Services,Provisions,BIKOLD,29/06/2023,188.47
"Communities, Customer & Commercial Services",Sport & Leisure,Supplies & Services,Provisions,BIKOLD,29/06/2023,165.89
"Communities, Customer & Commercial Services",Sport & Leisure,Supplies & Services,Provisions,BIKOLD,29/06/2023,115.49
"Communities, Customer & Commercial Services",Sport & Leisure,Supplies & Services,Provisions,BIKOLD,29/06/2023,111.47
"Communities, Customer & Commercial Services",Sport & Leisure,Supplies & Services,Provisions,BIKOLD,29/06/2023,362.77
"Communities, Customer & Commercial Services",Sport & Leisure,Supplies & Services,Provisions,BIKOLD,29/06/2023,124.51
"Communities, Customer & Commercial Services",Sport & Leisure,Supplies & Services,Provisions,BIKOLD,29/06/2023,106.85
"Communities, Customer & Commercial Services",Sport & Leisure,Supplies & Services,Provisions,BIKOLD,29/06/2023,156.03
"Communities, Customer & Commercial Services",Sport & Leisure,Supplies & Services,Provisions,BIKOLD,29/06/2023,196.80
"Communities, Customer & Commercial Services",Sport & Leisure,Supplies & Services,Provisions,BIKOLD,29/06/2023,252.39
"Communities, Customer & Commercial Services",Sport & Leisure,Supplies & Services,Provisions,BIKOLD,29/06/2023,105.43
"Communities, Customer & Commercial Services",Sport & Leisure,Supplies & Services,Provisions,BIKOLD,29/06/2023,116.71
"Communities, Customer & Commercial Services",Sport & Leisure,Supplies & Services,Provisions,BIKOLD,29/06/2023,146.89
"Communities, Customer & Commercial Services",Sport & Leisure,Supplies & Services,Provisions,BIKOLD,29/06/2023,215.21
"Communities, Customer & Commercial Services",Sport & Leisure,Supplies & Services,Provisions,BIKOLD,29/06/2023,255.76
"Communities, Customer & Commercial Services",Sport & Leisure,Supplies & Services,Provisions,BIKOLD,29/06/2023,124.01
"Communities, Customer & Commercial Services",Sport & Leisure,Supplies & Services,Provisions,BIKOLD,29/06/2023,231.65
"Communities, Customer & Commercial Services",Sport & Leisure,Supplies & Services,Provisions,BIKOLD,29/06/2023,492.37
"Communities, Customer & Commercial Services",Sport & Leisure,Supplies & Services,Provisions,BIKOLD,29/06/2023,232.08
"Communities, Customer & Commercial Services",Sport & Leisure,Supplies & Services,Provisions,BIKOLD,29/06/2023,159.66
"Communities, Customer & Commercial Services",Sport & Leisure,Supplies & Services,Provisions,BIKOLD,29/06/2023,100.53
"Communities, Customer & Commercial Services",Sport & Leisure,Supplies & Services,Provisions,BIKOLD,29/06/2023,164.67
"Communities, Customer & Commercial Services",Sport & Leisure,Supplies & Services,Provisions,BIKOLD,29/06/2023,393.00
"Communities, Customer & Commercial Services",Sport & Leisure,Supplies & Services,Provisions,BIKOLD,29/06/2023,382.97
"Communities, Customer & Commercial Services",Sport & Leisure,Supplies & Services,Provisions,BIKOLD,29/06/2023,487.82
"Communities, Customer & Commercial Services",Sport & Leisure,Supplies & Services,Provisions,BIKOLD,29/06/2023,402.54
"Communities, Customer & Commercial Services",Sport & Leisure,Supplies & Services,Provisions,BIKOLD,29/06/2023,287.54
"Communities, Customer & Commercial Services",Sport & Leisure,Supplies & Services,Provisions,BIKOLD,29/06/2023,222.30
"Communities, Customer & Commercial Services",Sport & Leisure,Supplies & Services,Provisions,BIKOLD,29/06/2023,185.92
"Communities, Customer & Commercial Services",Sport & Leisure,Supplies & Services,Provisions,BIKOLD,29/06/2023,248.63
"Communities, Customer & Commercial Services",Sport & Leisure,Supplies & Services,Provisions,BIKOLD,29/06/2023,541.77
"Communities, Customer & Commercial Services",Sport & Leisure,Supplies & Services,Provisions,BIKOLD,29/06/2023,277.24
"Communities, Customer & Commercial Services",Sport & Leisure,Supplies & Services,Provisions,BIKOLD,29/06/2023,137.64
"Communities, Customer & Commercial Services",Sport & Leisure,Supplies & Services,Provisions,BIKOLD,29/06/2023,499.27
"Communities, Customer & Commercial Services",Sport & Leisure,Supplies & Services,Provisions,BIKOLD,29/06/2023,240.23
"Communities, Customer & Commercial Services",Sport & Leisure,Supplies & Services,Provisions,BIKOLD,29/06/2023,173.05
"Communities, Customer & Commercial Services",Sport & Leisure,Supplies & Services,Provisions,BIKOLD,29/06/2023,204.79
"Communities, Customer & Commercial Services",Sport & Leisure,Supplies & Services,Provisions,BIKOLD,29/06/2023,140.59
"Communities, Customer & Commercial Services",Sport & Leisure,Supplies & Services,Provisions,BIKOLD,29/06/2023,382.06
"Communities, Customer & Commercial Services",Sport & Leisure,Supplies & Services,Provisions,BIKOLD,29/06/2023,396.98
"Communities, Customer & Commercial Services",Sport & Leisure,Supplies & Services,Provisions,BIKOLD,29/06/2023,260.34
"Communities, Customer & Commercial Services",Sport & Leisure,Supplies & Services,Provisions,BIKOLD,29/06/2023,148.14
"Communities, Customer & Commercial Services",Sport & Leisure,Supplies & Services,Provisions,BIKOLD,29/06/2023,209.43
"Communities, Customer & Commercial Services",Sport & Leisure,Supplies & Services,Provisions,BIKOLD,29/06/2023,187.63
"Communities, Customer & Commercial Services",Sport & Leisure,Supplies & Services,Provisions,BIKOLD,22/06/2023,273.82
"Communities, Customer & Commercial Services",Sport & Leisure,Supplies & Services,Provisions,BIKOLD,22/06/2023,203.42
"Communities, Customer & Commercial Services",Sport & Leisure,Supplies & Services,Provisions,BIKOLD,22/06/2023,199.82
"Communities, Customer & Commercial Services",Sport & Leisure,Supplies & Services,Provisions,BIKOLD,22/06/2023,276.65
"Communities, Customer & Commercial Services",Sport & Leisure,Supplies & Services,Provisions,BIKOLD,22/06/2023,603.64
"Communities, Customer & Commercial Services",Sport & Leisure,Supplies & Services,Provisions,BIKOLD,22/06/2023,114.93
"Communities, Customer & Commercial Services",Sport & Leisure,Supplies & Services,Provisions,BIKOLD,22/06/2023,370.93
"Communities, Customer & Commercial Services",Sport & Leisure,Supplies & Services,Provisions,BIKOLD,22/06/2023,106.20
"Communities, Customer & Commercial Services",Sport & Leisure,Supplies & Services,Provisions,BIKOLD,22/06/2023,108.83
"Communities, Customer & Commercial Services",Sport & Leisure,Supplies & Services,Provisions,BIKOLD,22/06/2023,138.75
"Communities, Customer & Commercial Services",Sport & Leisure,Supplies & Services,Provisions,BIKOLD,22/06/2023,138.45
"Communities, Customer & Commercial Services",Sport & Leisure,Supplies & Services,Provisions,BIKOLD,22/06/2023,192.70
"Communities, Customer & Commercial Services",Sport & Leisure,Supplies & Services,Provisions,BIKOLD,22/06/2023,178.32
"Communities, Customer & Commercial Services",Sport & Leisure,Supplies & Services,Provisions,BIKOLD,22/06/2023,155.55
"Communities, Customer & Commercial Services",Sport & Leisure,Supplies & Services,Provisions,BIKOLD,22/06/2023,151.30
"Communities, Customer & Commercial Services",Sport & Leisure,Supplies & Services,Provisions,BIKOLD,22/06/2023,374.70
"Communities, Customer & Commercial Services",Sport & Leisure,Supplies & Services,Provisions,BIKOLD,22/06/2023,179.55
"Communities, Customer & Commercial Services",Sport & Leisure,Supplies & Services,Provisions,BIKOLD,22/06/2023,157.19
"Communities, Customer & Commercial Services",Sport & Leisure,Supplies & Services,Provisions,BIKOLD,22/06/2023,573.93
"Communities, Customer & Commercial Services",Sport & Leisure,Supplies & Services,Provisions,BIKOLD,22/06/2023,189.07
"Communities, Customer & Commercial Services",Sport & Leisure,Supplies & Services,Provisions,BIKOLD,22/06/2023,230.66
"Communities, Customer & Commercial Services",Sport & Leisure,Supplies & Services,Provisions,BIKOLD,22/06/2023,530.93
"Communities, Customer & Commercial Services",Sport & Leisure,Supplies & Services,Provisions,BIKOLD,22/06/2023,285.19
"Communities, Customer & Commercial Services",Sport & Leisure,Supplies & Services,Provisions,BIKOLD,22/06/2023,271.56
"Communities, Customer & Commercial Services",Sport & Leisure,Supplies & Services,Provisions,BIKOLD,22/06/2023,284.22
"Communities, Customer & Commercial Services",Sport & Leisure,Supplies & Services,Provisions,BIKOLD,22/06/2023,139.83
"Communities, Customer & Commercial Services",Sport & Leisure,Supplies & Services,Provisions,BIKOLD,22/06/2023,250.21
"Communities, Customer & Commercial Services",Sport & Leisure,Supplies & Services,Provisions,BIKOLD,22/06/2023,319.51
"Communities, Customer & Commercial Services",Sport & Leisure,Supplies & Services,Provisions,BIKOLD,22/06/2023,396.65
"Communities, Customer & Commercial Services",Sport & Leisure,Supplies & Services,Provisions,BIKOLD,22/06/2023,437.48
"Communities, Customer & Commercial Services",Sport & Leisure,Supplies & Services,Provisions,BIKOLD,22/06/2023,280.37
"Communities, Customer & Commercial Services",Sport & Leisure,Supplies & Services,Provisions,BIKOLD,22/06/2023,437.02
"Communities, Customer & Commercial Services",Sport & Leisure,Supplies & Services,Provisions,BIKOLD,22/06/2023,146.11
"Communities, Customer & Commercial Services",Sport & Leisure,Supplies & Services,Provisions,BIKOLD,22/06/2023,404.50
"Communities, Customer & Commercial Services",Sport & Leisure,Supplies & Services,Provisions,BIKOLD,22/06/2023,392.67
"Communities, Customer & Commercial Services",Sport & Leisure,Supplies & Services,Provisions,BIKOLD,22/06/2023,134.72
"Communities, Customer & Commercial Services",Sport & Leisure,Supplies & Services,Provisions,BIKOLD,22/06/2023,255.07
"Communities, Customer & Commercial Services",Sport & Leisure,Supplies & Services,Provisions,BIKOLD,22/06/2023,263.18
"Communities, Customer & Commercial Services",Sport & Leisure,Supplies & Services,Provisions,BIKOLD,22/06/2023,270.01
"Communities, Customer & Commercial Services",Sport & Leisure,Supplies & Services,Provisions,BIKOLD,22/06/2023,106.26
"Communities, Customer & Commercial Services",Sport & Leisure,Supplies & Services,Provisions,BIKOLD,22/06/2023,-183.84
"Communities, Customer & Commercial Services",Sport & Leisure,Supplies & Services,Provisions,BIKOLD,22/06/2023,127.43
"Communities, Customer & Commercial Services",Sport & Leisure,Supplies & Services,Provisions,BIKOLD,22/06/2023,101.83
"Communities, Customer & Commercial Services",Sport & Leisure,Supplies & Services,Provisions,BIKOLD,22/06/2023,104.16
"Communities, Customer & Commercial Services",Sport & Leisure,Supplies & Services,Provisions,BIKOLD,22/06/2023,412.99
"Communities, Customer & Commercial Services",Sport & Leisure,Supplies & Services,Provisions,BIKOLD,22/06/2023,367.72
"Communities, Customer & Commercial Services",Sport & Leisure,Supplies & Services,Provisions,BIKOLD,22/06/2023,260.33
"Communities, Customer & Commercial Services",Sport & Leisure,Supplies & Services,Provisions,BIKOLD,22/06/2023,271.59
"Communities, Customer & Commercial Services",Sport & Leisure,Supplies & Services,Provisions,BIKOLD,22/06/2023,215.55
"Communities, Customer & Commercial Services",Sport & Leisure,Supplies & Services,Provisions,BIKOLD,22/06/2023,474.19
"Communities, Customer & Commercial Services",Sport & Leisure,Supplies & Services,Provisions,BIKOLD,22/06/2023,109.62
"Communities, Customer & Commercial Services",Sport & Leisure,Supplies & Services,Provisions,BIKOLD,22/06/2023,299.15
"Communities, Customer & Commercial Services",Sport & Leisure,Supplies & Services,Provisions,BIKOLD,22/06/2023,617.53
"Communities, Customer & Commercial Services",Sport & Leisure,Supplies & Services,Provisions,BIKOLD,22/06/2023,109.12
"Communities, Customer & Commercial Services",Sport & Leisure,Supplies & Services,Provisions,BIKOLD,22/06/2023,167.64
"Communities, Customer & Commercial Services",Sport & Leisure,Supplies & Services,Provisions,BIKOLD,22/06/2023,490.78
"Communities, Customer & Commercial Services",Sport & Leisure,Supplies & Services,Provisions,BIKOLD,22/06/2023,125.21
"Communities, Customer & Commercial Services",Sport & Leisure,Supplies & Services,Provisions,BIKOLD,22/06/2023,391.92
"Communities, Customer & Commercial Services",Sport & Leisure,Supplies & Services,Provisions,BIKOLD,22/06/2023,217.60
"Communities, Customer & Commercial Services",Sport & Leisure,Supplies & Services,Provisions,BIKOLD,22/06/2023,103.08
"Communities, Customer & Commercial Services",Sport & Leisure,Supplies & Services,Provisions,BIKOLD,22/06/2023,415.12
"Communities, Customer & Commercial Services",Sport & Leisure,Supplies & Services,Provisions,BIKOLD,22/06/2023,254.70
"Communities, Customer & Commercial Services",Sport & Leisure,Supplies & Services,Provisions,BIKOLD,22/06/2023,283.32
"Communities, Customer & Commercial Services",Sport & Leisure,Supplies & Services,Provisions,BIKOLD,22/06/2023,110.70
"Communities, Customer & Commercial Services",Sport & Leisure,Supplies & Services,Provisions,BIKOLD,22/06/2023,165.06
"Communities, Customer & Commercial Services",Sport & Leisure,Supplies & Services,Provisions,BIKOLD,22/06/2023,122.84
"Communities, Customer & Commercial Services",Sport & Leisure,Supplies & Services,Provisions,BIKOLD,22/06/2023,294.81
"Communities, Customer & Commercial Services",Sport & Leisure,Supplies & Services,Provisions,BIKOLD,22/06/2023,107.54
"Communities, Customer & Commercial Services",Sport & Leisure,Supplies & Services,Provisions,BIKOLD,22/06/2023,407.51
"Communities, Customer & Commercial Services",Sport & Leisure,Supplies & Services,Provisions,BIKOLD,22/06/2023,111.53
"Communities, Customer & Commercial Services",Sport & Leisure,Supplies & Services,Provisions,BIKOLD,22/06/2023,199.26
"Communities, Customer & Commercial Services",Sport & Leisure,Supplies & Services,Provisions,BIKOLD,22/06/2023,209.92
"Communities, Customer & Commercial Services",Sport & Leisure,Supplies & Services,Provisions,BIKOLD,22/06/2023,319.64
"Communities, Customer & Commercial Services",Sport & Leisure,Supplies & Services,Provisions,BIKOLD,22/06/2023,160.05
"Communities, Customer & Commercial Services",Sport & Leisure,Supplies & Services,Provisions,BIKOLD,22/06/2023,209.07
"Communities, Customer & Commercial Services",Sport & Leisure,Supplies & Services,Provisions,BIKOLD,22/06/2023,223.63
"Communities, Customer & Commercial Services",Sport & Leisure,Supplies & Services,Provisions,BIKOLD,22/06/2023,232.22
"Communities, Customer & Commercial Services",Sport & Leisure,Supplies & Services,Provisions,BIKOLD,22/06/2023,186.02
"Communities, Customer & Commercial Services",Sport & Leisure,Supplies & Services,Provisions,BIKOLD,22/06/2023,115.19
"Communities, Customer & Commercial Services",Sport & Leisure,Supplies & Services,Provisions,BIKOLD,22/06/2023,236.28
"Communities, Customer & Commercial Services",Sport & Leisure,Supplies & Services,Provisions,BIKOLD,22/06/2023,130.17
"Communities, Customer & Commercial Services",Sport & Leisure,Supplies & Services,Provisions,BIKOLD,22/06/2023,160.55
"Communities, Customer & Commercial Services",Sport & Leisure,Supplies & Services,Provisions,BIKOLD,22/06/2023,567.43
"Communities, Customer & Commercial Services",Sport & Leisure,Supplies & Services,Provisions,BIKOLD,22/06/2023,100.29
"Communities, Customer & Commercial Services",Sport & Leisure,Supplies & Services,Provisions,BIKOLD,22/06/2023,118.52
"Communities, Customer & Commercial Services",Sport & Leisure,Supplies & Services,Provisions,BIKOLD,22/06/2023,276.12
"Communities, Customer & Commercial Services",Sport & Leisure,Supplies & Services,Provisions,BIKOLD,22/06/2023,132.56
"Communities, Customer & Commercial Services",Sport & Leisure,Supplies & Services,Provisions,BIKOLD,22/06/2023,152.29
"Communities, Customer & Commercial Services",Sport & Leisure,Supplies & Services,Provisions,BIKOLD,22/06/2023,325.41
"Communities, Customer & Commercial Services",Sport & Leisure,Supplies & Services,Provisions,BIKOLD,22/06/2023,117.72
"Communities, Customer & Commercial Services",Sport & Leisure,Supplies & Services,Provisions,BIKOLD,22/06/2023,124.71
"Communities, Customer & Commercial Services",Sport & Leisure,Supplies & Services,Provisions,BIKOLD,22/06/2023,256.44
"Communities, Customer & Commercial Services",Sport & Leisure,Supplies & Services,Provisions,BIKOLD,22/06/2023,117.98
"Communities, Customer & Commercial Services",Sport & Leisure,Supplies & Services,Provisions,BIKOLD,22/06/2023,104.14
"Communities, Customer & Commercial Services",Sport & Leisure,Supplies & Services,Provisions,BIKOLD,22/06/2023,106.32
"Communities, Customer & Commercial Services",Sport & Leisure,Supplies & Services,Provisions,BIKOLD,22/06/2023,389.74
"Communities, Customer & Commercial Services",Sport & Leisure,Supplies & Services,Provisions,BIKOLD,22/06/2023,444.51
"Communities, Customer & Commercial Services",Sport & Leisure,Supplies & Services,Provisions,BIKOLD,22/06/2023,148.90
"Communities, Customer & Commercial Services",Sport & Leisure,Supplies & Services,Provisions,BIKOLD,22/06/2023,161.54
"Communities, Customer & Commercial Services",Sport & Leisure,Supplies & Services,Provisions,BIKOLD,22/06/2023,104.16
"Communities, Customer & Commercial Services",Sport & Leisure,Supplies & Services,Provisions,BIKOLD,22/06/2023,134.13
"Communities, Customer & Commercial Services",Sport & Leisure,Supplies & Services,Provisions,BIKOLD,22/06/2023,359.98
"Communities, Customer & Commercial Services",Sport & Leisure,Supplies & Services,Provisions,BIKOLD,22/06/2023,390.03
"Communities, Customer & Commercial Services",Sport & Leisure,Supplies & Services,Provisions,BIKOLD,22/06/2023,105.10
"Communities, Customer & Commercial Services",Sport & Leisure,Supplies & Services,Provisions,BIKOLD,22/06/2023,386.32
"Communities, Customer & Commercial Services",Sport & Leisure,Supplies & Services,Provisions,BIKOLD,22/06/2023,432.34
"Communities, Customer & Commercial Services",Sport & Leisure,Supplies & Services,Provisions,BIKOLD,22/06/2023,239.85
"Communities, Customer & Commercial Services",Sport & Leisure,Supplies & Services,Provisions,BIKOLD,22/06/2023,102.33
"Communities, Customer & Commercial Services",Sport & Leisure,Supplies & Services,Provisions,BIKOLD,22/06/2023,153.05
"Communities, Customer & Commercial Services",Sport & Leisure,Supplies & Services,Provisions,BIKOLD,22/06/2023,528.05
"Communities, Customer & Commercial Services",Sport & Leisure,Supplies & Services,Provisions,BIKOLD,22/06/2023,646.34
"Communities, Customer & Commercial Services",Sport & Leisure,Supplies & Services,Provisions,BIKOLD,22/06/2023,137.12
"Communities, Customer & Commercial Services",Sport & Leisure,Supplies & Services,Provisions,BIKOLD,22/06/2023,106.38
"Communities, Customer & Commercial Services",Sport & Leisure,Supplies & Services,Provisions,BIKOLD,22/06/2023,102.58
"Communities, Customer & Commercial Services",Sport & Leisure,Supplies & Services,Provisions,BIKOLD,22/06/2023,186.30
"Communities, Customer & Commercial Services",Sport & Leisure,Supplies & Services,Provisions,BIKOLD,22/06/2023,156.75
"Communities, Customer & Commercial Services",Sport & Leisure,Supplies & Services,Provisions,BIKOLD,22/06/2023,444.11
"Communities, Customer & Commercial Services",Sport & Leisure,Supplies & Services,Provisions,BIKOLD,22/06/2023,205.41
"Communities, Customer & Commercial Services",Sport & Leisure,Supplies & Services,Crockery/Hardware/Light Equip,E N CATERING EQUIPMENT AND SERVICES  LTD,05/06/2023,284.68
"Communities, Customer & Commercial Services",Sport & Leisure,Supplies & Services,Provisions,J S  Catering Butchers,20/06/2023,139.08
"Communities, Customer & Commercial Services",Sport & Leisure,Supplies & Services,Provisions,J S  Catering Butchers,20/06/2023,234.95
"Communities, Customer & Commercial Services",Sport & Leisure,Supplies & Services,Provisions,J S  Catering Butchers,20/06/2023,282.25
"Communities, Customer & Commercial Services",Sport & Leisure,Supplies & Services,Provisions,J S  Catering Butchers,14/06/2023,170.80
"Communities, Customer & Commercial Services",Sport & Leisure,Supplies & Services,Provisions,J S  Catering Butchers,14/06/2023,120.30
"Communities, Customer & Commercial Services",Sport & Leisure,Supplies & Services,Provisions,J S  Catering Butchers,14/06/2023,127.00
"Communities, Customer & Commercial Services",Sport & Leisure,Supplies & Services,Provisions,J S  Catering Butchers,26/06/2023,124.70
"Communities, Customer & Commercial Services",Sport & Leisure,Supplies & Services,Provisions,J S  Catering Butchers,26/06/2023,172.28
"Communities, Customer & Commercial Services",Sport & Leisure,Supplies & Services,Provisions,J S  Catering Butchers,26/06/2023,168.60
"Communities, Customer & Commercial Services",Sport & Leisure,Supplies & Services,Provisions,J S  Catering Butchers,26/06/2023,300.70
"Communities, Customer & Commercial Services",Sport & Leisure,Supplies & Services,Provisions,J S  Catering Butchers,26/06/2023,238.75
"Communities, Customer & Commercial Services",Sport & Leisure,Supplies & Services,Provisions,On A Roll,27/06/2023,255.20
"Communities, Customer & Commercial Services",Sport & Leisure,Supplies & Services,Provisions,On A Roll,29/06/2023,257.20
"Communities, Customer & Commercial Services",Sport & Leisure,Supplies & Services,Provisions,R & COMPANY,21/06/2023,174.14
"Communities, Customer & Commercial Services",Sport & Leisure,Supplies & Services,Provisions,R & COMPANY,21/06/2023,172.14
"Communities, Customer & Commercial Services",Sport & Leisure,Supplies & Services,Provisions,R & COMPANY,21/06/2023,246.77
"Communities, Customer & Commercial Services",Sport & Leisure,Supplies & Services,Provisions,R & COMPANY,21/06/2023,120.64
"Communities, Customer & Commercial Services",Sport & Leisure,Supplies & Services,Provisions,R & COMPANY,21/06/2023,112.95
"Communities, Customer & Commercial Services",Sport & Leisure,Supplies & Services,Provisions,R & COMPANY,21/06/2023,128.11
"Communities, Customer & Commercial Services",Sport & Leisure,Supplies & Services,Provisions,R & COMPANY,21/06/2023,132.08
"Communities, Customer & Commercial Services",Sport & Leisure,Supplies & Services,Provisions,R & COMPANY,21/06/2023,155.00
"Communities, Customer & Commercial Services",Sport & Leisure,Supplies & Services,Provisions,R & COMPANY,21/06/2023,104.17
"Communities, Customer & Commercial Services",Sport & Leisure,Supplies & Services,Provisions,R & COMPANY,21/06/2023,132.15
"Communities, Customer & Commercial Services",Sport & Leisure,Supplies & Services,Provisions,R & COMPANY,21/06/2023,116.19
"Communities, Customer & Commercial Services",Sport & Leisure,Supplies & Services,Provisions,R & COMPANY,21/06/2023,132.86
"Communities, Customer & Commercial Services",Sport & Leisure,Supplies & Services,Provisions,R & COMPANY,21/06/2023,183.52
"Communities, Customer & Commercial Services",Sport & Leisure,Supplies & Services,Provisions,R & COMPANY,21/06/2023,119.91
"Communities, Customer & Commercial Services",Sport & Leisure,Supplies & Services,Provisions,R & COMPANY,21/06/2023,111.05
"Communities, Customer & Commercial Services",Sport & Leisure,Supplies & Services,Provisions,R & COMPANY,21/06/2023,203.09
"Communities, Customer & Commercial Services",Sport & Leisure,Supplies & Services,Provisions,R & COMPANY,21/06/2023,115.48
"Communities, Customer & Commercial Services",Sport & Leisure,Supplies & Services,Provisions,R & COMPANY,21/06/2023,102.53
"Communities, Customer & Commercial Services",Sport & Leisure,Supplies & Services,Provisions,R & COMPANY,21/06/2023,216.10
"Communities, Customer & Commercial Services",Sport & Leisure,Supplies & Services,Provisions,R & COMPANY,21/06/2023,144.35
"Communities, Customer & Commercial Services",Sport & Leisure,Supplies & Services,Provisions,R & COMPANY,21/06/2023,249.74
"Communities, Customer & Commercial Services",Sport & Leisure,Supplies & Services,Provisions,R & COMPANY,21/06/2023,129.31
"Communities, Customer & Commercial Services",Sport & Leisure,Supplies & Services,Provisions,R & COMPANY,21/06/2023,130.66
"Communities, Customer & Commercial Services",Sport & Leisure,Supplies & Services,Provisions,R & COMPANY,21/06/2023,121.82
"Communities, Customer & Commercial Services",Sport & Leisure,Supplies & Services,Provisions,R & COMPANY,21/06/2023,130.90
"Communities, Customer & Commercial Services",Sport & Leisure,Supplies & Services,Provisions,R & COMPANY,21/06/2023,125.55
"Communities, Customer & Commercial Services",Sport & Leisure,Supplies & Services,Provisions,R & COMPANY,21/06/2023,118.77
"Communities, Customer & Commercial Services",Sport & Leisure,Supplies & Services,Provisions,R & COMPANY,21/06/2023,126.77
"Communities, Customer & Commercial Services",Sport & Leisure,Supplies & Services,Provisions,R & COMPANY,26/06/2023,103.69
"Communities, Customer & Commercial Services",Sport & Leisure,Supplies & Services,Provisions,R & COMPANY,26/06/2023,334.01
"Communities, Customer & Commercial Services",Sport & Leisure,Supplies & Services,Provisions,R & COMPANY,26/06/2023,162.11
"Communities, Customer & Commercial Services",Sport & Leisure,Supplies & Services,Provisions,R & COMPANY,26/06/2023,182.82
"Communities, Customer & Commercial Services",Sport & Leisure,Supplies & Services,Provisions,R & COMPANY,26/06/2023,132.07
"Communities, Customer & Commercial Services",Sport & Leisure,Supplies & Services,Provisions,R & COMPANY,26/06/2023,109.70
"Communities, Customer & Commercial Services",Sport & Leisure,Supplies & Services,Provisions,R & COMPANY,26/06/2023,235.43
"Communities, Customer & Commercial Services",Sport & Leisure,Supplies & Services,Provisions,R & COMPANY,26/06/2023,110.60
"Communities, Customer & Commercial Services",Sport & Leisure,Supplies & Services,Provisions,R & COMPANY,26/06/2023,145.13
"Communities, Customer & Commercial Services",Sport & Leisure,Supplies & Services,Provisions,R & COMPANY,26/06/2023,166.05
"Communities, Customer & Commercial Services",Sport & Leisure,Supplies & Services,Provisions,R & COMPANY,26/06/2023,140.42
"Communities, Customer & Commercial Services",Sport & Leisure,Supplies & Services,Provisions,R & COMPANY,26/06/2023,147.82
"Communities, Customer & Commercial Services",Sport & Leisure,Supplies & Services,Provisions,R & COMPANY,26/06/2023,142.98
"Communities, Customer & Commercial Services",Sport & Leisure,Supplies & Services,Provisions,R & COMPANY,26/06/2023,105.87
"Communities, Customer & Commercial Services",Sport & Leisure,Supplies & Services,Provisions,R & COMPANY,26/06/2023,108.99
"Communities, Customer & Commercial Services",Sport & Leisure,Supplies & Services,Provisions,R & COMPANY,26/06/2023,128.20
"Communities, Customer & Commercial Services",Sport & Leisure,Supplies & Services,Provisions,R & COMPANY,26/06/2023,118.34
"Communities, Customer & Commercial Services",Sport & Leisure,Supplies & Services,Provisions,R & COMPANY,26/06/2023,115.16
"Communities, Customer & Commercial Services",Sport & Leisure,Supplies & Services,Provisions,R & COMPANY,26/06/2023,149.36
"Communities, Customer & Commercial Services",Sport & Leisure,Supplies & Services,Provisions,R & COMPANY,26/06/2023,132.46
"Communities, Customer & Commercial Services",Sport & Leisure,Supplies & Services,Provisions,R & COMPANY,26/06/2023,132.20
"Communities, Customer & Commercial Services",Sport & Leisure,Supplies & Services,Provisions,R & COMPANY,26/06/2023,144.82
"Communities, Customer & Commercial Services",Sport & Leisure,Supplies & Services,Provisions,R & COMPANY,26/06/2023,108.85
"Communities, Customer & Commercial Services",Sport & Leisure,Supplies & Services,Provisions,R & COMPANY,26/06/2023,101.84
"Communities, Customer & Commercial Services",Sport & Leisure,Supplies & Services,Provisions,R & COMPANY,26/06/2023,160.25
"Communities, Customer & Commercial Services",Sport & Leisure,Supplies & Services,Provisions,R & COMPANY,26/06/2023,227.36
"Communities, Customer & Commercial Services",Sport & Leisure,Supplies & Services,Provisions,SPICE TIME,23/06/2023,110.10
"Communities, Customer & Commercial Services",Sport & Leisure,Supplies & Services,Provisions,SPICE TIME,23/06/2023,199.00
"Communities, Customer & Commercial Services",Sport & Leisure,Supplies & Services,Provisions,SPICE TIME,23/06/2023,148.80
"Communities, Customer & Commercial Services",Sport & Leisure,Supplies & Services,Provisions,SPICE TIME,23/06/2023,275.40
"Communities, Customer & Commercial Services",Sport & Leisure,Supplies & Services,Provisions,SPICE TIME,23/06/2023,218.00
"Communities, Customer & Commercial Services",Sport & Leisure,Supplies & Services,Provisions,SPICE TIME,23/06/2023,129.70
"Communities, Customer & Commercial Services",Sport & Leisure,Supplies & Services,Provisions,SPICE TIME,23/06/2023,154.90
"Communities, Customer & Commercial Services",Sport & Leisure,Supplies & Services,Provisions,SPICE TIME,23/06/2023,141.20
"Communities, Customer & Commercial Services",Sport & Leisure,Supplies & Services,Provisions,SPICE TIME,20/06/2023,218.00
"Communities, Customer & Commercial Services",Sport & Leisure,Supplies & Services,Provisions,SPICE TIME,20/06/2023,181.40
"Communities, Customer & Commercial Services",Sport & Leisure,Premises-Related Expenditure,Clean Mats & Toilet Requisites,Border Janitorial Supplies Limited,14/06/2023,256.05
"Communities, Customer & Commercial Services",Sport & Leisure,Premises-Related Expenditure,Clean Mats & Toilet Requisites,Border Janitorial Supplies Limited,13/06/2023,167.96
"Communities, Customer & Commercial Services",Sport & Leisure,Premises-Related Expenditure,Clean Mats & Toilet Requisites,On A Roll,05/06/2023,152.01
"Communities, Customer & Commercial Services",Sport & Leisure,Premises-Related Expenditure,Clean Mats & Toilet Requisites,On A Roll,05/06/2023,182.97
"Communities, Customer & Commercial Services",Sport & Leisure,Premises-Related Expenditure,Clean Mats & Toilet Requisites,On A Roll,05/06/2023,490.58
"Communities, Customer & Commercial Services",Sport & Leisure,Premises-Related Expenditure,Clean Mats & Toilet Requisites,On A Roll,08/06/2023,133.54
"Communities, Customer & Commercial Services",Sport & Leisure,Premises-Related Expenditure,Clean Mats & Toilet Requisites,On A Roll,08/06/2023,152.01
"Communities, Customer & Commercial Services",Sport & Leisure,Premises-Related Expenditure,Clean Mats & Toilet Requisites,On A Roll,08/06/2023,223.30
"Communities, Customer & Commercial Services",Sport & Leisure,Premises-Related Expenditure,Clean Mats & Toilet Requisites,On A Roll,08/06/2023,208.80
"Communities, Customer & Commercial Services",Sport & Leisure,Supplies & Services,Provisions,BIKOLD,09/06/2023,253.65
"Communities, Customer & Commercial Services",Sport & Leisure,Supplies & Services,Provisions,BIKOLD,09/06/2023,269.25
"Communities, Customer & Commercial Services",Sport & Leisure,Supplies & Services,Provisions,BIKOLD,09/06/2023,305.33
"Communities, Customer & Commercial Services",Sport & Leisure,Supplies & Services,Provisions,BIKOLD,09/06/2023,114.24
"Communities, Customer & Commercial Services",Sport & Leisure,Supplies & Services,Provisions,BIKOLD,09/06/2023,626.99
"Communities, Customer & Commercial Services",Sport & Leisure,Supplies & Services,Provisions,BIKOLD,09/06/2023,122.19
"Communities, Customer & Commercial Services",Sport & Leisure,Supplies & Services,Provisions,BIKOLD,09/06/2023,173.77
"Communities, Customer & Commercial Services",Sport & Leisure,Supplies & Services,Provisions,BIKOLD,09/06/2023,122.40
"Communities, Customer & Commercial Services",Sport & Leisure,Supplies & Services,Provisions,BIKOLD,09/06/2023,287.75
"Communities, Customer & Commercial Services",Sport & Leisure,Supplies & Services,Provisions,BIKOLD,09/06/2023,354.11
"Communities, Customer & Commercial Services",Sport & Leisure,Supplies & Services,Provisions,BIKOLD,09/06/2023,229.92
"Communities, Customer & Commercial Services",Sport & Leisure,Supplies & Services,Provisions,BIKOLD,09/06/2023,"1,362.50"
"Communities, Customer & Commercial Services",Sport & Leisure,Supplies & Services,Provisions,BIKOLD,09/06/2023,196.34
"Communities, Customer & Commercial Services",Sport & Leisure,Supplies & Services,Provisions,BIKOLD,09/06/2023,122.14
"Communities, Customer & Commercial Services",Sport & Leisure,Supplies & Services,Provisions,BIKOLD,09/06/2023,721.00
"Communities, Customer & Commercial Services",Sport & Leisure,Supplies & Services,Provisions,BIKOLD,09/06/2023,112.77
"Communities, Customer & Commercial Services",Sport & Leisure,Supplies & Services,Provisions,BIKOLD,09/06/2023,252.28
"Communities, Customer & Commercial Services",Sport & Leisure,Supplies & Services,Provisions,BIKOLD,09/06/2023,548.69
"Communities, Customer & Commercial Services",Sport & Leisure,Supplies & Services,Provisions,BIKOLD,09/06/2023,688.66
"Communities, Customer & Commercial Services",Sport & Leisure,Supplies & Services,Provisions,BIKOLD,09/06/2023,434.57
"Communities, Customer & Commercial Services",Sport & Leisure,Supplies & Services,Provisions,BIKOLD,09/06/2023,541.11
"Communities, Customer & Commercial Services",Sport & Leisure,Supplies & Services,Provisions,BIKOLD,09/06/2023,518.31
"Communities, Customer & Commercial Services",Sport & Leisure,Supplies & Services,Provisions,BIKOLD,09/06/2023,526.61
"Communities, Customer & Commercial Services",Sport & Leisure,Supplies & Services,Provisions,BIKOLD,09/06/2023,275.27
"Communities, Customer & Commercial Services",Sport & Leisure,Supplies & Services,Provisions,BIKOLD,02/06/2023,"1,210.35"
"Communities, Customer & Commercial Services",Sport & Leisure,Supplies & Services,Provisions,BIKOLD,16/06/2023,124.64
"Communities, Customer & Commercial Services",Sport & Leisure,Supplies & Services,Provisions,BIKOLD,16/06/2023,306.25
"Communities, Customer & Commercial Services",Sport & Leisure,Supplies & Services,Provisions,BIKOLD,16/06/2023,101.70
"Communities, Customer & Commercial Services",Sport & Leisure,Supplies & Services,Provisions,BIKOLD,16/06/2023,193.96
"Communities, Customer & Commercial Services",Sport & Leisure,Supplies & Services,Provisions,BIKOLD,16/06/2023,296.26
"Communities, Customer & Commercial Services",Sport & Leisure,Supplies & Services,Provisions,BIKOLD,16/06/2023,213.67
"Communities, Customer & Commercial Services",Sport & Leisure,Supplies & Services,Provisions,BIKOLD,16/06/2023,122.07
"Communities, Customer & Commercial Services",Sport & Leisure,Supplies & Services,Provisions,BIKOLD,16/06/2023,309.80
"Communities, Customer & Commercial Services",Sport & Leisure,Supplies & Services,Provisions,BIKOLD,16/06/2023,513.57
"Communities, Customer & Commercial Services",Sport & Leisure,Supplies & Services,Provisions,BIKOLD,16/06/2023,514.55
"Communities, Customer & Commercial Services",Sport & Leisure,Supplies & Services,Provisions,BIKOLD,16/06/2023,528.25
"Communities, Customer & Commercial Services",Sport & Leisure,Supplies & Services,Provisions,BIKOLD,16/06/2023,292.61
"Communities, Customer & Commercial Services",Sport & Leisure,Supplies & Services,Provisions,BIKOLD,16/06/2023,205.45
"Communities, Customer & Commercial Services",Sport & Leisure,Supplies & Services,Provisions,BIKOLD,16/06/2023,122.40
"Communities, Customer & Commercial Services",Sport & Leisure,Supplies & Services,Provisions,BIKOLD,16/06/2023,135.90
"Communities, Customer & Commercial Services",Sport & Leisure,Supplies & Services,Provisions,BIKOLD,16/06/2023,402.40
"Communities, Customer & Commercial Services",Sport & Leisure,Supplies & Services,Provisions,BIKOLD,16/06/2023,134.79
"Communities, Customer & Commercial Services",Sport & Leisure,Supplies & Services,Provisions,BIKOLD,16/06/2023,111.53
"Communities, Customer & Commercial Services",Sport & Leisure,Supplies & Services,Provisions,BIKOLD,16/06/2023,616.73
"Communities, Customer & Commercial Services",Sport & Leisure,Supplies & Services,Provisions,BIKOLD,16/06/2023,679.31
"Communities, Customer & Commercial Services",Sport & Leisure,Supplies & Services,Provisions,BIKOLD,16/06/2023,"1,459.83"
"Communities, Customer & Commercial Services",Sport & Leisure,Supplies & Services,Provisions,BIKOLD,29/06/2023,113.28
"Communities, Customer & Commercial Services",Sport & Leisure,Supplies & Services,Provisions,BIKOLD,29/06/2023,146.06
"Communities, Customer & Commercial Services",Sport & Leisure,Supplies & Services,Provisions,BIKOLD,29/06/2023,237.02
"Communities, Customer & Commercial Services",Sport & Leisure,Supplies & Services,Provisions,BIKOLD,29/06/2023,107.60
"Communities, Customer & Commercial Services",Sport & Leisure,Supplies & Services,Provisions,BIKOLD,29/06/2023,200.49
"Communities, Customer & Commercial Services",Sport & Leisure,Supplies & Services,Provisions,BIKOLD,29/06/2023,262.07
"Communities, Customer & Commercial Services",Sport & Leisure,Supplies & Services,Provisions,BIKOLD,29/06/2023,153.54
"Communities, Customer & Commercial Services",Sport & Leisure,Supplies & Services,Provisions,BIKOLD,29/06/2023,229.74
"Communities, Customer & Commercial Services",Sport & Leisure,Supplies & Services,Provisions,BIKOLD,29/06/2023,505.39
"Communities, Customer & Commercial Services",Sport & Leisure,Supplies & Services,Provisions,BIKOLD,29/06/2023,590.34
"Communities, Customer & Commercial Services",Sport & Leisure,Supplies & Services,Provisions,BIKOLD,29/06/2023,851.30
"Communities, Customer & Commercial Services",Sport & Leisure,Supplies & Services,Provisions,BIKOLD,29/06/2023,312.58
"Communities, Customer & Commercial Services",Sport & Leisure,Supplies & Services,Provisions,BIKOLD,29/06/2023,124.10
"Communities, Customer & Commercial Services",Sport & Leisure,Supplies & Services,Provisions,BIKOLD,29/06/2023,256.06
"Communities, Customer & Commercial Services",Sport & Leisure,Supplies & Services,Provisions,BIKOLD,29/06/2023,441.75
"Communities, Customer & Commercial Services",Sport & Leisure,Supplies & Services,Provisions,BIKOLD,29/06/2023,394.00
"Communities, Customer & Commercial Services",Sport & Leisure,Supplies & Services,Provisions,BIKOLD,29/06/2023,220.40
"Communities, Customer & Commercial Services",Sport & Leisure,Supplies & Services,Provisions,BIKOLD,29/06/2023,315.63
"Communities, Customer & Commercial Services",Sport & Leisure,Supplies & Services,Provisions,BIKOLD,29/06/2023,223.24
"Communities, Customer & Commercial Services",Sport & Leisure,Supplies & Services,Provisions,BIKOLD,29/06/2023,104.31
"Communities, Customer & Commercial Services",Sport & Leisure,Supplies & Services,Provisions,BIKOLD,29/06/2023,167.86
"Communities, Customer & Commercial Services",Sport & Leisure,Supplies & Services,Provisions,BIKOLD,29/06/2023,120.81
"Communities, Customer & Commercial Services",Sport & Leisure,Supplies & Services,Provisions,BIKOLD,22/06/2023,291.96
"Communities, Customer & Commercial Services",Sport & Leisure,Supplies & Services,Provisions,BIKOLD,22/06/2023,290.38
"Communities, Customer & Commercial Services",Sport & Leisure,Supplies & Services,Provisions,BIKOLD,22/06/2023,209.93
"Communities, Customer & Commercial Services",Sport & Leisure,Supplies & Services,Provisions,BIKOLD,22/06/2023,398.83
"Communities, Customer & Commercial Services",Sport & Leisure,Supplies & Services,Provisions,BIKOLD,22/06/2023,354.68
"Communities, Customer & Commercial Services",Sport & Leisure,Supplies & Services,Provisions,BIKOLD,22/06/2023,"1,533.23"
"Communities, Customer & Commercial Services",Sport & Leisure,Supplies & Services,Provisions,BIKOLD,22/06/2023,318.55
"Communities, Customer & Commercial Services",Sport & Leisure,Supplies & Services,Provisions,BIKOLD,22/06/2023,146.39
"Communities, Customer & Commercial Services",Sport & Leisure,Supplies & Services,Provisions,BIKOLD,22/06/2023,422.00
"Communities, Customer & Commercial Services",Sport & Leisure,Supplies & Services,Provisions,BIKOLD,22/06/2023,448.94
"Communities, Customer & Commercial Services",Sport & Leisure,Supplies & Services,Provisions,BIKOLD,22/06/2023,383.88
"Communities, Customer & Commercial Services",Sport & Leisure,Supplies & Services,Provisions,BIKOLD,22/06/2023,569.98
"Communities, Customer & Commercial Services",Sport & Leisure,Supplies & Services,Provisions,BIKOLD,22/06/2023,"1,030.80"
"Communities, Customer & Commercial Services",Sport & Leisure,Supplies & Services,Provisions,BIKOLD,22/06/2023,110.32
"Communities, Customer & Commercial Services",Sport & Leisure,Supplies & Services,Provisions,BIKOLD,22/06/2023,104.22
"Communities, Customer & Commercial Services",Sport & Leisure,Supplies & Services,Provisions,BIKOLD,22/06/2023,266.44
"Communities, Customer & Commercial Services",Sport & Leisure,Supplies & Services,Provisions,BIKOLD,22/06/2023,147.67
"Communities, Customer & Commercial Services",Sport & Leisure,Supplies & Services,Provisions,BIKOLD,22/06/2023,284.46
"Communities, Customer & Commercial Services",Sport & Leisure,Supplies & Services,Provisions,BIKOLD,22/06/2023,178.58
"Communities, Customer & Commercial Services",Sport & Leisure,Supplies & Services,Provisions,BIKOLD,22/06/2023,246.11
"Communities, Customer & Commercial Services",Sport & Leisure,Supplies & Services,Provisions,BIKOLD,22/06/2023,111.30
"Communities, Customer & Commercial Services",Sport & Leisure,Supplies & Services,Provisions,BIKOLD,22/06/2023,259.08
"Communities, Customer & Commercial Services",Sport & Leisure,Supplies & Services,Provisions,BIKOLD,22/06/2023,205.20
"Communities, Customer & Commercial Services",Sport & Leisure,Supplies & Services,Provisions,BIKOLD,22/06/2023,580.41
"Communities, Customer & Commercial Services",Sport & Leisure,Supplies & Services,Provisions,Handmade Speciality Products Ltd,08/06/2023,634.29
"Communities, Customer & Commercial Services",Sport & Leisure,Supplies & Services,Provisions,J S  Catering Butchers,14/06/2023,143.10
"Communities, Customer & Commercial Services",Sport & Leisure,Supplies & Services,Provisions,On A Roll,27/06/2023,265.75
"Communities, Customer & Commercial Services",Sport & Leisure,Supplies & Services,Provisions,On A Roll,27/06/2023,210.36
"Communities, Customer & Commercial Services",Sport & Leisure,Supplies & Services,Provisions,On A Roll,27/06/2023,179.69
"Communities, Customer & Commercial Services",Sport & Leisure,Supplies & Services,Provisions,On A Roll,29/06/2023,152.01
"Communities, Customer & Commercial Services",Sport & Leisure,Supplies & Services,Provisions,On A Roll,29/06/2023,229.16
"Communities, Customer & Commercial Services",Sport & Leisure,Supplies & Services,Provisions,On A Roll,29/06/2023,299.95
"Communities, Customer & Commercial Services",Sport & Leisure,Supplies & Services,Provisions,PASTA KING LIMITED,23/06/2023,450.72
"Communities, Customer & Commercial Services",Sport & Leisure,Supplies & Services,Provisions,PASTA KING LIMITED,14/06/2023,300.48
"Communities, Customer & Commercial Services",Sport & Leisure,Supplies & Services,Provisions,PASTA KING LIMITED,08/06/2023,300.48
"Communities, Customer & Commercial Services",Sport & Leisure,Supplies & Services,Provisions,PASTA KING LIMITED,08/06/2023,525.84
"Communities, Customer & Commercial Services",Sport & Leisure,Supplies & Services,Provisions,PASTA KING LIMITED,08/06/2023,131.50
"Communities, Customer & Commercial Services",Sport & Leisure,Supplies & Services,Provisions,PASTA KING LIMITED,15/06/2023,174.96
"Communities, Customer & Commercial Services",Sport & Leisure,Supplies & Services,Provisions,PASTA KING LIMITED,15/06/2023,375.60
"Communities, Customer & Commercial Services",Sport & Leisure,Supplies & Services,Provisions,PASTA KING LIMITED,29/06/2023,638.52
"Communities, Customer & Commercial Services",Sport & Leisure,Supplies & Services,Provisions,PASTA KING LIMITED,29/06/2023,488.28
"Communities, Customer & Commercial Services",Sport & Leisure,Supplies & Services,Crockery/Hardware/Light Equip,PLANGLOW LTD,20/06/2023,379.67
"Communities, Customer & Commercial Services",Sport & Leisure,Supplies & Services,Crockery/Hardware/Light Equip,PLANGLOW LTD,20/06/2023,259.60
"Communities, Customer & Commercial Services",Sport & Leisure,Supplies & Services,Crockery/Hardware/Light Equip,PLANGLOW LTD,27/06/2023,379.67
"Communities, Customer & Commercial Services",Sport & Leisure,Supplies & Services,Provisions,R & COMPANY,21/06/2023,130.32
"Communities, Customer & Commercial Services",Sport & Leisure,Supplies & Services,Provisions,R & COMPANY,21/06/2023,225.56
"Communities, Customer & Commercial Services",Sport & Leisure,Supplies & Services,Provisions,R & COMPANY,26/06/2023,225.15
"Communities, Customer & Commercial Services",Sport & Leisure,Supplies & Services,Provisions,R & COMPANY,26/06/2023,107.29
"Communities, Customer & Commercial Services",Sport & Leisure,Supplies & Services,Provisions,T FOOD SERVICE LTD,23/06/2023,"1,059.00"
"Communities, Customer & Commercial Services",Sport & Leisure,Supplies & Services,Provisions,T FOOD SERVICE LTD,23/06/2023,351.16
"Communities, Customer & Commercial Services",Sport & Leisure,Supplies & Services,Provisions,T FOOD SERVICE LTD,08/06/2023,871.07
"Communities, Customer & Commercial Services",Sport & Leisure,Supplies & Services,Provisions,T FOOD SERVICE LTD,15/06/2023,225.56
"Communities, Customer & Commercial Services",Sport & Leisure,Supplies & Services,Provisions,T FOOD SERVICE LTD,15/06/2023,"1,148.87"
"Communities, Customer & Commercial Services",Sport & Leisure,Supplies & Services,Provisions,T FOOD SERVICE LTD,29/06/2023,937.67
"Communities, Customer & Commercial Services",Sport & Leisure,Supplies & Services,Crockery/Hardware/Light Equip,Vegware,08/06/2023,279.40
"Communities, Customer & Commercial Services",Sport & Leisure,Supplies & Services,Crockery/Hardware/Light Equip,Vegware,14/06/2023,153.04
"Communities, Customer & Commercial Services",Sport & Leisure,Premises-Related Expenditure,Clean Mats & Toilet Requisites,Border Janitorial Supplies Limited,02/06/2023,820.00
"Communities, Customer & Commercial Services",Sport & Leisure,Premises-Related Expenditure,Clean Mats & Toilet Requisites,Border Janitorial Supplies Limited,08/06/2023,289.00
"Communities, Customer & Commercial Services",Sport & Leisure,Premises-Related Expenditure,Clean Mats & Toilet Requisites,Border Janitorial Supplies Limited,08/06/2023,203.94
"Communities, Customer & Commercial Services",Sport & Leisure,Premises-Related Expenditure,Clean Mats & Toilet Requisites,Border Janitorial Supplies Limited,08/06/2023,112.89
"Communities, Customer & Commercial Services",Sport & Leisure,Premises-Related Expenditure,Clean Mats & Toilet Requisites,Border Janitorial Supplies Limited,08/06/2023,253.00
"Communities, Customer & Commercial Services",Sport & Leisure,Premises-Related Expenditure,Clean Mats & Toilet Requisites,Border Janitorial Supplies Limited,08/06/2023,202.81
"Communities, Customer & Commercial Services",Sport & Leisure,Supplies & Services,Equipment - Repair,NUMATIC INTERNATIONAL LTD,08/06/2023,554.13
"Communities, Customer & Commercial Services",Sport & Leisure,Supplies & Services,Equipment - Repair,NUMATIC INTERNATIONAL LTD,08/06/2023,155.89
"Communities, Customer & Commercial Services",Sport & Leisure,Supplies & Services,Equipment - Repair,NUMATIC INTERNATIONAL LTD,08/06/2023,381.72
"Communities, Customer & Commercial Services",Sport & Leisure,Premises-Related Expenditure,Clean Mats & Toilet Requisites,Border Janitorial Supplies Limited,08/06/2023,168.16
"Communities, Customer & Commercial Services",Sport & Leisure,Premises-Related Expenditure,Clean Mats & Toilet Requisites,Border Janitorial Supplies Limited,08/06/2023,110.71
"Communities, Customer & Commercial Services",Sport & Leisure,Premises-Related Expenditure,Clean Mats & Toilet Requisites,Border Janitorial Supplies Limited,08/06/2023,267.17
"Communities, Customer & Commercial Services",Sport & Leisure,Premises-Related Expenditure,Clean Mats & Toilet Requisites,Border Janitorial Supplies Limited,08/06/2023,141.76
"Communities, Customer & Commercial Services",Sport & Leisure,Premises-Related Expenditure,Clean Mats & Toilet Requisites,Border Janitorial Supplies Limited,02/06/2023,765.43
"Communities, Customer & Commercial Services",Sport & Leisure,Premises-Related Expenditure,Clean Mats & Toilet Requisites,Border Janitorial Supplies Limited,08/06/2023,199.04
"Communities, Customer & Commercial Services",Sport & Leisure,Supplies & Services,Crockery/Hardware/Light Equip,Charnwood Instrumentation Services Ltd,05/06/2023,"1,094.30"
"Communities, Customer & Commercial Services",Sport & Leisure,Supplies & Services,Provisions,BIKOLD,09/06/2023,103.39
"Communities, Customer & Commercial Services",Sport & Leisure,Supplies & Services,Provisions,BIKOLD,16/06/2023,109.98
"Communities, Customer & Commercial Services",Sport & Leisure,Supplies & Services,Provisions,BIKOLD,29/06/2023,140.18
"Communities, Customer & Commercial Services",Sport & Leisure,Supplies & Services,Crockery/Hardware/Light Equip,PLANGLOW LTD,27/06/2023,442.64
"Communities, Customer & Commercial Services",Sport & Leisure,Premises-Related Expenditure,Electricity,West Mercia Energy (WME),27/06/2023,520.75
"Communities, Customer & Commercial Services",Sport & Leisure,Premises-Related Expenditure,Electricity,West Mercia Energy (WME),01/06/2023,712.62
"Communities, Customer & Commercial Services",Sport & Leisure,Supplies & Services,Sub Contractors,BUSINESS WATCH GUARDING LIMITED,20/06/2023,574.06
"Communities, Customer & Commercial Services",Sport & Leisure,Supplies & Services,Sub Contractors,ENVIRONMENT AGENCY,16/06/2023,890.00
"Communities, Customer & Commercial Services",Sport & Leisure,Supplies & Services,Other Materials,J P L LTD,26/06/2023,146.19
"Communities, Customer & Commercial Services",Sport & Leisure,Supplies & Services,Sub Contractors,JCE & SONS LTD,28/06/2023,125.00
"Communities, Customer & Commercial Services",Sport & Leisure,Supplies & Services,Sub Contractors,MSM Hire Ltd,22/06/2023,494.98
"Communities, Customer & Commercial Services",Sport & Leisure,Supplies & Services,Sub Contractors,MSM Hire Ltd,12/06/2023,290.00
"Communities, Customer & Commercial Services",Sport & Leisure,Supplies & Services,Sub Contractors,MSM Hire Ltd,12/06/2023,187.68
"Communities, Customer & Commercial Services",Sport & Leisure,Supplies & Services,Sub Contractors,MSM Hire Ltd,15/06/2023,950.00
"Communities, Customer & Commercial Services",Sport & Leisure,Supplies & Services,Carriage/Delivery Charge,Power Point Stores,23/06/2023,237.49
"Communities, Customer & Commercial Services",Sport & Leisure,Supplies & Services,Other Materials,PROVAC CLEANING SUPPLIES LTD,05/06/2023,445.18
"Communities, Customer & Commercial Services",Sport & Leisure,Supplies & Services,Other Materials,PROVAC CLEANING SUPPLIES LTD,23/06/2023,247.48
"Communities, Customer & Commercial Services",Sport & Leisure,Supplies & Services,Sub Contractors,SIGNS EXPRESS ,30/06/2023,"3,337.86"
"Communities, Customer & Commercial Services",Sport & Leisure,Supplies & Services,Sub Contractors,Waterplay Solutions Limited,06/06/2023,550.00
"Communities, Customer & Commercial Services",Sport & Leisure,Supplies & Services,Sub Contractors,W Sawmill & Nursery,28/06/2023,320.57
"Communities, Customer & Commercial Services",Sport & Leisure,Supplies & Services,Chemicals/Cleaning Products,Border Janitorial Supplies Limited,29/06/2023,347.54
"Communities, Customer & Commercial Services",Sport & Leisure,Supplies & Services,Items For Resale,Splash About International Limited,30/06/2023,"2,017.80"
"Communities, Customer & Commercial Services",Sport & Leisure,Supplies & Services,Equipment - Purchase,TECHNOGYM UK LTD,07/06/2023,157.76
"Communities, Customer & Commercial Services",Sport & Leisure,Supplies & Services,Comp Hardware (Purch / Hire),CCS MEDIA LIMITED,01/06/2023,229.00
"Communities, Customer & Commercial Services",Sport & Leisure,Supplies & Services,Licences,L M Fitness UK Ltd,01/06/2023,"1,045.00"
"Communities, Customer & Commercial Services",Sport & Leisure,Supplies & Services,Chemicals/Cleaning Products,Border Janitorial Supplies Limited,07/06/2023,153.50
"Communities, Customer & Commercial Services",Sport & Leisure,Supplies & Services,Chemicals/Cleaning Products,Border Janitorial Supplies Limited,16/06/2023,231.23
"Communities, Customer & Commercial Services",Sport & Leisure,Supplies & Services,Chemicals/Cleaning Products,Border Janitorial Supplies Limited,28/06/2023,-153.50
"Communities, Customer & Commercial Services",Sport & Leisure,Supplies & Services,Chemicals/Cleaning Products,Border Janitorial Supplies Limited,30/06/2023,669.06
"Communities, Customer & Commercial Services",Sport & Leisure,Supplies & Services,Chemicals/Cleaning Products,Border Janitorial Supplies Limited,30/06/2023,153.50
"Communities, Customer & Commercial Services",Sport & Leisure,Supplies & Services,Chemicals/Cleaning Products,Border Janitorial Supplies Limited,30/06/2023,228.81
"Communities, Customer & Commercial Services",Sport & Leisure,Supplies & Services,Chemicals/Cleaning Products,BRENNTAG UK LIMITED,07/06/2023,611.85
"Communities, Customer & Commercial Services",Sport & Leisure,Supplies & Services,Stationery,CCS MEDIA LIMITED,15/06/2023,148.00
"Communities, Customer & Commercial Services",Sport & Leisure,Supplies & Services,Equipment - Purchase,GRANVILLE CONSTRUCTION & MAINTENANCE LTD,02/06/2023,729.84
"Communities, Customer & Commercial Services",Sport & Leisure,Supplies & Services,Equipment - Purchase,RLSS UK Enterprises Ltd,09/06/2023,210.00
"Communities, Customer & Commercial Services",Sport & Leisure,Supplies & Services,Items For Resale,SWIM ENGLAND TRADING LIMITED,23/06/2023,593.50
"Communities, Customer & Commercial Services",Sport & Leisure,Premises-Related Expenditure,R&M -Building Other,GRANVILLE CONSTRUCTION & MAINTENANCE LTD,01/06/2023,232.80
"Communities, Customer & Commercial Services",Sport & Leisure,Supplies & Services,Equipment - Purchase,JCE & SONS LTD,23/06/2023,255.00
"Communities, Customer & Commercial Services",Sport & Leisure,Supplies & Services,Equipment - Purchase,We Do Tennis CIC,30/06/2023,"1,000.00"
"Communities, Customer & Commercial Services",Sport & Leisure,Supplies & Services,Research Surveys,Community First Partnership LTD,22/06/2023,"4,381.25"
"Communities, Customer & Commercial Services",Sport & Leisure,Supplies & Services,Flex Charges,Verifone UK Limited,15/06/2023,322.50
"Communities, Customer & Commercial Services",Sport & Leisure,Supplies & Services,Flex Charges,Verifone UK Limited,15/06/2023,297.50
"Communities, Customer & Commercial Services",Sport & Leisure,Supplies & Services,Flex Charges,Verifone UK Limited,15/06/2023,-322.50
"Communities, Customer & Commercial Services",Sport & Leisure,Supplies & Services,Flex Charges,Verifone UK Limited,15/06/2023,-322.50
"Communities, Customer & Commercial Services",Sport & Leisure,Supplies & Services,Equipment - Purchase,JCE & SONS LTD,23/06/2023,675.00
"Communities, Customer & Commercial Services",Sport & Leisure,Supplies & Services,Equipment - Purchase,NOBRIDGE LTD,07/06/2023,600.00
"Communities, Customer & Commercial Services",Sport & Leisure,Supplies & Services,Equipment - Hire,A J. G INSURANCE BROKERS LTD ,19/06/2023,187.79
"Communities, Customer & Commercial Services",Sport & Leisure,Transport-Related Expenditure,Servicing & Repairs V&P,LOCSAFE SECURITY SYSTEMS,15/06/2023,129.00
"Communities, Customer & Commercial Services",Sport & Leisure,Premises-Related Expenditure,R&M WC Planned,Agrovista UK LTD,05/06/2023,164.40
"Communities, Customer & Commercial Services",Sport & Leisure,Premises-Related Expenditure,R&M WC Planned,Agrovista UK LTD,12/06/2023,970.94
"Communities, Customer & Commercial Services",Sport & Leisure,Transport-Related Expenditure,Servicing & Repairs V&P,C STORES LTD,19/06/2023,149.79
"Communities, Customer & Commercial Services",Sport & Leisure,Transport-Related Expenditure,Servicing & Repairs V&P,C STORES LTD,19/06/2023,161.53
"Communities, Customer & Commercial Services",Sport & Leisure,Premises-Related Expenditure,Clean Mats & Toilet Requisites,Border Janitorial Supplies Limited,27/06/2023,111.90
"Communities, Customer & Commercial Services",Sport & Leisure,Supplies & Services,Provisions,BIKOLD,09/06/2023,214.24
"Communities, Customer & Commercial Services",Sport & Leisure,Supplies & Services,Provisions,BIKOLD,09/06/2023,152.57
"Communities, Customer & Commercial Services",Sport & Leisure,Supplies & Services,Provisions,BIKOLD,09/06/2023,272.60
"Communities, Customer & Commercial Services",Sport & Leisure,Supplies & Services,Provisions,BIKOLD,02/06/2023,112.59
"Communities, Customer & Commercial Services",Sport & Leisure,Supplies & Services,Provisions,BIKOLD,02/06/2023,187.44
"Communities, Customer & Commercial Services",Sport & Leisure,Supplies & Services,Provisions,BIKOLD,02/06/2023,313.27
"Communities, Customer & Commercial Services",Sport & Leisure,Supplies & Services,Provisions,BIKOLD,16/06/2023,281.61
"Communities, Customer & Commercial Services",Sport & Leisure,Supplies & Services,Provisions,BIKOLD,16/06/2023,176.63
"Communities, Customer & Commercial Services",Sport & Leisure,Supplies & Services,Provisions,BIKOLD,29/06/2023,366.85
"Communities, Customer & Commercial Services",Sport & Leisure,Supplies & Services,Provisions,BIKOLD,29/06/2023,162.58
"Communities, Customer & Commercial Services",Sport & Leisure,Supplies & Services,Provisions,BIKOLD,29/06/2023,150.05
"Communities, Customer & Commercial Services",Sport & Leisure,Supplies & Services,Provisions,BIKOLD,29/06/2023,265.67
"Communities, Customer & Commercial Services",Sport & Leisure,Supplies & Services,Provisions,BIKOLD,29/06/2023,215.86
"Communities, Customer & Commercial Services",Sport & Leisure,Supplies & Services,Provisions,BIKOLD,29/06/2023,158.62
"Communities, Customer & Commercial Services",Sport & Leisure,Supplies & Services,Provisions,BIKOLD,29/06/2023,379.06
"Communities, Customer & Commercial Services",Sport & Leisure,Supplies & Services,Provisions,BIKOLD,22/06/2023,526.54
"Communities, Customer & Commercial Services",Sport & Leisure,Supplies & Services,Provisions,BIKOLD,22/06/2023,583.33
"Communities, Customer & Commercial Services",Sport & Leisure,Premises-Related Expenditure,R&M Fixed Plant Other,HOOD AIRPORT & ICE LTD,09/06/2023,355.00
"Communities, Customer & Commercial Services",Sport & Leisure,Supplies & Services,Stationery,CCR,21/06/2023,165.00
"Communities, Customer & Commercial Services",Sport & Leisure,Supplies & Services,Equipment - Hire,SLIDERS SKATE SHOP,09/06/2023,300.00
"Communities, Customer & Commercial Services",Sport & Leisure,Supplies & Services,Items For Resale,W Workplace Solutions,09/06/2023,541.50
"Communities, Customer & Commercial Services",Sport & Leisure,Supplies & Services,Equipment - Purchase,RLSS UK Enterprises Ltd,21/06/2023,708.00
"Communities, Customer & Commercial Services",Sport & Leisure,Supplies & Services,Equipment - Purchase,RLSS UK Enterprises Ltd,05/06/2023,150.00
"Communities, Customer & Commercial Services",Sport & Leisure,Supplies & Services,Equipment - Purchase,RLSS UK Enterprises Ltd,05/06/2023,170.00
"Communities, Customer & Commercial Services",Sport & Leisure,Supplies & Services,Equipment - Purchase,RLSS UK Enterprises Ltd,21/06/2023,120.00
"Communities, Customer & Commercial Services",Sport & Leisure,Supplies & Services,Equipment - Purchase,RLSS UK Enterprises Ltd,21/06/2023,150.00
"Communities, Customer & Commercial Services",Sport & Leisure,Supplies & Services,Equipment - Purchase,RLSS UK Enterprises Ltd,21/06/2023,306.00
"Communities, Customer & Commercial Services",Sport & Leisure,Supplies & Services,Chemicals/Cleaning Products,BRENNTAG UK LIMITED,05/06/2023,"2,080.00"
"Communities, Customer & Commercial Services",Sport & Leisure,Supplies & Services,Chemicals/Cleaning Products,BRENNTAG UK LIMITED,05/06/2023,112.50
"Communities, Customer & Commercial Services",Sport & Leisure,Supplies & Services,Chemicals/Cleaning Products,BRENNTAG UK LIMITED,28/06/2023,780.00
"Communities, Customer & Commercial Services",Sport & Leisure,Supplies & Services,Carriage/Delivery Charge,BRENNTAG UK LIMITED,05/06/2023,103.00
"Communities, Customer & Commercial Services",Sport & Leisure,Supplies & Services,Carriage/Delivery Charge,BRENNTAG UK LIMITED,28/06/2023,103.00
"Communities, Customer & Commercial Services",Sport & Leisure,Supplies & Services,Items For Resale,Splash About International Limited,14/06/2023,157.68
"Communities, Customer & Commercial Services",Sport & Leisure,Supplies & Services,Items For Resale,Splash About International Limited,14/06/2023,158.40
"Communities, Customer & Commercial Services",Sport & Leisure,Supplies & Services,Items For Resale,Splash About International Limited,14/06/2023,107.00
"Communities, Customer & Commercial Services",Sport & Leisure,Supplies & Services,Items For Resale,SWIM ENGLAND TRADING LIMITED,14/06/2023,183.95
"Communities, Customer & Commercial Services",Sport & Leisure,Supplies & Services,Chemicals/Cleaning Products,BRENNTAG UK LIMITED,30/06/2023,618.00
"Communities, Customer & Commercial Services",Sport & Leisure,Premises-Related Expenditure,R&M - Mechanical,Culligan LTD,28/06/2023,117.72
"Communities, Customer & Commercial Services",Sport & Leisure,Supplies & Services,Licences,UK Active,29/06/2023,"1,927.28"
"Communities, Customer & Commercial Services",Sport & Leisure,Supplies & Services,Items For Resale,Splash About International Limited,20/06/2023,983.40
"Communities, Customer & Commercial Services",Sport & Leisure,Supplies & Services,Items For Resale,Splash About International Limited,20/06/2023,126.50
"Communities, Customer & Commercial Services",Sport & Leisure,Supplies & Services,Stationery,THE TILL ROLL CO LTD,13/06/2023,195.95
"Communities, Customer & Commercial Services",Sport & Leisure,Supplies & Services,Payment Of Income Collected,WELLINGTON TOWN COUNCIL,21/06/2023,"8,663.65"
"Communities, Customer & Commercial Services",Sport & Leisure,Supplies & Services,Fees,Austin Mix Ltd,16/06/2023,"3,213.00"
"Communities, Customer & Commercial Services",Sport & Leisure,Supplies & Services,Fees,Austin Mix Ltd,16/06/2023,195.00
"Communities, Customer & Commercial Services",Sport & Leisure,Supplies & Services,Fees,Austin Mix Ltd,16/06/2023,"1,565.00"
"Communities, Customer & Commercial Services",Sport & Leisure,Capital Expenditure,Payments to Contractor,SIGNS EXPRESS ,01/06/2023,929.35
"Communities, Customer & Commercial Services",Sport & Leisure,Capital Expenditure,Payments to Contractor,Surfacing Standards Ltd,08/06/2023,"3,570.00"
"Communities, Customer & Commercial Services",Sport & Leisure,Capital Expenditure,Payments to Contractor,Surfacing Standards Ltd,15/06/2023,650.00
Corporate Communications,Communications & Marketing,Supplies & Services,Mobile Phones,EE LTD EQUIPMENT,14/06/2023,142.00
Corporate Items,Corporate Codes,Capital Financing Costs,Utility Charge,M FM Ltd,19/06/2023,"230,877.00"
Corporate Items,Corporate Codes,Capital Financing Costs,Unitary Charge,PYRAMID SCHOOLS LTD,19/06/2023,"1,005,653.64"
Corporate Items,Corporate Codes,Employees,Agency Supply Costs,Matrix SCM,06/06/2023,"39,947.21"
Corporate Items,Corporate Codes,Employees,Agency Supply Costs,Matrix SCM,06/06/2023,"33,634.96"
Corporate Items,Corporate Codes,Employees,Agency Supply Costs,Matrix SCM,16/06/2023,"44,195.08"
Corporate Items,Corporate Codes,Employees,Agency Supply Costs,Matrix SCM,30/06/2023,"30,146.87"
Corporate Items,Corporate Codes,Premises-Related Expenditure,Solid Fuel,WATER PLUS FORMERLY SEVERN TRENT WATER LTD,16/06/2023,473.98
Education & Skills,Consultancy & Advisory Services,Supplies & Services,Photography,CANFORD AUDIO PLC,29/06/2023,105.00
Education & Skills,Consultancy & Advisory Services,Premises-Related Expenditure,Hire Of Rooms,Mercure Telford Centre Hotel,06/06/2023,120.83
Education & Skills,Consultancy & Advisory Services,Premises-Related Expenditure,Hire Of Rooms,Mercure Telford Centre Hotel,06/06/2023,120.83
Education & Skills,Consultancy & Advisory Services,Premises-Related Expenditure,Hire Of Rooms,Mercure Telford Centre Hotel,06/06/2023,120.83
Education & Skills,Consultancy & Advisory Services,Premises-Related Expenditure,Hire Of Rooms,Mercure Telford Centre Hotel,23/06/2023,155.83
Education & Skills,Consultancy & Advisory Services,Premises-Related Expenditure,Hire Of Rooms,Mercure Telford Centre Hotel,07/06/2023,120.83
Education & Skills,Consultancy & Advisory Services,Supplies & Services,Training Costs - Participants Recharged,Mercure Telford Centre Hotel,06/06/2023,231.88
Education & Skills,Consultancy & Advisory Services,Supplies & Services,Training Costs - Participants Recharged,Mercure Telford Centre Hotel,07/06/2023,157.68
Education & Skills,Consultancy & Advisory Services,Premises-Related Expenditure,Hire Of Rooms,MEETING POINT TRUST LTD,16/06/2023,115.00
Education & Skills,Consultancy & Advisory Services,Premises-Related Expenditure,Hire Of Rooms,MEETING POINT TRUST LTD,08/06/2023,115.00
Education & Skills,Consultancy & Advisory Services,Premises-Related Expenditure,Hire Of Rooms,MEETING POINT TRUST LTD,27/06/2023,115.00
Education & Skills,Consultancy & Advisory Services,Premises-Related Expenditure,Hire Of Rooms,R TELFORD IRONBRIDGE,27/06/2023,160.00
Education & Skills,Consultancy & Advisory Services,Supplies & Services,Materials,I CAN CHARITY,30/06/2023,"8,096.00"
Education & Skills,Consultancy & Advisory Services,Supplies & Services,Conference Expenses,R TELFORD IRONBRIDGE,27/06/2023,112.92
Education & Skills,Consultancy & Advisory Services,Supplies & Services,Marketing & Publicity,Silk Group,28/06/2023,"3,340.00"
Education & Skills,Consultancy & Advisory Services,Supplies & Services,Marketing & Publicity,Silk Group,02/06/2023,"1,050.00"
Education & Skills,Consultancy & Advisory Services,Employees,Training Exp�s (Facilitators),TAARC,23/06/2023,250.00
Education & Skills,Education & Skills,Capital Expenditure,Payments to Contractor,PAVE AWAYS LTD,09/06/2023,"19,645.90"
Education & Skills,Education & Skills,Capital Expenditure,Payments to Contractor,WELLINGTON INSULATION CO. LTD,13/06/2023,"1,184.00"
Education & Skills,Education & Skills,Capital Expenditure,Payments to Contractor,WINDOW & DOOR CONTRACT SERVICES,21/06/2023,"41,143.62"
Education & Skills,Education & Skills,Capital Expenditure,Legal Fees,W H SOLICITORS,21/06/2023,228.00
Education & Skills,Education & Skills,Capital Expenditure,Payments to Contractor,SGS United Kingdom Limited,23/06/2023,325.00
Education & Skills,Education & Skills,Capital Expenditure,Payments to Contractor,SGS United Kingdom Limited,23/06/2023,324.00
Education & Skills,Education & Skills,Capital Expenditure,Payments to Contractor,SGS United Kingdom Limited,09/06/2023,225.00
Education & Skills,Education & Skills,Capital Expenditure,Payments to Contractor,SGS United Kingdom Limited,23/06/2023,350.00
Education & Skills,Education & Skills,Capital Expenditure,Payments to Contractor,GRANVILLE CONSTRUCTION & MAINTENANCE LTD,09/06/2023,634.87
Education & Skills,Education & Skills,Capital Expenditure,Payments to Contractor,M M LIMITED,19/06/2023,"2,975.00"
Education & Skills,Education & Skills,Capital Expenditure,Payments to Contractor,SGS United Kingdom Limited,09/06/2023,450.00
Education & Skills,Education & Skills,Capital Expenditure,Payments to Contractor,T MECHANICAL H & P SERVICES LTD,19/06/2023,"21,000.00"
Education & Skills,Education & Skills,Capital Expenditure,Payments to Contractor,P LTD,05/06/2023,"6,647.00"
Education & Skills,Education & Skills,Capital Expenditure,Payments to Contractor,P LTD,06/06/2023,"4,363.00"
Education & Skills,Education & Skills,Capital Expenditure,Payments to Contractor,P LTD,19/06/2023,"25,734.00"
Education & Skills,Education & Skills,Capital Expenditure,Payments to Contractor,Services in Design Ltd,05/06/2023,322.25
Education & Skills,Education & Skills,Capital Expenditure,Payments to Contractor,T MECHANICAL H & P SERVICES LTD,19/06/2023,"4,635.00"
Education & Skills,Education & Skills,Capital Expenditure,Payments to Contractor,BATTLEFIELD LAND SURVEYS LTD,19/06/2023,"1,100.00"
Education & Skills,Education & Skills,Capital Expenditure,Payments to Contractor,P LTD,19/06/2023,"4,575.00"
Education & Skills,Education & Skills,Capital Expenditure,Payments to Contractor,COOPER & WILLIAMS LTD,09/06/2023,"2,202.45"
Education & Skills,Education & Skills,Capital Expenditure,Payments to Contractor,CCS MEDIA LIMITED,16/06/2023,"2,475.00"
Education & Skills,Education & Skills,Capital Expenditure,Payments to Contractor,CCS MEDIA LIMITED,16/06/2023,"23,940.00"
Education & Skills,Education & Skills,Capital Expenditure,Payments to Contractor,WINDOW & DOOR CONTRACT SERVICES,19/06/2023,"18,281.65"
Education & Skills,Education & Skills,Capital Expenditure,Payments to Contractor,WINDOW & DOOR CONTRACT SERVICES,19/06/2023,"41,143.62"
Education & Skills,Education & Skills,Capital Expenditure,Payments to Contractor,ASLES LTD,19/06/2023,"4,240.00"
Education & Skills,Education & Skills,Capital Expenditure,Payments to Contractor,ASLES LTD,27/06/2023,"4,055.00"
Education & Skills,Education & Skills,Capital Expenditure,Payments to Contractor,T MECHANICAL H & P SERVICES LTD,05/06/2023,"6,459.36"
Education & Skills,Education & Skills,Capital Expenditure,Payments to Contractor,T MECHANICAL H & P SERVICES LTD,05/06/2023,"2,011.02"
Education & Skills,Education & Skills,Capital Expenditure,Payments to Contractor,T MECHANICAL H & P SERVICES LTD,09/06/2023,"1,593.31"
Education & Skills,Education & Skills,Capital Expenditure,Payments to Contractor,T MECHANICAL H & P SERVICES LTD,09/06/2023,"2,569.69"
Education & Skills,Pupil Support Services,Supplies & Services,Other Grants (Expenses),School of Coding Ltd,08/06/2023,"2,131.00"
Education & Skills,Pupil Support Services,Supplies & Services,Other Expenses,BADGES PLUS LTD,19/06/2023,278.00
Education & Skills,Pupil Support Services,Supplies & Services,Artistes Fees,Entrust Support Services Ltd,22/06/2023,"5,489.56"
Education & Skills,Pupil Support Services,Supplies & Services,Comp Software (Purch / Hire),Paritor Ltd,27/06/2023,"2,284.66"
Education & Skills,Pupil Support Services,Supplies & Services,Artistes Fees,REDACTED PERSONAL INFORMATION,07/06/2023,"2,605.00"
Education & Skills,SEND (0-25),Transport-Related Expenditure,Taxi Costs,24X7 Ltd,14/06/2023,332.13
Education & Skills,SEND (0-25),Transport-Related Expenditure,Taxi Costs,24X7 Ltd,14/06/2023,"7,866.18"
Education & Skills,SEND (0-25),Transport-Related Expenditure,Taxi Costs,24X7 Ltd,14/06/2023,"4,053.42"
Education & Skills,SEND (0-25),Transport-Related Expenditure,Taxi Costs,24X7 Ltd,27/06/2023,442.84
Education & Skills,SEND (0-25),Transport-Related Expenditure,Taxi Costs,24X7 Ltd,06/06/2023,"10,051.23"
Education & Skills,SEND (0-25),Transport-Related Expenditure,Taxi Costs,365 Transports Ltd,06/06/2023,"1,320.00"
Education & Skills,SEND (0-25),Transport-Related Expenditure,Transport Contractors,A-STAR TRANSPORT MIDLANDS LTD,06/06/2023,"5,850.00"
Education & Skills,SEND (0-25),Transport-Related Expenditure,Taxi Costs,A-STAR TRANSPORT MIDLANDS LTD,06/06/2023,"2,736.00"
Education & Skills,SEND (0-25),Transport-Related Expenditure,Taxi Costs,A-STAR TRANSPORT MIDLANDS LTD,06/06/2023,"1,520.00"
Education & Skills,SEND (0-25),Transport-Related Expenditure,Taxi Costs,Elite Telford Limited,14/06/2023,"1,944.00"
Education & Skills,SEND (0-25),Transport-Related Expenditure,Taxi Costs,Telford and Wrekin Community Enterprise LTD,06/06/2023,"2,058.00"
Education & Skills,SEND (0-25),Transport-Related Expenditure,Taxi Costs,Telford and Wrekin Community Enterprise LTD,06/06/2023,"1,200.00"
Education & Skills,SEND (0-25),Transport-Related Expenditure,Taxi Costs,Telford Taxi Hire Limited,14/06/2023,"3,780.00"
Education & Skills,SEND (0-25),Transport-Related Expenditure,Taxi Costs,Telford Taxi Hire Limited,14/06/2023,"2,660.00"
Education & Skills,SEND (0-25),Transport-Related Expenditure,Taxi Costs,Telford Taxi Hire Limited,14/06/2023,"4,860.00"
Education & Skills,SEND (0-25),Transport-Related Expenditure,Transport Contractors,Telford Taxi Hire Limited,14/06/2023,"4,320.00"
Education & Skills,SEND (0-25),Transport-Related Expenditure,Taxi Costs,Telford Taxi Hire Limited,14/06/2023,"1,300.00"
Education & Skills,SEND (0-25),Transport-Related Expenditure,Taxi Costs,Telford Taxi Hire Limited,14/06/2023,"3,960.00"
Education & Skills,SEND (0-25),Transport-Related Expenditure,Taxi Costs,Telford Taxi Hire Limited,14/06/2023,"1,100.00"
Education & Skills,SEND (0-25),Transport-Related Expenditure,Taxi Costs,Go Carz,14/06/2023,566.50
Education & Skills,SEND (0-25),Employees,Staff Training,COMMUNICATE-ED,29/06/2023,190.00
Education & Skills,SEND (0-25),Supplies & Services,Materials,I CAN CHARITY,02/06/2023,"3,040.00"
Education & Skills,SEND (0-25),Third Party Payments,DSG - High Needs Block,ABC Day Nursery Hadley,06/06/2023,"2,721.31"
Education & Skills,SEND (0-25),Third Party Payments,DSG - High Needs Block,ABC DAY NURSERY HOLLINSWOOD ,06/06/2023,"2,077.65"
Education & Skills,SEND (0-25),Third Party Payments,DSG - High Needs Block,ABC DAY NURSERY LTD ,06/06/2023,931.70
Education & Skills,SEND (0-25),Third Party Payments,DSG - High Needs Block,Apley Village Day Nursery,06/06/2023,549.18
Education & Skills,SEND (0-25),Third Party Payments,DSG - High Needs Block,Aqueduct Little Learners,06/06/2023,"2,278.92"
Education & Skills,SEND (0-25),Third Party Payments,DSG - High Needs Block,BROOKSIDE PRE-SCHOOL & PLAYGROUP,06/06/2023,415.53
Education & Skills,SEND (0-25),Third Party Payments,DSG - High Needs Block,CENTRAL PARK NURSERY,06/06/2023,481.10
Education & Skills,SEND (0-25),Third Party Payments,DSG - High Needs Block,Chec Mates Day Care,06/06/2023,"1,662.12"
Education & Skills,SEND (0-25),Third Party Payments,DSG - High Needs Block,Cherry Blossom Day Care Ltd,06/06/2023,"1,737.70"
Education & Skills,SEND (0-25),Third Party Payments,DSG - High Needs Block,CHIPMUNKS NURSERY,06/06/2023,"1,579.69"
Education & Skills,SEND (0-25),Third Party Payments,DSG - High Needs Block,Chipmunks Nursery OSC Ltd 2,06/06/2023,958.79
Education & Skills,SEND (0-25),Third Party Payments,DSG - High Needs Block,Church Street Day Nursery,06/06/2023,"3,060.79"
Education & Skills,SEND (0-25),Third Party Payments,DSG - High Needs Block,Dawley C of E Primary Academy,06/06/2023,131.15
Education & Skills,SEND (0-25),Third Party Payments,DSG - High Needs Block,Dothill Pre School And Childcare,06/06/2023,"1,322.63"
Education & Skills,SEND (0-25),Third Party Payments,DSG - High Needs Block,Grange Park Primary School - Community Academies Trust,06/06/2023,415.53
Education & Skills,SEND (0-25),Third Party Payments,DSG - High Needs Block,HADLEY UNDER 5�S,06/06/2023,429.19
Education & Skills,SEND (0-25),Third Party Payments,DSG - High Needs Block,HALESFIELD DAY NURSERY CENTRE ,06/06/2023,"1,205.38"
Education & Skills,SEND (0-25),Third Party Payments,DSG - High Needs Block,H Childcare Ltd,06/06/2023,751.37
Education & Skills,SEND (0-25),Third Party Payments,DSG - High Needs Block,HONEYBUNS NURSERIES,06/06/2023,994.99
Education & Skills,SEND (0-25),Third Party Payments,DSG - High Needs Block,Lawley Village Day Nursery,06/06/2023,"1,738.16"
Education & Skills,SEND (0-25),Third Party Payments,DSG - High Needs Block,LITTLE CHICKS PRE-SCHOOL LTD,06/06/2023,"1,158.92"
Education & Skills,SEND (0-25),Third Party Payments,DSG - High Needs Block,LITTLE DRAGONS PRE-SCHOOL,06/06/2023,"2,170.32"
Education & Skills,SEND (0-25),Third Party Payments,DSG - High Needs Block,LONGFORD PLAYGROUP ,06/06/2023,"1,246.59"
Education & Skills,SEND (0-25),Third Party Payments,DSG - High Needs Block,TIGGY�S MONTESSORI NURSERY,06/06/2023,831.06
Education & Skills,SEND (0-25),Third Party Payments,DSG - High Needs Block,OAKENGATES UNITED PRE-SCHOOL,06/06/2023,415.53
Education & Skills,SEND (0-25),Third Party Payments,DSG - High Needs Block,PLAY-DAYS CORPORATION LTD,06/06/2023,"2,254.10"
Education & Skills,SEND (0-25),Third Party Payments,DSG - High Needs Block,PRIORSLEE ACADEMY,06/06/2023,831.06
Education & Skills,SEND (0-25),Third Party Payments,DSG - High Needs Block,PRIORSLEE PRE-SCHOOL,06/06/2023,"1,814.21"
Education & Skills,SEND (0-25),Third Party Payments,DSG - High Needs Block,Puddleducks Under Fives Ltd,06/06/2023,"1,246.59"
Education & Skills,SEND (0-25),Third Party Payments,DSG - High Needs Block,SMILEY FACES DAY NURSERIES LTD,06/06/2023,196.72
Education & Skills,SEND (0-25),Third Party Payments,DSG - High Needs Block,THE LEARNING TREE PRE-SCHOOL ,06/06/2023,831.06
Education & Skills,SEND (0-25),Third Party Payments,DSG - High Needs Block,Twiggys Day Nursery Ltd ,06/06/2023,440.12
Education & Skills,SEND (0-25),Third Party Payments,DSG - High Needs Block,WOODEN TOPS DAY NURSERY ,06/06/2023,"6,756.16"
Education & Skills,SEND (0-25),Third Party Payments,DSG - High Needs Block,Wrekin View Primary School,06/06/2023,831.06
Education & Skills,SEND (0-25),Supplies & Services,Other Services,E BROWN LTD,20/06/2023,"3,300.00"
Education & Skills,SEND (0-25),Supplies & Services,Other Services,E BROWN LTD,20/06/2023,"2,200.00"
Education & Skills,SEND (0-25),Third Party Payments,DSG - High Needs Block,Crudgington Primary School,01/06/2023,607.83
Education & Skills,SEND (0-25),Third Party Payments,DSG - High Needs Block,Dawley C of E Primary Academy,01/06/2023,868.33
Education & Skills,SEND (0-25),Third Party Payments,DSG - High Needs Block,Grange Park Primary School - Community Academies Trust,01/06/2023,"5,123.14"
Education & Skills,SEND (0-25),Third Party Payments,DSG - High Needs Block,Lawley Village Academy,01/06/2023,607.83
Education & Skills,SEND (0-25),Third Party Payments,DSG - High Needs Block,PRIORSLEE ACADEMY,01/06/2023,"2,952.32"
Education & Skills,SEND (0-25),Third Party Payments,DSG - High Needs Block,Redhill Primary Academy,01/06/2023,"3,820.65"
Education & Skills,SEND (0-25),Third Party Payments,DSG - High Needs Block,St Peter�s Bratton C of E Academy,01/06/2023,"1,128.83"
Education & Skills,SEND (0-25),Third Party Payments,DSG - High Needs Block,Windmill Primary School Academy,01/06/2023,"3,473.32"
Education & Skills,SEND (0-25),Third Party Payments,DSG - High Needs Block,Wrekin View Primary School,01/06/2023,"4,428.48"
Education & Skills,SEND (0-25),Third Party Payments,DSG - High Needs Block,ABRAHAM DARBY ACADEMY,01/06/2023,"7,641.29"
Education & Skills,SEND (0-25),Third Party Payments,DSG - High Needs Block,CAT - Telford Priory School,01/06/2023,"7,901.80"
Education & Skills,SEND (0-25),Third Party Payments,DSG - High Needs Block,Charlton Academy,01/06/2023,"4,515.31"
Education & Skills,SEND (0-25),Third Party Payments,DSG - High Needs Block,Charlton Academy,06/06/2023,"3,221.62"
Education & Skills,SEND (0-25),Third Party Payments,DSG - High Needs Block,Ercall Wood Academy,01/06/2023,"11,461.95"
Education & Skills,SEND (0-25),Third Party Payments,DSG - High Needs Block,Hadley Learning Community Academy,01/06/2023,"2,431.32"
Education & Skills,SEND (0-25),Third Party Payments,DSG - High Needs Block,Hadley Learning Community Academy,01/06/2023,"15,890.43"
Education & Skills,SEND (0-25),Third Party Payments,DSG - High Needs Block,MADELEY ACADEMY TRUST LTD,01/06/2023,"5,036.31"
Education & Skills,SEND (0-25),Third Party Payments,DSG - High Needs Block,NEWPORT GIRLS HIGH SCHOOL ACADEMY TRUST,01/06/2023,607.83
Education & Skills,SEND (0-25),Third Party Payments,DSG - High Needs Block,Telford Park School,01/06/2023,"6,772.97"
Education & Skills,SEND (0-25),Third Party Payments,DSG - High Needs Block,The Telford Langley School ,01/06/2023,"5,817.81"
Education & Skills,SEND (0-25),Third Party Payments,DSG - High Needs Block,T TELFORD SCHOOL ,01/06/2023,955.16
Education & Skills,SEND (0-25),Third Party Payments,DSG - High Needs Block,Queensway HLC,01/06/2023,"52,665.72"
Education & Skills,SEND (0-25),Third Party Payments,DSG - High Needs Block,Queensway HLC,01/06/2023,"23,724.50"
Education & Skills,SEND (0-25),Third Party Payments,DSG - High Needs Block,Queensway HLC,01/06/2023,"36,408.00"
Education & Skills,SEND (0-25),Third Party Payments,DSG - High Needs Block,Queensway HLC,01/06/2023,"42,980.33"
Education & Skills,SEND (0-25),Third Party Payments,DSG - High Needs Block,Bettws Lifehouse Ltd,13/06/2023,"7,500.00"
Education & Skills,SEND (0-25),Third Party Payments,DSG - High Needs Block,Bettws Lifehouse Ltd,13/06/2023,"10,000.00"
Education & Skills,SEND (0-25),Third Party Payments,DSG - High Needs Block,Bettws Lifehouse Ltd,13/06/2023,"7,500.00"
Education & Skills,SEND (0-25),Third Party Payments,DSG - High Needs Block,Brightstar Futures Ltd,13/06/2023,-480.00
Education & Skills,SEND (0-25),Third Party Payments,DSG - High Needs Block,Brightstar Futures Ltd,13/06/2023,"1,440.00"
Education & Skills,SEND (0-25),Third Party Payments,DSG - High Needs Block,Keys PCE Limited,20/06/2023,"19,470.00"
